Workbook

Sheet Navigation Pane
B2: Brisbane City Council
B3: Local Government Infrastructure Plan (LGIP)
B6: Version No | D6: 1 | F6: Date | G6: 2022-11-01 | J6: Author | K6: BCC
B8: Comments | D8: Draft LGIP 1B - Active and Public Transport - Schedule of Works model
D10: Inputs | I10: Calculation | N10: Outputs
C12: General Input Sheet | H12: Calculation Function | M12: Summary Cost Schedule
C13: l Financial Inputs l Other "generic" inputs | H13: Catchment based summary of demand, infrastructure (existing and new) and cost allocation Infrastructure Cost calculation for each catchment Optional Discounted Cashflow | M13: l Summary of demand and cost allocation by catchment l Final costs by catchment
M15: Summary Cash flow Projections
C16: l Unit Cost of Passive Assets l Unit Cost of Land | M16: l Summary of forecast Cap X and anticipated IC revenues. Refer to Revenue and Cash Flow model for output.
C19: l Estimates of current and future demand (per cost catchment)
C21: Asset Inputs
C22: Existing Trunk Assets (& Catchments Served)
C23: Future Trunk Assets (& Catchments Served)

Sheet General Input Sheet
B2: ='Navigation Pane'!B2 -> Brisbane City Council
A3: Return to Navigation Pane
B4: General Input Sheet
B6: General Inputs | E6: Reference | G6: Value | I6: Comments
C8: Base Year | E8: YEAR | G8: 2021
G9: =YEAR -> 2021
C10: Term (between 15 and 30 years) | E10: TERM | G10: 15
B12: Application of Discounted Cash flow
C14: Calculate charges using Discounted Cash flow? (Y/N) | E14: DCFTRIGGER | G14: Yes
B16: General Financial Inputs
B18: Discount Rate (WACC):
C19: Average 10 Year Bond Rate | E19: TenYr
B21: Option 1 | C21: Basic Margin on 10 Yr. Bond Rate | E21: Margin | I21: 3.5% is the baseline figure quoted in LG Bulletin 06/01
C23: WACC: | E23: WACC1 | G23: 0.0591
B25: Option 2 | C25: Capital Structure (% Debt) | E25: Capstr
C26: Market Risk Premium | E26: Risk
C27: Asset Beta | E27: AssetBeta
C28: Cost of Debt | E28: Debt
C30: WACC: | E30: WACC2 | G30: 0.0591
C32: WACC Option to be applied in the calculation? | E32: WACC1 | G32: =IF(G14="No",0,IF(E32="WACC1",WACC1,IF(E32="WACC2",WACC2,"Error"))) -> 0.0591
B34: Escalation Rates
C35: Capital Escalation - Future Trunk | E35: PPI_Future | G35: =(G38/G48)^(1/(E38-E48))-1 -> 0.01820477729 | I35: ten (10) yr. average Roads and Bridges Index (ABS 6427, Table 15, Index 3101)
C36: Capital Escalation - Existing Trunk | E36: PPI_Existing | G36: =(G38/G43)^(1/(E38-E43))-1 -> 0.01618544396 | I36: five (5) yr. average Roads and Bridges Index (ABS 6427, Table 15, Index 3101)
C37: Capital Indexation Rates - Historical (Mar Qtr.)
E38: =YEAR -> 2021 | G38: 119.78 | I38: Roads and Bridges Index (ABS 6427, Table 15, Index 3101)
E39: =E38-1 -> 2020 | G39: 118.02
E40: =E39-1 -> 2019 | G40: 114.56
E41: 2018 | G41: 112.03
E42: =E41-1 -> 2017 | G42: 110.64
E43: =E42-1 -> 2016 | G43: 110.54
E44: =E43-1 -> 2015
E45: 2014
E46: 2013
E47: 2012
E48: 2011 | G48: 100.0076
C51: Land Escalation - Future Trunk | E51: LandInd_Future | G51: =(G54/G64)^(1/(E54-E64))-1 -> 0.02011185319 | I51: ten (10) yr. average Consumer Price Index Roads between 2011 - 2021 (Mar Qtr.)
C52: Land Escalation - Existing Trunk | E52: LandInd_Existing | G52: =(G54/G59)^(1/(E54-E59))-1 -> 0.01651617346 | I52: five (5) yr. average Consumer Price Index Roads between 2016 - 2021 (Mar Qtr.)
E54: =YEAR -> 2021 | G54: 117.5284486 | I54: three (3) yr. rolling average Consumer Price Index (ABS 6427, Table 17, Index 3101, Series ID: A2333727L)
E55: =E54-1 -> 2020
E56: =E55-1 -> 2019
E57: 2018
E58: =E57-1 -> 2017
E59: =E58-1 -> 2016 | G59: 108.2858073
E60: =E59-1 -> 2015
E61: 2014
E62: 2013
E63: 2012
E64: 2011 | G64: 96.30859889
G66: =Chargeind -> 

Sheet Existing Trunk Assets - Pathway
B2: ='Navigation Pane'!B2 -> Brisbane City Council
B3: Pathway
B5: EXISTING TRUNK ASSETS
B7: Land Valuation Type | D7: Location
H9: Asset Data | T9: Catchment Asset Allocation
B10: Basic Asset Data | G10: Asset Attributes | J10: Basic Asset Valuation | O10: Land Attributes | S10: Refined Asset Value | T10: Citywide
B11: Asset ID | C11: LGIP ID | D11: Asset Class | E11: Asset Name | F11: Description | G11: Unit Rate Type (*) | H11: Surface Area (m2) | I11: Hierarchy/Name | J11: Construction Unit Rate ($/m2) | K11: Construction Cost ($) | L11: Site/Condition | M11: Multiplier | N11: Gross Value | O11: Land Location/Type | P11: Size of land (m2) | Q11: Land Unit Rate ($/m2) | R11: Land Value | S11: Valuation Year | T11: Current Replacement Cost
B12: Councils ID (from GIS, FAR, AMA etc.) | C12: ID from the LGIP drawings | D12: Arterial, Subarterial, Collector | K12: May be calculated from unit rates OR unique values can be direct entered
B13: BK9001S00164 | D13: Primary cycle route | E13: ALICE ST | G13: PAVER | H13: 17.436582 | J13: 151.88 | K13: =J13*H13 -> 2648.268074 | P13: 0 | Q13: =IFERROR(R13/P13,0) -> 0 | R13: 0 | S13: 2016 | T13: =IFERROR(ROUND((K13*(1+PPI_Existing)^(YEAR-S13))+(R13*((1+LandInd_Existing)^(YEAR-S13))),0),0) -> 2870
B14: BK9001S00165 | D14: Primary cycle route | E14: ALICE ST | G14: PAVER | H14: 7.83257 | J14: 151.88 | K14: =J14*H14 -> 1189.610732 | P14: 0 | Q14: =IFERROR(R14/P14,0) -> 0 | R14: 0 | S14: 2016 | T14: 1289
B15: BK9001S00166 | D15: Primary cycle route | E15: ALICE ST | G15: CONCRETE | H15: 124.402067 | J15: 148.52 | K15: 18476.19499 | P15: 0 | Q15: 0 | R15: 0 | S15: 2016 | T15: 20021
B16: BK9001S00167 | D16: Primary cycle route | E16: ALICE ST | G16: PAVER | H16: 622.83127 | J16: 151.88 | K16: =J16*H16 -> 94595.61329 | P16: 0 | Q16: 0 | R16: 0 | S16: 2016 | T16: 102503
B17: BK9001S00168 | D17: Primary cycle route | E17: ALICE ST | G17: PAVER | H17: 208.009307 | J17: 151.88 | K17: 31592.45355 | P17: 0 | Q17: 0 | R17: 0 | S17: 2016 | T17: 34233
B18: BK9001S00343 | D18: Primary cycle route | E18: ALICE ST | G18: CONCRETE | H18: 15.086657 | J18: 148.52 | K18: 2240.670298 | P18: 0 | Q18: 0 | R18: 0 | S18: 2016 | T18: 2428
B19: BK9001S00344 | D19: Primary cycle route | E19: ALICE ST | G19: CONCRETE | H19: 317.579447 | J19: 148.52 | K19: 47166.89947 | P19: 0 | Q19: 0 | R19: 0 | S19: 2016 | T19: 51110
B20: BK9001S00345 | D20: Primary cycle route | E20: ALICE ST | G20: ASHPALT | H20: 65.35129 | J20: 148.52 | K20: 9705.973591 | P20: 0 | Q20: 0 | R20: 0 | S20: 2016 | T20: 10517
B21: BK9001S00346 | D21: Primary cycle route | E21: ALICE ST | G21: PAVER | H21: 2799.765142 | J21: 151.88 | K21: 425228.3298 | P21: 0 | Q21: 0 | R21: 0 | S21: 2016 | T21: 460773
B22: BK9001S00347 | D22: Primary cycle route | E22: ALICE ST | G22: PAVER | H22: 21.876001 | J22: 151.88 | K22: 3322.527032 | P22: 0 | Q22: 0 | R22: 0 | S22: 2016 | T22: 3600
B23: BK9001S00627 | D23: Primary cycle route | E23: ANDERSON ST | G23: CONCRETE | H23: 50.259333 | J23: 148.52 | K23: 7464.516137 | P23: 0 | Q23: 0 | R23: 0 | S23: 2016 | T23: 8088
B24: BK9001S00628 | D24: Primary cycle route | E24: ANDERSON ST | G24: CONCRETE | H24: 133.068813 | J24: 148.52 | K24: 19763.38011 | P24: 0 | Q24: 0 | R24: 0 | S24: 2016 | T24: 21415
B25: BK9001S00629 | D25: Primary cycle route | E25: ANDERSON ST | G25: CONCRETE | H25: 340.623944 | J25: 148.52 | K25: 50589.46816 | P25: 0 | Q25: 0 | R25: 0 | S25: 2016 | T25: 54818
B26: BK9001S00469 | D26: Primary cycle route | E26: ANNIE ST | G26: CONCRETE | H26: 58.038825 | J26: 148.52 | K26: 8619.926289 | P26: 0 | Q26: 0 | R26: 0 | S26: 2016 | T26: 9340
B27: BK9001S00152 | D27: Primary cycle route | E27: BOOMERANG ST | G27: ASHPALT | H27: 214.66652 | J27: 148.52 | K27: 31882.27155 | P27: 0 | Q27: 0 | R27: 0 | S27: 2016 | T27: 34547
B28: BK9001S00090 | D28: Secondary cycle route | E28: BOWEN TCE | G28: CONCRETE | H28: 487.023848 | J28: 148.52 | K28: 72332.7819 | P28: 68.5254207 | Q28: 11241.17328 | R28: 770306.128 | S28: 2016 | T28: 914434
B29: BK9001S00093 | D29: Primary cycle route | E29: BRIDGE ST | G29: CONCRETE | H29: 43.311435 | J29: 148.52 | K29: 6432.614326 | P29: 0 | Q29: 0 | R29: 0 | S29: 2016 | T29: 6970
B30: BK9001S00287 | D30: Secondary cycle route | E30: BRIDGE ST | G30: CONCRETE | H30: 46.407452 | J30: 148.52 | K30: 6892.434771 | P30: 0 | Q30: 0 | R30: 0 | S30: 2016 | T30: 7469
B31: BK9001S00543 | D31: Primary cycle route | E31: BRIGHT STREET | G31: CONCRETE | H31: 187.382473 | J31: 148.52 | K31: 27830.04489 | P31: 0 | Q31: 0 | R31: 0 | S31: 2016 | T31: 30156
B32: BK9001S00625 | D32: Primary cycle route | E32: CAIRNS ST | G32: CONCRETE | H32: 408.948325 | J32: 148.52 | K32: 60737.00523 | P32: 0 | Q32: 0 | R32: 0 | S32: 2016 | T32: 65814
B33: BK9001S00639 | D33: Primary cycle route | E33: CAIRNS ST | G33: CONCRETE | H33: 196.966187 | J33: 148.52 | K33: 29253.41809 | P33: 0 | Q33: 0 | R33: 0 | S33: 2016 | T33: 31699
B34: BK9001S00576 | D34: Primary cycle route | E34: CORONATION DR | G34: ASHPALT | H34: 508.056083 | J34: 148.52 | K34: 75456.48945 | P34: 0 | Q34: 0 | R34: 0 | S34: 2016 | T34: 81764
B35: BK9001S00575 | D35: Primary cycle route | E35: CORONATION DR | G35: ASHPALT | H35: 547.139127 | J35: 148.52 | K35: 81261.10314 | P35: 0 | Q35: 0 | R35: 0 | S35: 2016 | T35: 88054
B36: BK9001S00492 | D36: Primary cycle route | E36: CORONATION DR | G36: ASHPALT | H36: 176.90238 | J36: 148.52 | K36: 26273.54148 | P36: 0 | Q36: 0 | R36: 0 | S36: 2016 | T36: 28470
B37: BK9001S00073 | D37: Primary cycle route | E37: CORONATION DR | G37: CONCRETE | H37: 27.061472 | J37: 148.52 | K37: 4019.169821 | P37: 0 | Q37: 0 | R37: 0 | S37: 2016 | T37: 4355
B38: BK9001S00095 | D38: Primary cycle route | E38: CORONATION DR | G38: CONCRETE | H38: 117.245854 | J38: 148.52 | K38: 17413.35424 | P38: 0 | Q38: 0 | R38: 0 | S38: 2016 | T38: 18869
B39: BK9001S00333 | D39: Primary cycle route | E39: CORONATION DR | G39: CONCRETE | H39: 22.12742 | J39: 148.52 | K39: 3286.364418 | P39: 0 | Q39: 0 | R39: 0 | S39: 2016 | T39: 3561
B40: BK9001S00567 | D40: Primary cycle route | E40: CORONATION DR | G40: ASHPALT | H40: 1419.599249 | J40: 148.52 | K40: 210838.8805 | P40: 0 | Q40: 0 | R40: 0 | S40: 2016 | T40: 228463
B41: BK9001S00687 | D41: Primary cycle route | E41: CORONATION DR | G41: ASHPALT | H41: 516.618791 | J41: 148.52 | K41: 76728.22284 | P41: 0 | Q41: 0 | R41: 0 | S41: 2016 | T41: 83142
B42: BK9001S00689 | D42: Primary cycle route | E42: CORONATION DR | G42: ASHPALT | H42: 793.822394 | J42: 148.52 | K42: 117898.502 | P42: 0 | Q42: 0 | R42: 0 | S42: 2016 | T42: 127754
B43: BK9001S00692 | D43: Primary cycle route | E43: CORONATION DR | G43: ASHPALT | H43: 379.851295 | J43: 148.52 | K43: 56415.51433 | P43: 0 | Q43: 0 | R43: 0 | S43: 2016 | T43: 61131
B44: BK9001S00763 | D44: Primary cycle route | E44: CORONATION DR | G44: ASHPALT | H44: 2078.022889 | J44: 148.52 | K44: 308627.9595 | P44: 0 | Q44: 0 | R44: 0 | S44: 2016 | T44: 334426
B45: BK9001S00637 | D45: Primary cycle route | E45: DARRAGH ST | G45: CONCRETE | H45: 298.059708 | J45: 148.52 | K45: 44267.82783 | P45: 0 | Q45: 0 | R45: 0 | S45: 2016 | T45: 47968
B46: BK9001S00087 | D46: Primary cycle route | E46: EVANS ST | G46: CONCRETE | H46: 67.61287 | J46: 148.52 | K46: 10041.86345 | P46: 0 | Q46: 0 | R46: 0 | S46: 2016 | T46: 10881
B47: BK9001S00160 | D47: Primary cycle route | E47: GARDENS POINT RD | G47: ASHPALT | H47: 126.98112 | J47: 148.52 | K47: 18859.23594 | P47: 0 | Q47: 0 | R47: 0 | S47: 2016 | T47: 20436
B48: BK9001S00341 | D48: Primary cycle route | E48: GARDENS POINT RD | G48: ASHPALT | H48: 243.756627 | J48: 148.52 | K48: 36202.73424 | P48: 0 | Q48: 0 | R48: 0 | S48: 2016 | T48: 39229
B49: BK9001S00162 | D49: Primary cycle route | E49: GARDENS POINT RD | G49: ASHPALT | H49: 502.2612 | J49: 148.52 | K49: 74595.83342 | P49: 0 | Q49: 0 | R49: 0 | S49: 2016 | T49: 80831
B50: BK9001S00342 | D50: Primary cycle route | E50: GARDENS POINT RD | G50: ASHPALT | H50: 231.183106 | J50: 148.52 | K50: 34335.3149 | P50: 0 | Q50: 0 | R50: 0 | S50: 2016 | T50: 37205
B51: BK9001S00413 | D51: Primary cycle route | E51: GARDENS POINT RD | G51: CONCRETE | H51: 1100.792357 | J51: 148.52 | K51: 163489.6809 | P51: 0 | Q51: 0 | R51: 0 | S51: 2016 | T51: 177156
B52: BK9001S00427 | D52: Primary cycle route | E52: GILCHRIST AVE | G52: CONCRETE | H52: 1727.033312 | J52: 148.52 | K52: 256498.9875 | P52: 0 | Q52: 0 | R52: 0 | S52: 2016 | T52: 277940
B53: BK9001S00077 | D53: Primary cycle route | E53: GILCHRIST AVE | G53: CONCRETE | H53: 524.962506 | J53: 148.52 | K53: 77967.43139 | P53: 0 | Q53: 0 | R53: 0 | S53: 2016 | T53: 84485
B54: BK9001S00075 | D54: Primary cycle route | E54: GILCHRIST AVE | G54: CONCRETE | H54: 1079.323508 | J54: 148.52 | K54: 160301.1274 | P54: 0 | Q54: 0 | R54: 0 | S54: 2016 | T54: 173701
B55: BK9001S00272 | D55: Primary cycle route | E55: GILCHRIST AVE | G55: CONCRETE | H55: 70.994753 | J55: 148.52 | K55: 10544.14072 | P55: 0 | Q55: 0 | R55: 0 | S55: 2016 | T55: 11426
B56: BK9001S00211 | D56: Primary cycle route | E56: GILCHRIST AVE | G56: CONCRETE | H56: 150.028403 | J56: 148.52 | K56: 22282.21841 | P56: 0 | Q56: 0 | R56: 0 | S56: 2016 | T56: 24145
B57: BK9001S00212 | D57: Primary cycle route | E57: GILCHRIST AVE | G57: CONCRETE | H57: 164.431844 | J57: 148.52 | K57: 24421.41747 | P57: 0 | Q57: 0 | R57: 0 | S57: 2016 | T57: 26463
B58: BK9001S00092 | D58: Primary cycle route | E58: GLENROSA RD | G58: CONCRETE | H58: 109.907683 | J58: 148.52 | K58: 16323.48908 | P58: 0 | Q58: 0 | R58: 0 | S58: 2016 | T58: 17688
B59: BK9001S00183 | D59: Primary cycle route | E59: GLENROSA RD | G59: CONCRETE | H59: 177.788374 | J59: 148.52 | K59: 26405.12931 | P59: 0 | Q59: 0 | R59: 0 | S59: 2016 | T59: 28612
B60: BK9001S00286 | D60: Primary cycle route | E60: GLENROSA RD | G60: CONCRETE | H60: 216.766246 | J60: 148.52 | K60: 32194.12286 | P60: 0 | Q60: 0 | R60: 0 | S60: 2016 | T60: 34885
B61: BK9001S00359 | D61: Secondary cycle route | E61: GREGORY TCE | G61: PAVER | H61: 169.025793 | J61: 151.88 | K61: 25671.63744 | P61: 0 | Q61: 0 | R61: 0 | S61: 2016 | T61: 27818
B62: BK9001S00443 | D62: Secondary cycle route | E62: GREGORY TCE | G62: CONCRETE | H62: 615.344835 | J62: 148.52 | K62: 91391.01489 | P62: 0 | Q62: 0 | R62: 0 | S62: 2016 | T62: 99030
B63: BK9001S00217 | D63: Secondary cycle route | E63: GREGORY TCE | G63: CONCRETE | H63: 91.133368 | J63: 148.52 | K63: 13535.12782 | P63: 0 | Q63: 0 | R63: 0 | S63: 2016 | T63: 14667
B64: BK9001S00179 | D64: Secondary cycle route | E64: GREGORY TCE | G64: CONCRETE | H64: 49.4535 | J64: 148.52 | K64: 7344.83382 | P64: 0 | Q64: 0 | R64: 0 | S64: 2016 | T64: 7959
B65: BK9001S00380 | D65: Secondary cycle route | E65: GREGORY TCE | G65: CONCRETE | H65: 208.549601 | J65: 148.52 | K65: 30973.78674 | P65: 0 | Q65: 0 | R65: 0 | S65: 2016 | T65: 33563
B66: BK9001S00429 | D66: Secondary cycle route | E66: GREGORY TCE | G66: CONCRETE | H66: 892.810976 | J66: 148.52 | K66: 132600.2862 | P66: 0 | Q66: 0 | R66: 0 | S66: 2016 | T66: 143684
B67: BK9001S00216 | D67: Secondary cycle route | E67: GREGORY TCE | G67: ASHPALT | H67: 325.767284 | J67: 148.52 | K67: 48382.95702 | P67: 0 | Q67: 0 | R67: 0 | S67: 2016 | T67: 52427
B68: BK9001S00021 | D68: Primary cycle route | E68: HOLMAN ST | G68: CONCRETE | H68: 37.723217 | J68: 148.52 | K68: 5602.652189 | P68: 27.912422 | Q68: 148.0000001 | R68: 4131.03846 | S68: 2016 | T68: 10555
B69: BK9001S00235 | D69: Primary cycle route | E69: HOLMAN ST | G69: CONCRETE | H69: 916.581482 | J69: 148.52 | K69: 136130.6817 | P69: 0 | Q69: 0 | S69: 2016 | T69: 147510
B70: BK9001S00386 | D70: Primary cycle route | E70: HOLMAN ST | G70: PAVER | H70: 132.832913 | J70: 151.88 | K70: 20174.66283 | P70: 0 | Q70: 0 | S70: 2016 | T70: 21861
B71: BK9001S00626 | D71: Primary cycle route | E71: HOLMAN ST | G71: CONCRETE | H71: 137.338433 | J71: 148.52 | K71: 20397.50407 | P71: 0 | Q71: 0 | S71: 2016 | T71: 22103
B72: BK9001S00193 | D72: Secondary cycle route | E72: ITHACA ST | G72: CONCRETE | H72: 521.588124 | J72: 148.52 | K72: 77466.26818 | P72: 720.980561 | Q72: 2593.000007 | R72: 1869502.6 | S72: 2016 | T72: 2113014
B73: BK9001S00194 | D73: Secondary cycle route | E73: ITHACA ST | G73: CONCRETE | H73: 314.215727 | J73: 148.52 | K73: 46667.31977 | P73: 0 | Q73: 0 | S73: 2016 | T73: 50568
B74: BK9001S00367 | D74: Secondary cycle route | E74: ITHACA ST | G74: CONCRETE | H74: 102.831497 | J74: 148.52 | K74: 15272.53393 | P74: 0 | Q74: 0 | S74: 2016 | T74: 16549
B75: BK9001S00289 | D75: Primary cycle route | E75: JANE ST | G75: CONCRETE | H75: 1308.226854 | J75: 148.52 | K75: 194297.8524 | P75: 0 | Q75: 0 | R75: 0 | S75: 2016 | T75: 210539
B76: BK9001S00129 | D76: Primary cycle route | E76: LOWER RIVER TCE | G76: CONCRETE | H76: 125.415728 | J76: 148.52 | K76: =J76*H76 -> 18626.74392 | P76: 0 | Q76: =IFERROR(R76/P76,0) -> 0 | R76: 0 | S76: 2016 | T76: 20184
B77: BK9001S00131 | D77: Primary cycle route | E77: LOWER RIVER TCE | G77: CONCRETE | H77: 243.91575 | J77: 148.52 | K77: 36226.36719 | P77: 0 | Q77: 0 | R77: 0 | S77: 2016 | T77: =IFERROR(ROUND((K77*(1+PPI_Existing)^(YEAR-S77))+(R77*((1+LandInd_Existing)^(YEAR-S77))),0),0) -> 39255
B78: BK9001S00132 | D78: Primary cycle route | E78: LOWER RIVER TCE | G78: CONCRETE | H78: 140.077957 | J78: 148.52 | K78: 20804.37817 | P78: 0 | Q78: 0 | R78: 0 | S78: 2016 | T78: 22543
B79: BK9001S00133 | D79: Primary cycle route | E79: LOWER RIVER TCE | G79: CONCRETE | H79: 6.552882 | J79: 148.52 | K79: 973.2340346 | P79: 0 | Q79: 0 | R79: 0 | S79: 2016 | T79: 1055
B80: BK9001S00316 | D80: Primary cycle route | E80: LOWER RIVER TCE | G80: CONCRETE | H80: 581.929687 | J80: 148.52 | K80: 86428.19711 | P80: 0 | Q80: 0 | R80: 0 | S80: 2016 | T80: 93653
B81: BK9001S00317 | D81: Primary cycle route | E81: LOWER RIVER TCE | G81: CONCRETE | H81: 152.624161 | J81: 148.52 | K81: 22667.74039 | P81: 0 | Q81: 0 | R81: 0 | S81: 2016 | T81: 24563
B82: BK9001S00318 | D82: Primary cycle route | E82: LOWER RIVER TCE | G82: CONCRETE | H82: 506.52676 | J82: 148.52 | K82: 75229.3544 | P82: 0 | Q82: 0 | R82: 0 | S82: 2016 | T82: 81518
B83: BK9001S00319 | D83: Primary cycle route | E83: LOWER RIVER TCE | G83: CONCRETE | H83: 50.256332 | J83: 148.52 | K83: 7464.070429 | P83: 0 | Q83: 0 | R83: 0 | S83: 2016 | T83: 8088
B84: BK9001S00472 | D84: Primary cycle route | E84: MACDONALD ST | G84: CONCRETE | H84: 896.844489 | J84: 148.52 | K84: 133199.3435 | P84: 0 | Q84: 0 | R84: 0 | S84: 2016 | T84: 144333
B85: BK9001S00569 | D85: Primary cycle route | E85: MACDONALD ST | G85: CONCRETE | H85: 201.229117 | J85: 148.52 | K85: 29886.54846 | P85: 0 | Q85: 0 | R85: 0 | S85: 2016 | T85: 32385
B86: BK9001S00533 | D86: Primary cycle route | E86: MONTAGUE RD | G86: CONCRETE | H86: 267.512143 | J86: 148.52 | K86: 39730.90348 | P86: 0 | Q86: 0 | R86: 0 | S86: 2016 | T86: 43052
B87: BK9001S00532 | D87: Primary cycle route | E87: MONTAGUE RD | G87: CONCRETE | H87: 232.481815 | J87: 148.52 | K87: 34528.19916 | P87: 0 | Q87: 0 | R87: 0 | S87: 2016 | T87: 37414
B88: BK9001S00571 | D88: Primary cycle route | E88: MONTAGUE RD | G88: CONCRETE | H88: 668.73456 | J88: 148.52 | K88: 99320.45685 | P88: 0 | Q88: 0 | R88: 0 | S88: 2016 | T88: 107623
B89: BK9001S00572 | D89: Primary cycle route | E89: MONTAGUE RD | G89: CONCRETE | H89: 115.459362 | J89: 148.52 | K89: 17148.02444 | P89: 0 | Q89: 0 | R89: 0 | S89: 2016 | T89: 18581
B90: BK9001S00573 | D90: Primary cycle route | E90: MONTAGUE RD | G90: CONCRETE | H90: 71.666651 | J90: 148.52 | K90: 10643.93101 | P90: 0 | Q90: 0 | R90: 0 | S90: 2016 | T90: 11534
B91: BK9001S00442 | D91: Primary cycle route | E91: NORTH QUAY | G91: ASHPALT | H91: 1240.895958 | J91: 148.52 | K91: 184297.8677 | P91: 0 | Q91: 0 | R91: 0 | S91: 2016 | T91: 199703
B92: BK9001S00641 | D92: Primary cycle route | E92: PROSPECT ST | G92: CONCRETE | H92: 26.560343 | J92: 148.52 | K92: 3944.742142 | P92: 0 | Q92: 0 | R92: 0 | S92: 2016 | T92: 4274
B93: BK9001S00159 | D93: Primary cycle route | E93: QUEENS WHARF RD | G93: ASHPALT | H93: 68.304555 | J93: 148.52 | K93: 10144.59251 | P93: 0 | Q93: 0 | R93: 0 | S93: 2016 | T93: 10993
B94: BK9001S00340 | D94: Primary cycle route | E94: QUEENS WHARF RD | G94: CONCRETE | H94: 674.831371 | J94: 148.52 | K94: 100225.9552 | P94: 0 | Q94: 0 | R94: 0 | S94: 2016 | T94: 108604
B95: BK9001S00134 | D95: Primary cycle route | E95: RIVER TCE | G95: CONCRETE | H95: 269.887886 | J95: 148.52 | K95: 40083.74883 | P95: 0 | Q95: 0 | R95: 0 | S95: 2016 | T95: 43434
B96: BK9001S00136 | D96: Primary cycle route | E96: RIVER TCE | G96: CONCRETE | H96: 215.763293 | J96: 148.52 | K96: 32045.16428 | P96: 0 | Q96: 0 | R96: 0 | S96: 2016 | T96: 34724
B97: BK9001S00139 | D97: Primary cycle route | E97: RIVER TCE | G97: CONCRETE | H97: 331.410556 | J97: 148.52 | K97: 49221.09578 | P97: 0 | Q97: 0 | R97: 0 | S97: 2016 | T97: 53335
B98: BK9001S00322 | D98: Primary cycle route | E98: RIVER TCE | G98: CONCRETE | H98: 49.344416 | J98: 148.52 | K98: 7328.632664 | P98: 0 | Q98: 0 | R98: 0 | S98: 2016 | T98: 7941
B99: BK9001S00727 | D99: Primary cycle route | E99: RIVERVIEW COURT | G99: CONCRETE | H99: 50.144568 | J99: 148.52 | K99: 7447.471239 | P99: 0 | Q99: 0 | R99: 0 | S99: 2016 | T99: 8070
B100: BK9001S00634 | D100: Primary cycle route | E100: ROTHERHAM ST | G100: CONCRETE | H100: 926.298275 | J100: 148.52 | K100: 137573.8198 | P100: 0 | Q100: 0 | R100: 0 | S100: 2016 | T100: 149074
B101: BK9001S00635 | D101: Primary cycle route | E101: ROTHERHAM ST | G101: CONCRETE | H101: 235.943291 | J101: 148.52 | K101: 35042.29758 | P101: 0 | Q101: 0 | R101: 0 | S101: 2016 | T101: 37971
B102: BK9001S00125 | D102: Primary cycle route | E102: STANLEY ST | G102: CONCRETE | H102: 43.163953 | J102: 148.52 | K102: 6410.7103 | P102: 0 | Q102: 0 | R102: 0 | S102: 2016 | T102: 6947
B103: BK9001S00126 | D103: Primary cycle route | E103: STANLEY ST | G103: CONCRETE | H103: 38.306352 | J103: 148.52 | K103: 5689.259399 | P103: 0 | Q103: 0 | R103: 0 | S103: 2016 | T103: 6165
B104: BK9001S00313 | D104: Primary cycle route | E104: STANLEY ST | G104: ASHPALT | H104: 35.96541 | J104: 148.52 | K104: 5341.582693 | P104: 0 | Q104: 0 | R104: 0 | S104: 2016 | T104: 5788
B105: BK9001S00314 | D105: Primary cycle route | E105: STANLEY ST | G105: CONCRETE | H105: 82.19182 | J105: 148.52 | K105: 12207.12911 | P105: 0 | Q105: 0 | R105: 0 | S105: 2016 | T105: 13228
B106: BK9001S00128 | D106: Primary cycle route | E106: STANLEY ST | G106: CONCRETE | H106: 277.293178 | J106: 148.52 | K106: 41183.5828 | P106: 0 | Q106: 0 | R106: 0 | S106: 2016 | T106: 44626
B107: BK9001S00315 | D107: Primary cycle route | E107: STANLEY ST | G107: CONCRETE | H107: 42.356307 | J107: 148.52 | K107: 6290.758716 | P107: 0 | Q107: 0 | R107: 0 | S107: 2016 | T107: 6817
B108: BK9001S00699 | D108: Primary cycle route | E108: STANLEY ST | G108: CONCRETE | H108: 230.078649 | J108: 148.52 | K108: 34171.28095 | P108: 0 | Q108: 0 | R108: 0 | S108: 2016 | T108: 37028
B109: BK9001S00700 | D109: Primary cycle route | E109: STANLEY ST | G109: CONCRETE | H109: 96.786964 | J109: 148.52 | K109: 14374.79989 | P109: 0 | Q109: 0 | R109: 0 | S109: 2016 | T109: 15576
B110: BK9001S00681 | D110: Primary cycle route | E110: STANLEY ST | G110: CONCRETE | H110: 110.495778 | J110: 148.52 | K110: 16410.83295 | P110: 0 | Q110: 0 | R110: 0 | S110: 2016 | T110: 17783
B111: BK9001S00682 | D111: Primary cycle route | E111: STANLEY ST | G111: CONCRETE | H111: 33.876594 | J111: 148.52 | K111: 5031.351741 | P111: 0 | Q111: 0 | R111: 0 | S111: 2016 | T111: 5452
B112: BK9001S00698 | D112: Primary cycle route | E112: STANLEY ST | G112: CONCRETE | H112: 30.153938 | J112: 148.52 | K112: 4478.462872 | P112: 0 | Q112: 0 | R112: 0 | S112: 2016 | T112: 4853
B113: BK9001S00096 | D113: Primary cycle route | E113: WATERWORKS RD | G113: ASHPALT | H113: 40.094596 | J113: 148.52 | K113: 5954.849398 | P113: 0 | Q113: 0 | R113: 0 | S113: 2016 | T113: 6453
B114: BK9001S00094 | D114: Secondary cycle route | E114: WATERWORKS RD | G114: CONCRETE | H114: 59.357168 | J114: 148.52 | K114: 8815.726591 | P114: 0 | Q114: 0 | R114: 0 | S114: 2016 | T114: 9553
B115: BK9001S00630 | D115: Primary cycle route | E115: WHARF ST | G115: CONCRETE | H115: 396.19885 | J115: 148.52 | K115: 58843.4532 | P115: 0 | Q115: 0 | R115: 0 | S115: 2016 | T115: 63762
B116: BK9001S00631 | D116: Primary cycle route | E116: WHARF ST | G116: CONCRETE | H116: 81.937721 | J116: 148.52 | K116: 12169.39032 | P116: 0 | Q116: 0 | R116: 0 | S116: 2016 | T116: 13187
B117: BK9001S00632 | D117: Primary cycle route | E117: WHARF ST | G117: CONCRETE | H117: 26.142856 | J117: 148.52 | K117: 3882.736973 | P117: 0 | Q117: 0 | R117: 0 | S117: 2016 | T117: 4207
B118: BK9002S00208 | D118: Primary cycle route | E118: ADDISON ST | G118: CONCRETE | H118: 317.553111 | J118: 148.52 | K118: 47162.98805 | P118: 29.5610153 | Q118: 15.00000002 | R118: 443.41523 | S118: 2016 | T118: 51587
B119: BK9002S00465 | D119: Primary cycle route | E119: BISHOP ST | G119: CONCRETE | H119: 598.495508 | J119: 148.52 | K119: 88888.55285 | P119: 323.363071 | Q119: 14.99999998 | R119: 4850.44606 | S119: 2016 | T119: 101583
B120: BK9002S00461 | D120: Primary cycle route | E120: BISHOP ST | G120: CONCRETE | H120: 578.918177 | J120: 148.52 | K120: 85980.92765 | P120: 0 | Q120: 0 | R120: 0 | S120: 2016 | T120: 93168
B121: BK9002S00462 | D121: Primary cycle route | E121: BISHOP ST | G121: CONCRETE | H121: 31.127721 | J121: 148.52 | K121: 4623.089123 | P121: 0 | Q121: 0 | R121: 0 | S121: 2016 | T121: 5010
B122: BK9002S00463 | D122: Primary cycle route | E122: BISHOP ST | G122: CONCRETE | H122: 79.889159 | J122: 148.52 | K122: 11865.13789 | P122: 0 | Q122: 0 | R122: 0 | S122: 2016 | T122: 12857
B123: BK9002S00464 | D123: Primary cycle route | E123: BISHOP ST | G123: CONCRETE | H123: 31.999916 | J123: 148.52 | K123: 4752.627524 | P123: 0 | Q123: 0 | R123: 0 | S123: 2016 | T123: 5150
B124: BK9002S00164 | D124: Secondary cycle route | E124: BLANDFORD ST | G124: CONCRETE | H124: 73.351043 | J124: 148.52 | K124: 10894.09691 | P124: 0 | Q124: 0 | R124: 0 | S124: 2016 | T124: 11805
B125: BK9002S00165 | D125: Secondary cycle route | E125: BLANDFORD ST | G125: CONCRETE | H125: 247.083981 | J125: 148.52 | K125: 36696.91286 | P125: 0 | Q125: 0 | R125: 0 | S125: 2016 | T125: 39764
B126: BK9002S00025 | D126: Secondary cycle route | E126: BLANDFORD ST | G126: CONCRETE | H126: 294.875564 | J126: 148.52 | K126: 43794.91877 | P126: 0 | Q126: 0 | R126: 0 | S126: 2016 | T126: 47456
B127: BK9002S00053 | D127: Secondary cycle route | E127: BLANDFORD ST | G127: CONCRETE | H127: 46.240955 | J127: 148.52 | K127: 6867.706637 | P127: 0 | Q127: 0 | R127: 0 | S127: 2016 | T127: 7442
B128: BK9002S00054 | D128: Secondary cycle route | E128: BLANDFORD ST | G128: CONCRETE | H128: 29.048113 | J128: 148.52 | K128: 4314.225743 | P128: 0 | Q128: 0 | R128: 0 | S128: 2016 | T128: 4675
B129: BK9002S00166 | D129: Secondary cycle route | E129: BLANDFORD ST | G129: CONCRETE | H129: 78.390111 | J129: 148.52 | K129: 11642.49929 | P129: 0 | Q129: 0 | R129: 0 | S129: 2016 | T129: 12616
B130: BK9002S00167 | D130: Secondary cycle route | E130: BLANDFORD ST | G130: CONCRETE | H130: 190.059891 | J130: 148.52 | K130: 28227.69501 | P130: 0 | Q130: 0 | R130: 0 | S130: 2016 | T130: 30587
B131: BK9002S00407 | D131: Primary cycle route | E131: CAMPBELL ST | G131: CONCRETE | H131: 271.392067 | J131: 148.52 | K131: 40307.14979 | P131: 0 | Q131: 0 | R131: 0 | S131: 2016 | T131: 43676
B132: BK9002S00041 | D132: Primary cycle route | E132: CHEVIOT ST | G132: CONCRETE | H132: 8.75249 | J132: 148.52 | K132: 1299.919815 | P132: 0 | Q132: 0 | R132: 0 | S132: 2016 | T132: 1409
B133: BK9002S00292 | D133: Primary cycle route | E133: DAMON RD | G133: CONCRETE | H133: 1270.008847 | J133: 148.52 | K133: 188621.714 | P133: 374.571693 | Q133: 14.99999999 | R133: 5618.57539 | S133: 2016 | T133: 210487
B134: BK9002S00173 | D134: Primary cycle route | E134: DAMON RD | G134: CONCRETE | H134: 189.38428 | J134: 148.52 | K134: 28127.35327 | P134: 0 | Q134: 0 | R134: 0 | S134: 2016 | T134: 30479
B135: BK9002S00009 | D135: Primary cycle route | E135: DAVIDSON ST | G135: CONCRETE | H135: 534.127264 | J135: 148.52 | K135: 79328.58125 | P135: 0 | Q135: 0 | R135: 0 | S135: 2016 | T135: 85960
B136: BK9002S00227 | D136: Primary cycle route | E136: DAVIDSON ST | G136: CONCRETE | H136: 31.964423 | J136: 148.52 | K136: 4747.356104 | P136: 0 | Q136: 0 | R136: 0 | S136: 2016 | T136: 5144
B137: BK9002S00068 | D137: Primary cycle route | E137: EDGAR ST | G137: CONCRETE | H137: 913.107743 | J137: 148.52 | K137: 135614.762 | P137: 0 | Q137: 0 | R137: 0 | S137: 2016 | T137: 146951
B138: BK9002S00383 | D138: Primary cycle route | E138: EVANS ST | G138: CONCRETE | H138: 41.314122 | J138: 148.52 | K138: 6135.973399 | P138: 0 | Q138: 0 | R138: 0 | S138: 2016 | T138: 6649
B139: BK9002S00280 | D139: Secondary cycle route | E139: FERRES STREET | G139: CONCRETE | H139: 96.384544 | J139: 148.52 | K139: 14315.03247 | P139: 0 | Q139: 0 | R139: 0 | S139: 2016 | T139: 15512
B140: BK9002S00340 | D140: Primary cycle route | E140: FIFTH AVE | G140: CONCRETE | H140: 960.675643 | J140: 148.52 | K140: =J140*H140 -> 142679.5465 | P140: 774.62094 | Q140: =IFERROR(R140/P140,0) -> 15 | R140: 11619.3141 | S140: 2016 | T140: 167217
B141: BK9002S00209 | D141: Primary cycle route | E141: GALLWAY ST | G141: CONCRETE | H141: 593.687779 | J141: 148.52 | K141: 88174.50894 | P141: 4.77239884 | Q141: 299.9999996 | R141: 1431.71965 | S141: 2016 | T141: =IFERROR(ROUND((K141*(1+PPI_Existing)^(YEAR-S141))+(R141*((1+LandInd_Existing)^(YEAR-S141))),0),0) -> 97099
B142: BK9002S00252 | D142: Primary cycle route | E142: GAMELIN CRES | G142: CONCRETE | H142: 1050.93943 | J142: 148.52 | K142: 156085.5241 | P142: 0 | Q142: 0 | R142: 0 | S142: 2016 | T142: 169133
B143: BK9002S00003 | D143: Secondary cycle route | E143: GAMELIN CRES | G143: CONCRETE | H143: 379.103558 | J143: 148.52 | K143: 56304.46043 | P143: 0 | Q143: 0 | R143: 0 | S143: 2016 | T143: 61011
B144: BK9002S00042 | D144: Secondary cycle route | E144: GAMELIN CRES | G144: CONCRETE | H144: 83.19243 | J144: 148.52 | K144: 12355.7397 | P144: 0 | Q144: 0 | R144: 0 | S144: 2016 | T144: 13389
B145: BK9002S00161 | D145: Secondary cycle route | E145: GAMELIN CRES | G145: CONCRETE | H145: 114.757885 | J145: 148.52 | K145: 17043.84108 | P145: 0 | Q145: 0 | R145: 0 | S145: 2016 | T145: 18469
B146: BK9002S00229 | D146: Secondary cycle route | E146: GAMELIN CRES | G146: CONCRETE | H146: 1111.694787 | J146: 148.52 | K146: 165108.9098 | P146: 0 | Q146: 0 | R146: 0 | S146: 2016 | T146: 178910
B147: BK9002S00045 | D147: Secondary cycle route | E147: GAMELIN CRES | G147: CONCRETE | H147: 38.089352 | J147: 148.52 | K147: 5657.030559 | P147: 0 | Q147: 0 | R147: 0 | S147: 2016 | T147: 6130
B148: BK9002S00160 | D148: Secondary cycle route | E148: GAMELIN CRES | G148: CONCRETE | H148: 97.080534 | J148: 148.52 | K148: 14418.40091 | P148: 0 | Q148: 0 | R148: 0 | S148: 2016 | T148: 15624
B149: BK9002S00381 | D149: Primary cycle route | E149: GLENROSA RD | G149: CONCRETE | H149: 303.089343 | J149: 148.52 | K149: 45014.82922 | P149: 0 | Q149: 0 | R149: 0 | S149: 2016 | T149: 48778
B150: BK9002S00262 | D150: Primary cycle route | E150: GOULD RD | G150: CONCRETE | H150: 170.596385 | J150: 148.52 | K150: 25336.9751 | P150: 0 | Q150: 0 | R150: 0 | S150: 2016 | T150: 27455
B151: BK9002S00346 | D151: Primary cycle route | E151: GYMPIE RD | G151: CONCRETE | H151: 316.929464 | J151: 148.52 | K151: 47070.36399 | P151: 18.2374729 | Q151: 15.00000003 | R151: 273.562094 | S151: 2016 | T151: 51302
B152: BK9002S00347 | D152: Primary cycle route | E152: GYMPIE RD | G152: CONCRETE | H152: 195.820077 | J152: 148.52 | K152: 29083.19784 | P152: 0 | Q152: 0 | R152: 0 | S152: 2016 | T152: 31514
B153: BK9002S00343 | D153: Primary cycle route | E153: GYMPIE RD | G153: CONCRETE | H153: 174.880191 | J153: 148.52 | K153: 25973.20597 | P153: 0 | Q153: 0 | R153: 0 | S153: 2016 | T153: 28144
B154: BK9002S00345 | D154: Primary cycle route | E154: GYMPIE RD | G154: CONCRETE | H154: 116.68939 | J154: 148.52 | K154: 17330.7082 | P154: 0 | Q154: 0 | R154: 0 | S154: 2016 | T154: 18779
B155: BK9002S00344 | D155: Primary cycle route | E155: GYMPIE RD | G155: CONCRETE | H155: 96.231511 | J155: 148.52 | K155: 14292.30401 | P155: 0 | Q155: 0 | R155: 0 | S155: 2016 | T155: 15487
B156: BK9002S00348 | D156: Primary cycle route | E156: GYMPIE RD | G156: CONCRETE | H156: 537.459232 | J156: 148.52 | K156: 79823.44514 | P156: 0 | Q156: 0 | R156: 0 | S156: 2016 | T156: 86496
B157: BK9002S00452 | D157: Primary cycle route | E157: HULME ST | G157: CONCRETE | H157: 368.352473 | J157: 148.52 | K157: 54707.70929 | P157: 0 | Q157: 0 | R157: 0 | S157: 2016 | T157: 59281
B158: BK9002S00453 | D158: Primary cycle route | E158: HULME ST | G158: CONCRETE | H158: 18.430319 | J158: 148.52 | K158: 2737.270978 | P158: 0 | Q158: 0 | R158: 0 | S158: 2016 | T158: 2966
B159: BK9002S00437 | D159: Primary cycle route | E159: JEAN ST | G159: CONCRETE | H159: 713.320626 | J159: 148.52 | K159: 105942.3794 | P159: 3984.94157 | Q159: 14.99999999 | R159: 59774.1235 | S159: 2016 | T159: 179674
B160: BK9002S00301 | D160: Primary cycle route | E160: JEAN ST | G160: CONCRETE | H160: 1524.252997 | J160: 148.52 | K160: 226382.0551 | P160: 0 | Q160: 0 | R160: 0 | S160: 2016 | T160: 245305
B161: BK9002S00300 | D161: Primary cycle route | E161: JEAN ST | G161: CONCRETE | H161: 28.964242 | J161: 148.52 | K161: 4301.769222 | P161: 0 | Q161: 0 | R161: 0 | S161: 2016 | T161: 4661
B162: BK9002S00189 | D162: Secondary cycle route | E162: JEAN ST | G162: CONCRETE | H162: 1686.718071 | J162: 148.52 | K162: 250511.3679 | P162: 149.970859 | Q162: 15.00000003 | R162: 2249.56289 | S162: 2016 | T162: 273893
B163: BK9002S00408 | D163: Primary cycle route | E163: M3 | G163: CONCRETE | H163: 53.171695 | J163: 148.52 | K163: 7897.060141 | P163: 0 | Q163: 0 | R163: 0 | S163: 2016 | T163: 8557
B164: BK9002S00409 | D164: Primary cycle route | E164: M3 | G164: CONCRETE | H164: 24.340056 | J164: 148.52 | K164: 3614.985117 | P164: 0 | Q164: 0 | R164: 0 | S164: 2016 | T164: 3917
B165: BK9002S00410 | D165: Primary cycle route | E165: M3 | G165: CONCRETE | H165: 30.428077 | J165: 148.52 | K165: 4519.177996 | P165: 0 | Q165: 0 | R165: 0 | S165: 2016 | T165: 4897
B166: BK9002S00411 | D166: Primary cycle route | E166: M3 | G166: CONCRETE | H166: 65.77241 | J166: 148.52 | K166: 9768.518333 | P166: 0 | Q166: 0 | R166: 0 | S166: 2016 | T166: 10585
B167: BK9002S00412 | D167: Primary cycle route | E167: M3 | G167: CONCRETE | H167: 38.538243 | J167: 148.52 | K167: 5723.69985 | P167: 0 | Q167: 0 | R167: 0 | S167: 2016 | T167: 6202
B168: BK9002S00428 | D168: Primary cycle route | E168: M7 | G168: CONCRETE | H168: 1037.516666 | J168: 148.52 | K168: 154091.9752 | P168: 0 | Q168: 0 | R168: 0 | S168: 2016 | T168: 166972
B169: BK9002S00434 | D169: Primary cycle route | E169: M7 | G169: CONCRETE | H169: 52.435208 | J169: 148.52 | K169: 7787.677092 | P169: 0 | Q169: 0 | R169: 0 | S169: 2016 | T169: 8439
B170: BK9002S00413 | D170: Primary cycle route | E170: M7 | G170: CONCRETE | H170: 123.167655 | J170: 148.52 | K170: 18292.86012 | P170: 0 | Q170: 0 | R170: 0 | S170: 2016 | T170: 19822
B171: BK9002S00418 | D171: Primary cycle route | E171: M7 | G171: CONCRETE | H171: 104.457897 | J171: 148.52 | K171: 15514.08686 | P171: 0 | Q171: 0 | R171: 0 | S171: 2016 | T171: 16811
B172: BK9002S00419 | D172: Primary cycle route | E172: M7 | G172: CONCRETE | H172: 51.295759 | J172: 148.52 | K172: 7618.446127 | P172: 0 | Q172: 0 | R172: 0 | S172: 2016 | T172: 8255
B173: BK9002S00420 | D173: Primary cycle route | E173: M7 | G173: CONCRETE | H173: 22.705838 | J173: 148.52 | K173: 3372.27106 | P173: 0 | Q173: 0 | R173: 0 | S173: 2016 | T173: 3654
B174: BK9002S00421 | D174: Primary cycle route | E174: M7 | G174: CONCRETE | H174: 49.976759 | J174: 148.52 | K174: 7422.548247 | P174: 0 | Q174: 0 | R174: 0 | S174: 2016 | T174: 8043
B175: BK9002S00422 | D175: Primary cycle route | E175: M7 | G175: CONCRETE | H175: 31.490474 | J175: 148.52 | K175: 4676.965198 | P175: 0 | Q175: 0 | R175: 0 | S175: 2016 | T175: 5068
B176: BK9002S00423 | D176: Primary cycle route | E176: M7 | G176: CONCRETE | H176: 117.603805 | J176: 148.52 | K176: 17466.51712 | P176: 0 | Q176: 0 | R176: 0 | S176: 2016 | T176: 18927
B177: BK9002S00424 | D177: Primary cycle route | E177: M7 | G177: CONCRETE | H177: 63.997697 | J177: 148.52 | K177: 9504.937958 | P177: 0 | Q177: 0 | R177: 0 | S177: 2016 | T177: 10299
B178: BK9002S00425 | D178: Primary cycle route | E178: M7 | G178: CONCRETE | H178: 133.052566 | J178: 148.52 | K178: 19760.9671 | P178: 0 | Q178: 0 | R178: 0 | S178: 2016 | T178: 21413
B179: BK9002S00426 | D179: Primary cycle route | E179: M7 | G179: CONCRETE | H179: 55.253211 | J179: 148.52 | K179: 8206.206898 | P179: 0 | Q179: 0 | R179: 0 | S179: 2016 | T179: 8892
B180: BK9002S00427 | D180: Primary cycle route | E180: M7 | G180: CONCRETE | H180: 33.867519 | J180: 148.52 | K180: 5030.003922 | P180: 0 | Q180: 0 | R180: 0 | S180: 2016 | T180: 5450
B181: BK9002S00028 | D181: Primary cycle route | E181: MARK ST | G181: CONCRETE | H181: 34.861714 | J181: 148.52 | K181: 5177.661763 | P181: 0 | Q181: 0 | R181: 0 | S181: 2016 | T181: 5610
B182: BK9002S00342 | D182: Primary cycle route | E182: MCCORD ST | G182: CONCRETE | H182: 797.012247 | J182: 148.52 | K182: 118372.2589 | P182: 0 | Q182: 0 | R182: 0 | S182: 2016 | T182: 128267
B183: BK9002S00095 | D183: Secondary cycle route | E183: MCCORD ST | G183: CONCRETE | H183: 87.403662 | J183: 148.52 | K183: 12981.19188 | P183: 0 | Q183: 0 | R183: 0 | S183: 2016 | T183: 14066
B184: BK9002S00196 | D184: Secondary cycle route | E184: MCCORD ST | G184: CONCRETE | H184: 69.044997 | J184: 148.52 | K184: 10254.56295 | P184: 0 | Q184: 0 | R184: 0 | S184: 2016 | T184: 11112
B185: BK9002S00239 | D185: Secondary cycle route | E185: MCCORD ST | G185: CONCRETE | H185: 161.143243 | J185: 148.52 | K185: 23932.99445 | P185: 0 | Q185: 0 | R185: 0 | S185: 2016 | T185: 25934
B186: BK9002S00102 | D186: Primary cycle route | E186: MCDONALD RD | G186: CONCRETE | H186: 53.948787 | J186: 148.52 | K186: 8012.473845 | P186: 8.94296173 | Q186: 148.0000004 | R186: 1323.55834 | S186: 2016 | T186: 10119
B187: BK9002S00324 | D187: Secondary cycle route | E187: MORNINGTON ST | G187: CONCRETE | H187: 387.923795 | J187: 148.52 | K187: 57614.44203 | P187: 0 | Q187: 0 | R187: 0 | S187: 2016 | T187: 62430
B188: BK9002S00325 | D188: Secondary cycle route | E188: MORNINGTON ST | G188: CONCRETE | H188: 456.604455 | J188: 148.52 | K188: 67814.89366 | P188: 0 | Q188: 0 | R188: 0 | S188: 2016 | T188: 73484
B189: BK9002S00234 | D189: Primary cycle route | E189: MURRAY ST | G189: CONCRETE | H189: 2299.841787 | J189: 148.52 | K189: 341572.5022 | P189: 0 | Q189: 0 | R189: 0 | S189: 2016 | T189: 370124
B190: BK9002S00179 | D190: Primary cycle route | E190: NOBLE ST | G190: CONCRETE | H190: 1329.274506 | J190: 148.52 | K190: 197423.8496 | P190: 0 | Q190: 0 | R190: 0 | S190: 2016 | T190: 213926
B191: BK9002S00377 | D191: Primary cycle route | E191: NOBLE ST | G191: CONCRETE | H191: 368.718245 | J191: 148.52 | K191: 54762.03375 | P191: 0 | Q191: 0 | R191: 0 | S191: 2016 | T191: 59340
B192: BK9002S00439 | D192: Primary cycle route | E192: NORMAN AVE | G192: CONCRETE | H192: 443.714982 | J192: 148.52 | K192: 65900.54913 | P192: 0 | Q192: 0 | R192: 0 | S192: 2016 | T192: 71409
B193: BK9002S00438 | D193: Primary cycle route | E193: NORMAN AVE | G193: CONCRETE | H193: 1045.972734 | J193: 148.52 | K193: 155347.8705 | P193: 0 | Q193: 0 | R193: 0 | S193: 2016 | T193: 168333
B194: BK9002S00100 | D194: Secondary cycle route | E194: NORMAN AVE | G194: CONCRETE | H194: 72.517719 | J194: 148.52 | K194: 10770.33163 | P194: 0 | Q194: 0 | R194: 0 | S194: 2016 | T194: 11671
B195: BK9002S00002 | D195: Primary cycle route | E195: SHAND ST | G195: CONCRETE | H195: 94.635077 | J195: 148.52 | K195: 14055.20164 | P195: 0 | Q195: 0 | R195: 0 | S195: 2016 | T195: 15230
B196: BK9002S00131 | D196: Primary cycle route | E196: SHAND ST | G196: CONCRETE | H196: 129.739579 | J196: 148.52 | K196: 19268.92227 | P196: 0 | Q196: 0 | R196: 0 | S196: 2016 | T196: 20880
B197: BK9002S00058 | D197: Secondary cycle route | E197: SHAND ST | G197: CONCRETE | H197: 101.555519 | J197: 148.52 | K197: 15083.02568 | P197: 0 | Q197: 0 | R197: 0 | S197: 2016 | T197: 16344
B198: BK9002S00282 | D198: Secondary cycle route | E198: SHAND STREET | G198: CONCRETE | H198: 91.525923 | J198: 148.52 | K198: 13593.43008 | P198: 0 | Q198: 0 | R198: 0 | S198: 2016 | T198: 14730
B199: BK9002S00283 | D199: Secondary cycle route | E199: SHAND STREET | G199: CONCRETE | H199: 38.993899 | J199: 148.52 | K199: 5791.373879 | P199: 0 | Q199: 0 | R199: 0 | S199: 2016 | T199: 6275
B200: BK9002S00284 | D200: Secondary cycle route | E200: SHAND STREET | G200: CONCRETE | H200: 171.903986 | J200: 148.52 | K200: 25531.18 | P200: 0 | Q200: 0 | R200: 0 | S200: 2016 | T200: 27665
B201: BK9002S00285 | D201: Secondary cycle route | E201: SHAND STREET | G201: CONCRETE | H201: 87.63112 | J201: 148.52 | K201: 13014.97394 | P201: 0 | Q201: 0 | R201: 0 | S201: 2016 | T201: 14103
B202: BK9002S00286 | D202: Secondary cycle route | E202: SHAND STREET | G202: CONCRETE | H202: 213.481915 | J202: 148.52 | K202: 31706.33402 | P202: 0 | Q202: 0 | R202: 0 | S202: 2016 | T202: 34357
B203: BK9002S00110 | D203: Primary cycle route | E203: SOMERSET ST | G203: CONCRETE | H203: 758.783282 | J203: 148.52 | K203: 112694.493 | P203: 0 | Q203: 0 | R203: 0 | S203: 2016 | T203: 122115
B204: BK9002S00024 | D204: Secondary cycle route | E204: STAFFORD RD | G204: CONCRETE | H204: 348.442562 | J204: 148.52 | K204: =J204*H204 -> 51750.68931 | P204: 0 | Q204: =IFERROR(R204/P204,0) -> 0 | R204: 0 | S204: 2016 | T204: 56077
... 1277 more rows

Sheet Exist Trunk Assets - Ferry
B2: Brisbane City Council
B3: Ferry
B5: EXISTING TRUNK ASSETS
B8: Land Valuation Type | D8: Location
H10: Asset Data | T10: Catchment Asset Allocation
B11: Basic Asset Data | G11: Asset Attributes | J11: Basic Asset Valuation | O11: Land Attributes | S11: Refined Asset Value | T11: Cost Allocation
B12: Asset ID | C12: LGIP ID | D12: Asset Class | E12: Asset Name | F12: Description | G12: Unit Rate Type (*) | H12: Length/unit (*) | I12: Hierarchy/Name | J12: Construction Unit Rate | K12: Baseline Valuation | L12: Site/Condition | M12: Multiplier | N12: Construction Cost ($) | O12: Land Location/Type | P12: Size of land (m2) | Q12: Land Unit Rate ($/m2) | R12: Land Value | S12: Valuation Year | T12: Replacement Cost
B13: Councils ID (from GIS, FAR, AMA etc.) | C13: ID from the LGIP drawings | D13: Arterial, Subarterial, Collector | K13: May be calculated from unit rates OR unique values can be direct entered
B14: Apollo Road | F14: Apollo Rd, Bulimba (CityCat) | K14: 1750000 | M14: =IF(L14="",1,VLOOKUP(L14,Roadsitecond,2,FALSE)) -> 1 | N14: =IF(K14="","",K14*M14) -> 1750000 | S14: 2016 | T14: =IFERROR(ROUND((N14*(1+PPI_Existing)^(YEAR-S14))+(R14*((1+LandInd_Existing)^(YEAR-S14))),0),0) -> 1896282
B15: Bretts Wharf | F15: Kingsford Smith Drive, Hamilton (CityCat) | K15: 6435000 | M15: 1 | N15: =IF(K15="","",K15*M15) -> 6435000 | S15: 2016 | T15: 6972899
B16: Bulimba | F16: Oxford St, Bulimba (CityCat & Ferry) | K16: 7800000 | M16: 1 | N16: 7800000 | S16: 2016 | T16: 8451999
B17: Teneriffe (new) | F17: Commercial Rd, Teneriffe (City Cat & Ferry) | K17: 1111000 | M17: 1 | N17: 1111000 | S17: 2016 | T17: 1203868
B18: Gardens Point (QUT) | F18: Alice Street, Brisbane City (CityCat & Ferry) | K18: 11407500 | M18: 1 | N18: 11407500 | S18: 2016 | T18: 12361049
B19: Guyatt Park | F19: Macquarie St, St Lucia (CityCat) | K19: 2455000 | M19: 1 | N19: 2455000 | S19: 2016 | T19: 2660213
B20: Hawthorne | F20: Gordon St, Hawthorne (CityCat) | K20: 7800000 | M20: 1 | N20: 7800000 | S20: 2016 | T20: 8451999
B21: Holman Street | F21: Holman St, Kangaroo Point (Ferry) | K21: 9360000 | M21: 1 | N21: 9360000 | S21: 2016 | T21: 10142399
B22: Mowbray Park | F22: Park Avenue, East Brisbane (CityCat & Ferry) | K22: 3006000 | M22: 1 | N22: 3006000 | S22: 2016 | T22: 3257270
B23: New Farm Park | F23: Brunswick Street, New Farm (CityCat) | K23: 2767000 | M23: 1 | N23: 2767000 | S23: 2016 | T23: 2998293
B24: Norman Park | F24: Wynnum Rd, Norman Park (Ferry only) | K24: 769000 | M24: 1 | N24: 769000 | S24: 2016 | T24: 833280
B25: North Quay 1 & 2 | F25: Queens Wharf Rd, North Quay (CityCat & Ferry) | K25: 11017500 | M25: 1 | N25: 11017500 | S25: 2016 | T25: 11938449
B26: Regatta | F26: Coronation Drive, Toowong (CityCat) | K26: 9067500 | M26: 1 | N26: 9067500 | S26: 2016 | T26: 9825449
B27: River Plaza (Maritime Museum) | F27: Dock Street, South Brisbane (Ferry) | K27: 6142500 | M27: 1 | N27: 6142500 | S27: 2016 | T27: 6655949
B28: Riverside 1 & 2 | F28: Eagle Street, Brisbane (CityCat) | K28: 9330000 | M28: 1 | N28: 9330000 | S28: 2016 | T28: 10109891
B29: South Bank 1 & 2 | F29: Southbank Parklands (City Cat) | K29: 2598000 | M29: 1 | N29: 2598000 | S29: 2016 | T29: 2815166
B30: Sydney Street | F30: Sydney Street, New Farm (CityCat & Ferry) | K30: 9262500 | M30: 1 | N30: 9262500 | S30: 2016 | T30: 10036749
B31: Thornton Street | F31: Thornton Street, Kangaroo Point (Ferry) | K31: 1010000 | M31: 1 | N31: 1010000 | S31: 2016 | T31: 1094426
B32: The University of Queensland | F32: Sir William Macgregor Drive, St Lucia (CityCat) | K32: 12090000 | M32: 1 | N32: 12090000 | S32: 2016 | T32: 13100599
B33: West End | F33: Hoogley Street, West End (CityCat) | K33: 4777000 | M33: 1 | N33: 4777000 | S33: 2016 | T33: 5176308
B34: Dockside* | F34: Ferry Street, Kangaroo Point (Ferry) | K34: 691000 | M34: 1 | N34: 691000 | S34: 2016 | T34: 748760
B35: Eagle Street | F35: Eagle Street, Brisbane City (Ferry) | K35: 696000 | M35: 1 | N35: 696000 | S35: 2016 | T35: 754178
B36: South Bank 3 | F36: Southbank Parklands (Ferry) | K36: 1156000 | M36: 1 | N36: 1156000 | S36: 2016 | T36: 1252630
B37: Northshore Hamilton | F37: Macarthur Ave, Hamilton (CityCat) | K37: 4712000 | M37: 1 | N37: 4712000 | S37: 2016 | T37: 5105874
B38: Marine Straddle Carrier | F38: Rivergate Marina, Rivergate Pl, Murrarie | K38: 367000 | M38: 1 | N38: 367000 | S38: 2016 | T38: 397677
B39: Milton Ferry Terminal (18/1/15) | F39: Coronation Drive, Milton | K39: 8875000 | M39: 1 | N39: 8875000 | S39: 2016 | T39: 9616858
B40: SLU-FT-002 | F40: Guyatt Park Ferry terminal | K40: 7875000 | M40: 1 | N40: 11192403 | S40: 2016 | T40: 12127972
B41: SBR-FT-003 | F41: South Bank 3 Ferry terminal | K41: 8100000 | M41: 1 | N41: 11512186 | S41: 2016 | T41: 12474486
B42: NWF-FT-002 | F42: New Farm Park Ferry terminal | K42: 7440000 | M42: 1 | N42: 10574156 | S42: 2016 | T42: 11458046
K43: =SUM(K14:K39) -> 136452500 | N43: =SUM(N14:N39) -> 136452500 | T43: =SUM(T14:T42) -> 183919018

Sheet Future Trunk Assets - Pathway
B2: ='Navigation Pane'!B2 -> Brisbane City Council
B4: Pathway
A5: Return to "Future Trunk Assets"
B6: Future Trunk Assets - Pathway
B8: Data Refernces | E8: 1. Project costs are on costs to undertake detailed design, survey, geotechnical investigations, project management, and supervision of construction works and obtain certification from a Registered Professional Engineer of Queensland. Project costs equate to 23% of the direct and indirect embellishment costs. 2. Contingency costs are based on the project delivery date, and applied to the direct construction cost, indirect construction cost and project cost. Contingencies equate to 7.5% for projects with a delivery date up to 2024, 15% for projects with a delivery date up to 2029 and 20% for projects with a delivery date up to 2034. 3. Total embellishment cost is the sum of direct embellishment cost, indirect embellishment cost, project cost and construction contingency cost. 4. Terminal Value Adjustment is only applicable to items that have an estimated completion date between 2026 and 2036, items value exceeds 20% of the total network value in the same catchment and same year of provision, and items catchment has spare capacity greater than 30%. 5. Total embellishment cost is the sum of direct embellishment cost, indirect embellishment cost, project cost and construction contingency cost.
B11: Land Valuation Type | D11: Location
H13: Asset Data | AH13: Catchment Asset Allocation
B14: Basic Asset Data | G14: Asset Attributes | J14: Land Attributes | N14: Basic Asset Valuation | W14: Refined Asset Value | AH14: Citywide
B15: Asset ID | C15: LGIP ID | D15: Project Type | E15: Service Catchment | F15: Description | G15: Unit Rate Type (*) | H15: Length (m) | I15: Hierarchy/Name | J15: Land Location/Type | K15: Size of Land (m2) | L15: Land Unit Rate ($/m2) | M15: Land Value | N15: Construction Unit Rate ($/m) | O15: Direct Construction Cost | P15: Valuation Year | Q15: Base Est Escalation | R15: Site/Condition | S15: Project Owners Cost (23% Direct Construction Cost)($) | T15: Construction Contingency Rate % | U15: Construction Contingency Cost ($) | V15: Grants and Subsidies ($) | W15: Year of Provision | X15: Escalation | Y15: Total Construction Cost ($) | Z15: Spare Capacity (%) | AA15: Share of the total Cost with the same year of provision % | AB15: Terminal Value Analysis | AC15: Terminal Value Adjustment (%) | AD15: Establishment Cost | AE15: Establishment Cost (Escalated) | AF15: Net Present Value of Establishment Cost | AG15: NPV Establishment Cost after Terminal Value Adjustment | AH15: Cost Allocation | AI15: Cost Allocation for Service Cost Schedule
B16: Councils ID (from GIS, FAR, AMA etc.) | C16: ID from the LGIP drawings | O16: May be calculated from unit rates OR unique values can be direct entered | Z16: Applicable to project year of provision at 2029 or 2034 | AC16: % of cost which is relevant for Summary Cost Calculation | AE16: Gross cost (used for CF forecasts) | AF16: Adjusted Current Day Value | AG16: For Summary Cost Calculation
B17: APT153 | C17: ALB-SB-001 | D17: Cycle Route (Secondary) | E17: Citywide | F17: Grafton Street to Hudson Road (QR railway overpass) | H17: 178 | I17: Cycle Route (Secondary) | K17: 1114 | L17: =IF(Table3[[#This Row],[Size of Land (m2)]]=0,0,Table3[[#This Row],[Land Value]]/Table3[[#This Row],[Size of Land (m2)]]) -> 474.2872531 | M17: 528356 | N17: =Table3[[#This Row],[Direct Construction Cost]]/Table3[[#This Row],[Length (m)]] -> 12812 | O17: 2280536 | P17: 2021 | Q17: 0.01 | S17: =ROUND((O17)*23%,0) -> 524523 | T17: =IF(W17="","",IF(W17<=YEAR+5,0.075,IF(AND(W17>YEAR+5,W17<=YEAR+10),0.15,IF(AND(W17>YEAR+10,W17<=YEAR+20),0.2,IF(W17>YEAR+20,0.25,""))))) -> 0.15 | U17: =ROUND((O17+S17)*T17,0) -> 420759 | V17: 0 | W17: 2029 | X17: =(1+PPI)^(W17-YEAR) -> 1.155263475 | Y17: =ROUND(U17+S17+O17,0) -> 3225818 | Z17: =IFERROR(IF(Table3[[#This Row],[Year of Provision]]>2024,VLOOKUP(Table3[[#This Row],[Service Catchment]],'Catchment Demand - Pathway'!C$8:M$8,11,FALSE),""),"") -> 0.3396007115 | AA17: =_xlfn.IFS(Table3[[#This Row],[Year of Provision]]=2024,0,Table3[[#This Row],[Year of Provision]]=2029,Table3[[#This Row],[Net Present Value of Establishment Cost]]/SUMIFS($AF$17:$AF$102,$W$17:$W$102,"2029",$E$17:$E$102,Table3[[#This Row],[Service Catchment]]),Table3[[#This Row],[Year of Provision]]=2034,Table3[[#This Row],[Net Present Value of Establishment Cost]]/SUMIFS($AF$17:$AF$102,$W$17:$W$102,"2034",$E$17:$E$102,Table3[[#This Row],[Service Catchment]])) -> 0.01191385413 | AB17: =IF(AND(Table3[[#This Row],[Spare Capacity (%)]]>30%,Table3[[#This Row],[Share of the total Cost with the same year of provision %]]>20%),(1-Table3[[#This Row],[Spare Capacity (%)]]),1) -> 1 | AC17: =IF(Table3[[#This Row],[Terminal Value Analysis]]<0,0,Table3[[#This Row],[Terminal Value Analysis]]) -> 1 | AD17: =ROUND(Y17+M17-Table3[[#This Row],[Grants and Subsidies ($)]],0) -> 3754174 | AE17: =IFERROR(ROUND((Y17*X17+(M17*((1+Landind)^(W17-YEAR)))),0),0) -> 4346266 | AF17: =ROUND((AE17*(1/(1+WACC))^(W17-YEAR)),0) -> 2745494 | AG17: =Table3[[#This Row],[Net Present Value of Establishment Cost]]*Table3[[#This Row],[Terminal Value Adjustment (%)]] -> 2745494 | AH17: =AF17 -> 2745494 | AI17: =Table3[[#This Row],[Net Present Value of Establishment Cost]]*Table3[[#This Row],[Terminal Value Adjustment (%)]] -> 2745494
B18: APT153 | C18: ALB-SP-004 | D18: Cycle Route (Secondary) | E18: Citywide | F18: Albion Bikeway (Cooksley Street to Crosby Park) | H18: 171 | I18: Cycle Route (Secondary) | K18: 1193 | L18: =IF(Table3[[#This Row],[Size of Land (m2)]]=0,0,Table3[[#This Row],[Land Value]]/Table3[[#This Row],[Size of Land (m2)]]) -> 636.6881811 | M18: 759569 | N18: =Table3[[#This Row],[Direct Construction Cost]]/Table3[[#This Row],[Length (m)]] -> 815.6140351 | O18: 139470 | P18: 2021 | Q18: 0.01 | S18: 32078 | T18: 0.075 | U18: 12866 | V18: 0 | W18: 2024 | X18: =(1+PPI)^(W18-YEAR) -> 1.055614607 | Y18: 184414 | Z18: =IFERROR(IF(Table3[[#This Row],[Year of Provision]]>2024,VLOOKUP(Table3[[#This Row],[Service Catchment]],'Catchment Demand - Pathway'!C$8:M$8,11,FALSE),""),"") ->  | AA18: =_xlfn.IFS(Table3[[#This Row],[Year of Provision]]=2024,0,Table3[[#This Row],[Year of Provision]]=2029,Table3[[#This Row],[Net Present Value of Establishment Cost]]/SUMIFS($AF$17:$AF$102,$W$17:$W$102,"2029",$E$17:$E$102,Table3[[#This Row],[Service Catchment]]),Table3[[#This Row],[Year of Provision]]=2034,Table3[[#This Row],[Net Present Value of Establishment Cost]]/SUMIFS($AF$17:$AF$102,$W$17:$W$102,"2034",$E$17:$E$102,Table3[[#This Row],[Service Catchment]])) -> 0 | AB18: =IF(AND(Table3[[#This Row],[Spare Capacity (%)]]>30%,Table3[[#This Row],[Share of the total Cost with the same year of provision %]]>20%),(1-Table3[[#This Row],[Spare Capacity (%)]]),1) -> 1 | AC18: =IF(Table3[[#This Row],[Terminal Value Analysis]]<0,0,Table3[[#This Row],[Terminal Value Analysis]]) -> 1 | AD18: =ROUND(Y18+M18-Table3[[#This Row],[Grants and Subsidies ($)]],0) -> 943983 | AE18: 1000996 | AF18: 842600 | AG18: =Table3[[#This Row],[Net Present Value of Establishment Cost]]*Table3[[#This Row],[Terminal Value Adjustment (%)]] -> 842600 | AH18: 842600 | AI18: =Table3[[#This Row],[Net Present Value of Establishment Cost]]*Table3[[#This Row],[Terminal Value Adjustment (%)]] -> 842600
B19: APT92, APT91 | C19: BRD-SP-003 | D19: Cycle Route (Secondary) | E19: Citywide | F19: Cabbage Tree Creek Bikeway (Terraldon Place to Albany Creek Road) | H19: 123 | I19: Cycle Route (Secondary) | K19: 568 | L19: =IF(Table3[[#This Row],[Size of Land (m2)]]=0,0,Table3[[#This Row],[Land Value]]/Table3[[#This Row],[Size of Land (m2)]]) -> 9.903169014 | M19: 5625 | N19: =Table3[[#This Row],[Direct Construction Cost]]/Table3[[#This Row],[Length (m)]] -> 815.6178862 | O19: 100321 | P19: 2021 | Q19: 0.01 | S19: 23074 | T19: 0.15 | U19: 18509 | V19: 0 | W19: 2029 | X19: 1.155263475 | Y19: 141904 | Z19: =IFERROR(IF(Table3[[#This Row],[Year of Provision]]>2024,VLOOKUP(Table3[[#This Row],[Service Catchment]],'Catchment Demand - Pathway'!C$8:M$8,11,FALSE),""),"") -> 0.3396007115 | AA19: =_xlfn.IFS(Table3[[#This Row],[Year of Provision]]=2024,0,Table3[[#This Row],[Year of Provision]]=2029,Table3[[#This Row],[Net Present Value of Establishment Cost]]/SUMIFS($AF$17:$AF$102,$W$17:$W$102,"2029",$E$17:$E$102,Table3[[#This Row],[Service Catchment]]),Table3[[#This Row],[Year of Provision]]=2034,Table3[[#This Row],[Net Present Value of Establishment Cost]]/SUMIFS($AF$17:$AF$102,$W$17:$W$102,"2034",$E$17:$E$102,Table3[[#This Row],[Service Catchment]])) -> 0.0004674597803 | AB19: =IF(AND(Table3[[#This Row],[Spare Capacity (%)]]>30%,Table3[[#This Row],[Share of the total Cost with the same year of provision %]]>20%),(1-Table3[[#This Row],[Spare Capacity (%)]]),1) -> 1 | AC19: =IF(Table3[[#This Row],[Terminal Value Analysis]]<0,0,Table3[[#This Row],[Terminal Value Analysis]]) -> 1 | AD19: =ROUND(Y19+M19-Table3[[#This Row],[Grants and Subsidies ($)]],0) -> 147529 | AE19: 170533 | AF19: 107724 | AG19: =Table3[[#This Row],[Net Present Value of Establishment Cost]]*Table3[[#This Row],[Terminal Value Adjustment (%)]] -> 107724 | AH19: 107724 | AI19: =Table3[[#This Row],[Net Present Value of Establishment Cost]]*Table3[[#This Row],[Terminal Value Adjustment (%)]] -> 107724
B20: APT71 | C20: BRD-SP-004 | D20: Cycle Route (Secondary) | E20: Citywide | F20: Priestly Road Bikeway (Tiverton Place to Camelot Place) | H20: 325 | I20: Cycle Route (Secondary) | K20: 2032 | L20: =IF(Table3[[#This Row],[Size of Land (m2)]]=0,0,Table3[[#This Row],[Land Value]]/Table3[[#This Row],[Size of Land (m2)]]) -> 14.36023622 | M20: 29180 | N20: =Table3[[#This Row],[Direct Construction Cost]]/Table3[[#This Row],[Length (m)]] -> 736.0430769 | O20: 239214 | P20: 2021 | Q20: 0.01 | S20: 55019 | T20: 0.15 | U20: 44135 | V20: 0 | W20: 2029 | X20: 1.155263475 | Y20: 338368 | Z20: =IFERROR(IF(Table3[[#This Row],[Year of Provision]]>2024,VLOOKUP(Table3[[#This Row],[Service Catchment]],'Catchment Demand - Pathway'!C$8:M$8,11,FALSE),""),"") -> 0.3396007115 | AA20: =_xlfn.IFS(Table3[[#This Row],[Year of Provision]]=2024,0,Table3[[#This Row],[Year of Provision]]=2029,Table3[[#This Row],[Net Present Value of Establishment Cost]]/SUMIFS($AF$17:$AF$102,$W$17:$W$102,"2029",$E$17:$E$102,Table3[[#This Row],[Service Catchment]]),Table3[[#This Row],[Year of Provision]]=2034,Table3[[#This Row],[Net Present Value of Establishment Cost]]/SUMIFS($AF$17:$AF$102,$W$17:$W$102,"2034",$E$17:$E$102,Table3[[#This Row],[Service Catchment]])) -> 0.001165334133 | AB20: =IF(AND(Table3[[#This Row],[Spare Capacity (%)]]>30%,Table3[[#This Row],[Share of the total Cost with the same year of provision %]]>20%),(1-Table3[[#This Row],[Spare Capacity (%)]]),1) -> 1 | AC20: =IF(Table3[[#This Row],[Terminal Value Analysis]]<0,0,Table3[[#This Row],[Terminal Value Analysis]]) -> 1 | AD20: =ROUND(Y20+M20-Table3[[#This Row],[Grants and Subsidies ($)]],0) -> 367548 | AE20: 425123 | AF20: 268546 | AG20: =Table3[[#This Row],[Net Present Value of Establishment Cost]]*Table3[[#This Row],[Terminal Value Adjustment (%)]] -> 268546 | AH20: 268546 | AI20: =Table3[[#This Row],[Net Present Value of Establishment Cost]]*Table3[[#This Row],[Terminal Value Adjustment (%)]] -> 268546
B21: APT71 | C21: BRD-SP-005 | D21: Cycle Route (Secondary) | E21: Citywide | F21: Bridgeman Downs Bikeway (Neville Road to Bridgeman Road) | H21: 532 | I21: Cycle Route (Secondary) | K21: 3348 | L21: =IF(Table3[[#This Row],[Size of Land (m2)]]=0,0,Table3[[#This Row],[Land Value]]/Table3[[#This Row],[Size of Land (m2)]]) -> 62.57437276 | M21: 209499 | N21: =Table3[[#This Row],[Direct Construction Cost]]/Table3[[#This Row],[Length (m)]] -> 736.0432331 | O21: 391575 | P21: 2021 | Q21: 0.01 | S21: 90062 | T21: 0.15 | U21: 72246 | V21: 0 | W21: 2029 | X21: 1.155263475 | Y21: 553883 | Z21: =IFERROR(IF(Table3[[#This Row],[Year of Provision]]>2024,VLOOKUP(Table3[[#This Row],[Service Catchment]],'Catchment Demand - Pathway'!C$8:M$8,11,FALSE),""),"") -> 0.3396007115 | AA21: =_xlfn.IFS(Table3[[#This Row],[Year of Provision]]=2024,0,Table3[[#This Row],[Year of Provision]]=2029,Table3[[#This Row],[Net Present Value of Establishment Cost]]/SUMIFS($AF$17:$AF$102,$W$17:$W$102,"2029",$E$17:$E$102,Table3[[#This Row],[Service Catchment]]),Table3[[#This Row],[Year of Provision]]=2034,Table3[[#This Row],[Net Present Value of Establishment Cost]]/SUMIFS($AF$17:$AF$102,$W$17:$W$102,"2034",$E$17:$E$102,Table3[[#This Row],[Service Catchment]])) -> 0.00242746339 | AB21: =IF(AND(Table3[[#This Row],[Spare Capacity (%)]]>30%,Table3[[#This Row],[Share of the total Cost with the same year of provision %]]>20%),(1-Table3[[#This Row],[Spare Capacity (%)]]),1) -> 1 | AC21: =IF(Table3[[#This Row],[Terminal Value Analysis]]<0,0,Table3[[#This Row],[Terminal Value Analysis]]) -> 1 | AD21: =ROUND(Y21+M21-Table3[[#This Row],[Grants and Subsidies ($)]],0) -> 763382 | AE21: 885558 | AF21: 559398 | AG21: =Table3[[#This Row],[Net Present Value of Establishment Cost]]*Table3[[#This Row],[Terminal Value Adjustment (%)]] -> 559398 | AH21: 559398 | AI21: =Table3[[#This Row],[Net Present Value of Establishment Cost]]*Table3[[#This Row],[Terminal Value Adjustment (%)]] -> 559398
B22: APT72, APT71 | C22: BRD-SP-006 | D22: Cycle Route (Secondary) | E22: Citywide | F22: Bridgeman Downs Bikeway (Bridgeman Road to Retreat Street) | H22: 439 | I22: Cycle Route (Secondary) | K22: 2762 | L22: =IF(Table3[[#This Row],[Size of Land (m2)]]=0,0,Table3[[#This Row],[Land Value]]/Table3[[#This Row],[Size of Land (m2)]]) -> 118.3870384 | M22: 326985 | N22: =Table3[[#This Row],[Direct Construction Cost]]/Table3[[#This Row],[Length (m)]] -> 736.0432802 | O22: 323123 | P22: 2021 | Q22: 0.01 | S22: 74318 | T22: 0.15 | U22: 59616 | V22: 0 | W22: 2029 | X22: 1.155263475 | Y22: 457057 | Z22: =IFERROR(IF(Table3[[#This Row],[Year of Provision]]>2024,VLOOKUP(Table3[[#This Row],[Service Catchment]],'Catchment Demand - Pathway'!C$8:M$8,11,FALSE),""),"") -> 0.3396007115 | AA22: =_xlfn.IFS(Table3[[#This Row],[Year of Provision]]=2024,0,Table3[[#This Row],[Year of Provision]]=2029,Table3[[#This Row],[Net Present Value of Establishment Cost]]/SUMIFS($AF$17:$AF$102,$W$17:$W$102,"2029",$E$17:$E$102,Table3[[#This Row],[Service Catchment]]),Table3[[#This Row],[Year of Provision]]=2034,Table3[[#This Row],[Net Present Value of Establishment Cost]]/SUMIFS($AF$17:$AF$102,$W$17:$W$102,"2034",$E$17:$E$102,Table3[[#This Row],[Service Catchment]])) -> 0.00249850405 | AB22: =IF(AND(Table3[[#This Row],[Spare Capacity (%)]]>30%,Table3[[#This Row],[Share of the total Cost with the same year of provision %]]>20%),(1-Table3[[#This Row],[Spare Capacity (%)]]),1) -> 1 | AC22: =IF(Table3[[#This Row],[Terminal Value Analysis]]<0,0,Table3[[#This Row],[Terminal Value Analysis]]) -> 1 | AD22: =ROUND(Y22+M22-Table3[[#This Row],[Grants and Subsidies ($)]],0) -> 784042 | AE22: 911473 | AF22: 575769 | AG22: =Table3[[#This Row],[Net Present Value of Establishment Cost]]*Table3[[#This Row],[Terminal Value Adjustment (%)]] -> 575769 | AH22: 575769 | AI22: =Table3[[#This Row],[Net Present Value of Establishment Cost]]*Table3[[#This Row],[Terminal Value Adjustment (%)]] -> 575769
B23: APT174 | C23: BUL-RW-004 | D23: RiverWalk | E23: Citywide | F23: Morningside Riverwalk (Apollo Road to Taylor Street) | H23: 762 | I23: RiverWalk | K23: 0 | L23: =IF(Table3[[#This Row],[Size of Land (m2)]]=0,0,Table3[[#This Row],[Land Value]]/Table3[[#This Row],[Size of Land (m2)]]) -> 0 | M23: 0 | N23: =Table3[[#This Row],[Direct Construction Cost]]/Table3[[#This Row],[Length (m)]] -> 3003 | O23: 2288286 | P23: 2021 | Q23: 0.01 | S23: 526306 | T23: 0.075 | U23: 211094 | V23: 0 | W23: 2024 | X23: 1.055614607 | Y23: 3025686 | Z23: =IFERROR(IF(Table3[[#This Row],[Year of Provision]]>2024,VLOOKUP(Table3[[#This Row],[Service Catchment]],'Catchment Demand - Pathway'!C$8:M$8,11,FALSE),""),"") ->  | AA23: =_xlfn.IFS(Table3[[#This Row],[Year of Provision]]=2024,0,Table3[[#This Row],[Year of Provision]]=2029,Table3[[#This Row],[Net Present Value of Establishment Cost]]/SUMIFS($AF$17:$AF$102,$W$17:$W$102,"2029",$E$17:$E$102,Table3[[#This Row],[Service Catchment]]),Table3[[#This Row],[Year of Provision]]=2034,Table3[[#This Row],[Net Present Value of Establishment Cost]]/SUMIFS($AF$17:$AF$102,$W$17:$W$102,"2034",$E$17:$E$102,Table3[[#This Row],[Service Catchment]])) -> 0 | AB23: =IF(AND(Table3[[#This Row],[Spare Capacity (%)]]>30%,Table3[[#This Row],[Share of the total Cost with the same year of provision %]]>20%),(1-Table3[[#This Row],[Spare Capacity (%)]]),1) -> 1 | AC23: =IF(Table3[[#This Row],[Terminal Value Analysis]]<0,0,Table3[[#This Row],[Terminal Value Analysis]]) -> 1 | AD23: =ROUND(Y23+M23-Table3[[#This Row],[Grants and Subsidies ($)]],0) -> 3025686 | AE23: 3193958 | AF23: 2688551 | AG23: =Table3[[#This Row],[Net Present Value of Establishment Cost]]*Table3[[#This Row],[Terminal Value Adjustment (%)]] -> 2688551 | AH23: 2688551 | AI23: =Table3[[#This Row],[Net Present Value of Establishment Cost]]*Table3[[#This Row],[Terminal Value Adjustment (%)]] -> 2688551
B24: APT174, APT154, APT153 | C24: BUL-RW-005 | D24: RiverWalk | E24: Citywide | F24: Bulimba Riverwalk (Riverside of 1-5 McConnell Street, and 3-69 Byron Street, Bulimba) | H24: 431 | I24: RiverWalk | K24: 0 | L24: =IF(Table3[[#This Row],[Size of Land (m2)]]=0,0,Table3[[#This Row],[Land Value]]/Table3[[#This Row],[Size of Land (m2)]]) -> 0 | M24: 0 | N24: =Table3[[#This Row],[Direct Construction Cost]]/Table3[[#This Row],[Length (m)]] -> 3003 | O24: 1294293 | P24: 2021 | Q24: 0.01 | S24: 297687 | T24: 0.075 | U24: 119399 | V24: 0 | W24: 2024 | X24: 1.055614607 | Y24: 1711379 | Z24: =IFERROR(IF(Table3[[#This Row],[Year of Provision]]>2024,VLOOKUP(Table3[[#This Row],[Service Catchment]],'Catchment Demand - Pathway'!C$8:M$8,11,FALSE),""),"") ->  | AA24: =_xlfn.IFS(Table3[[#This Row],[Year of Provision]]=2024,0,Table3[[#This Row],[Year of Provision]]=2029,Table3[[#This Row],[Net Present Value of Establishment Cost]]/SUMIFS($AF$17:$AF$102,$W$17:$W$102,"2029",$E$17:$E$102,Table3[[#This Row],[Service Catchment]]),Table3[[#This Row],[Year of Provision]]=2034,Table3[[#This Row],[Net Present Value of Establishment Cost]]/SUMIFS($AF$17:$AF$102,$W$17:$W$102,"2034",$E$17:$E$102,Table3[[#This Row],[Service Catchment]])) -> 0 | AB24: =IF(AND(Table3[[#This Row],[Spare Capacity (%)]]>30%,Table3[[#This Row],[Share of the total Cost with the same year of provision %]]>20%),(1-Table3[[#This Row],[Spare Capacity (%)]]),1) -> 1 | AC24: =IF(Table3[[#This Row],[Terminal Value Analysis]]<0,0,Table3[[#This Row],[Terminal Value Analysis]]) -> 1 | AD24: =ROUND(Y24+M24-Table3[[#This Row],[Grants and Subsidies ($)]],0) -> 1711379 | AE24: 1806557 | AF24: 1520690 | AG24: =Table3[[#This Row],[Net Present Value of Establishment Cost]]*Table3[[#This Row],[Terminal Value Adjustment (%)]] -> 1520690 | AH24: 1520690 | AI24: =Table3[[#This Row],[Net Present Value of Establishment Cost]]*Table3[[#This Row],[Terminal Value Adjustment (%)]] -> 1520690
B25: APT215, APT195 | C25: CAR-SP-002 | D25: Cycle Route (Secondary) | E25: Citywide | F25: Carina Bikeway (Fursden Road to Meadowlands Road) | H25: 836 | I25: Cycle Route (Secondary) | K25: 5354 | L25: =IF(Table3[[#This Row],[Size of Land (m2)]]=0,0,Table3[[#This Row],[Land Value]]/Table3[[#This Row],[Size of Land (m2)]]) -> 222.6019798 | M25: 1191811 | N25: =Table3[[#This Row],[Direct Construction Cost]]/Table3[[#This Row],[Length (m)]] -> 736.0430622 | O25: 615332 | P25: 2021 | Q25: 0.01 | S25: 141526 | T25: 0.15 | U25: 113529 | V25: 0 | W25: 2029 | X25: 1.155263475 | Y25: 870387 | Z25: =IFERROR(IF(Table3[[#This Row],[Year of Provision]]>2024,VLOOKUP(Table3[[#This Row],[Service Catchment]],'Catchment Demand - Pathway'!C$8:M$8,11,FALSE),""),"") -> 0.3396007115 | AA25: =_xlfn.IFS(Table3[[#This Row],[Year of Provision]]=2024,0,Table3[[#This Row],[Year of Provision]]=2029,Table3[[#This Row],[Net Present Value of Establishment Cost]]/SUMIFS($AF$17:$AF$102,$W$17:$W$102,"2029",$E$17:$E$102,Table3[[#This Row],[Service Catchment]]),Table3[[#This Row],[Year of Provision]]=2034,Table3[[#This Row],[Net Present Value of Establishment Cost]]/SUMIFS($AF$17:$AF$102,$W$17:$W$102,"2034",$E$17:$E$102,Table3[[#This Row],[Service Catchment]])) -> 0.006587436246 | AB25: =IF(AND(Table3[[#This Row],[Spare Capacity (%)]]>30%,Table3[[#This Row],[Share of the total Cost with the same year of provision %]]>20%),(1-Table3[[#This Row],[Spare Capacity (%)]]),1) -> 1 | AC25: =IF(Table3[[#This Row],[Terminal Value Analysis]]<0,0,Table3[[#This Row],[Terminal Value Analysis]]) -> 1 | AD25: =ROUND(Y25+M25-Table3[[#This Row],[Grants and Subsidies ($)]],0) -> 2062198 | AE25: 2403148 | AF25: 1518045 | AG25: =Table3[[#This Row],[Net Present Value of Establishment Cost]]*Table3[[#This Row],[Terminal Value Adjustment (%)]] -> 1518045 | AH25: 1518045 | AI25: =Table3[[#This Row],[Net Present Value of Establishment Cost]]*Table3[[#This Row],[Terminal Value Adjustment (%)]] -> 1518045
B26: APT92 | C26: CDE-SP-001 | D26: Cycle Route (Secondary) | E26: Citywide | F26: Cabbage Tree Creek Bikeway (Coonawarra Drive to Kentia Street Park) | H26: 66 | I26: Cycle Route (Secondary) | K26: 468 | L26: =IF(Table3[[#This Row],[Size of Land (m2)]]=0,0,Table3[[#This Row],[Land Value]]/Table3[[#This Row],[Size of Land (m2)]]) -> 9.166666667 | M26: 4290 | N26: =Table3[[#This Row],[Direct Construction Cost]]/Table3[[#This Row],[Length (m)]] -> 994.6515152 | O26: 65647 | P26: 2021 | Q26: 0.01 | S26: 15099 | T26: 0.075 | U26: 6056 | V26: 0 | W26: 2024 | X26: 1.055614607 | Y26: 86802 | Z26: =IFERROR(IF(Table3[[#This Row],[Year of Provision]]>2024,VLOOKUP(Table3[[#This Row],[Service Catchment]],'Catchment Demand - Pathway'!C$8:M$8,11,FALSE),""),"") ->  | AA26: =_xlfn.IFS(Table3[[#This Row],[Year of Provision]]=2024,0,Table3[[#This Row],[Year of Provision]]=2029,Table3[[#This Row],[Net Present Value of Establishment Cost]]/SUMIFS($AF$17:$AF$102,$W$17:$W$102,"2029",$E$17:$E$102,Table3[[#This Row],[Service Catchment]]),Table3[[#This Row],[Year of Provision]]=2034,Table3[[#This Row],[Net Present Value of Establishment Cost]]/SUMIFS($AF$17:$AF$102,$W$17:$W$102,"2034",$E$17:$E$102,Table3[[#This Row],[Service Catchment]])) -> 0 | AB26: =IF(AND(Table3[[#This Row],[Spare Capacity (%)]]>30%,Table3[[#This Row],[Share of the total Cost with the same year of provision %]]>20%),(1-Table3[[#This Row],[Spare Capacity (%)]]),1) -> 1 | AC26: =IF(Table3[[#This Row],[Terminal Value Analysis]]<0,0,Table3[[#This Row],[Terminal Value Analysis]]) -> 1 | AD26: =ROUND(Y26+M26-Table3[[#This Row],[Grants and Subsidies ($)]],0) -> 91092 | AE26: 96184 | AF26: 80964 | AG26: =Table3[[#This Row],[Net Present Value of Establishment Cost]]*Table3[[#This Row],[Terminal Value Adjustment (%)]] -> 80964 | AH26: 80964 | AI26: =Table3[[#This Row],[Net Present Value of Establishment Cost]]*Table3[[#This Row],[Terminal Value Adjustment (%)]] -> 80964
B27: APT92 | C27: CDE-SP-002 | D27: Cycle Route (Secondary) | E27: Citywide | F27: Cabbage Tree Creek Bikeway (Kentia Street Park to Kensington Place Park) | H27: 190 | I27: Cycle Route (Secondary) | K27: 1205 | L27: =IF(Table3[[#This Row],[Size of Land (m2)]]=0,0,Table3[[#This Row],[Land Value]]/Table3[[#This Row],[Size of Land (m2)]]) -> 4.644813278 | M27: 5597 | N27: =Table3[[#This Row],[Direct Construction Cost]]/Table3[[#This Row],[Length (m)]] -> 815.6157895 | O27: 154967 | P27: 2021 | Q27: 0.01 | S27: 35642 | T27: 0.075 | U27: 14296 | V27: 0 | W27: 2024 | X27: 1.055614607 | Y27: 204905 | Z27: =IFERROR(IF(Table3[[#This Row],[Year of Provision]]>2024,VLOOKUP(Table3[[#This Row],[Service Catchment]],'Catchment Demand - Pathway'!C$8:M$8,11,FALSE),""),"") ->  | AA27: =_xlfn.IFS(Table3[[#This Row],[Year of Provision]]=2024,0,Table3[[#This Row],[Year of Provision]]=2029,Table3[[#This Row],[Net Present Value of Establishment Cost]]/SUMIFS($AF$17:$AF$102,$W$17:$W$102,"2029",$E$17:$E$102,Table3[[#This Row],[Service Catchment]]),Table3[[#This Row],[Year of Provision]]=2034,Table3[[#This Row],[Net Present Value of Establishment Cost]]/SUMIFS($AF$17:$AF$102,$W$17:$W$102,"2034",$E$17:$E$102,Table3[[#This Row],[Service Catchment]])) -> 0 | AB27: =IF(AND(Table3[[#This Row],[Spare Capacity (%)]]>30%,Table3[[#This Row],[Share of the total Cost with the same year of provision %]]>20%),(1-Table3[[#This Row],[Spare Capacity (%)]]),1) -> 1 | AC27: =IF(Table3[[#This Row],[Terminal Value Analysis]]<0,0,Table3[[#This Row],[Terminal Value Analysis]]) -> 1 | AD27: =ROUND(Y27+M27-Table3[[#This Row],[Grants and Subsidies ($)]],0) -> 210502 | AE27: 222242 | AF27: 187075 | AG27: =Table3[[#This Row],[Net Present Value of Establishment Cost]]*Table3[[#This Row],[Terminal Value Adjustment (%)]] -> 187075 | AH27: 187075 | AI27: =Table3[[#This Row],[Net Present Value of Establishment Cost]]*Table3[[#This Row],[Terminal Value Adjustment (%)]] -> 187075
B28: APT235 | C28: CDL-SP-010 | D28: Cycle Route (Secondary) | E28: Citywide | F28: Bulimba Creek Bikeway (Scrub Road to Eromanga Street Park) | H28: 442 | I28: Cycle Route (Secondary) | K28: 3115 | L28: =IF(Table3[[#This Row],[Size of Land (m2)]]=0,0,Table3[[#This Row],[Land Value]]/Table3[[#This Row],[Size of Land (m2)]]) -> 254.3370787 | M28: 792260 | N28: =Table3[[#This Row],[Direct Construction Cost]]/Table3[[#This Row],[Length (m)]] -> 736.0429864 | O28: 325331 | P28: 2021 | Q28: 0.01 | S28: 74826 | T28: 0.15 | U28: 60024 | V28: 0 | W28: 2029 | X28: 1.155263475 | Y28: 460181 | Z28: =IFERROR(IF(Table3[[#This Row],[Year of Provision]]>2024,VLOOKUP(Table3[[#This Row],[Service Catchment]],'Catchment Demand - Pathway'!C$8:M$8,11,FALSE),""),"") -> 0.3396007115 | AA28: =_xlfn.IFS(Table3[[#This Row],[Year of Provision]]=2024,0,Table3[[#This Row],[Year of Provision]]=2029,Table3[[#This Row],[Net Present Value of Establishment Cost]]/SUMIFS($AF$17:$AF$102,$W$17:$W$102,"2029",$E$17:$E$102,Table3[[#This Row],[Service Catchment]]),Table3[[#This Row],[Year of Provision]]=2034,Table3[[#This Row],[Net Present Value of Establishment Cost]]/SUMIFS($AF$17:$AF$102,$W$17:$W$102,"2034",$E$17:$E$102,Table3[[#This Row],[Service Catchment]])) -> 0.004004040105 | AB28: =IF(AND(Table3[[#This Row],[Spare Capacity (%)]]>30%,Table3[[#This Row],[Share of the total Cost with the same year of provision %]]>20%),(1-Table3[[#This Row],[Spare Capacity (%)]]),1) -> 1 | AC28: =IF(Table3[[#This Row],[Terminal Value Analysis]]<0,0,Table3[[#This Row],[Terminal Value Analysis]]) -> 1 | AD28: =ROUND(Y28+M28-Table3[[#This Row],[Grants and Subsidies ($)]],0) -> 1252441 | AE28: 1460704 | AF28: 922713 | AG28: =Table3[[#This Row],[Net Present Value of Establishment Cost]]*Table3[[#This Row],[Terminal Value Adjustment (%)]] -> 922713 | AH28: 922713 | AI28: =Table3[[#This Row],[Net Present Value of Establishment Cost]]*Table3[[#This Row],[Terminal Value Adjustment (%)]] -> 922713
B29: APT235 | C29: CDL-SP-011 | D29: Cycle Route (Primary) | E29: Citywide | F29: Creek Road (Murarrie to Mount Gravatt) | H29: 858 | I29: Cycle Route (Primary) | K29: 6048 | L29: =IF(Table3[[#This Row],[Size of Land (m2)]]=0,0,Table3[[#This Row],[Land Value]]/Table3[[#This Row],[Size of Land (m2)]]) -> 16.60218254 | M29: 100410 | N29: =Table3[[#This Row],[Direct Construction Cost]]/Table3[[#This Row],[Length (m)]] -> 736.0431235 | O29: 631525 | P29: 2021 | Q29: 0.01 | S29: 145251 | T29: 0.2 | U29: 155355 | V29: 0 | W29: 2034 | X29: 1.264319088 | Y29: 932131 | Z29: =IFERROR(IF(Table3[[#This Row],[Year of Provision]]>2024,VLOOKUP(Table3[[#This Row],[Service Catchment]],'Catchment Demand - Pathway'!C$8:M$8,11,FALSE),""),"") -> 0.3396007115 | AA29: =_xlfn.IFS(Table3[[#This Row],[Year of Provision]]=2024,0,Table3[[#This Row],[Year of Provision]]=2029,Table3[[#This Row],[Net Present Value of Establishment Cost]]/SUMIFS($AF$17:$AF$102,$W$17:$W$102,"2029",$E$17:$E$102,Table3[[#This Row],[Service Catchment]]),Table3[[#This Row],[Year of Provision]]=2034,Table3[[#This Row],[Net Present Value of Establishment Cost]]/SUMIFS($AF$17:$AF$102,$W$17:$W$102,"2034",$E$17:$E$102,Table3[[#This Row],[Service Catchment]])) -> 0.2220227066 | AB29: =IF(AND(Table3[[#This Row],[Spare Capacity (%)]]>30%,Table3[[#This Row],[Share of the total Cost with the same year of provision %]]>20%),(1-Table3[[#This Row],[Spare Capacity (%)]]),1) -> 0.6603992885 | AC29: =IF(Table3[[#This Row],[Terminal Value Analysis]]<0,0,Table3[[#This Row],[Terminal Value Analysis]]) -> 0.6603992885 | AD29: =ROUND(Y29+M29-Table3[[#This Row],[Grants and Subsidies ($)]],0) -> 1032541 | AE29: 1308587 | AF29: 620329 | AG29: =Table3[[#This Row],[Net Present Value of Establishment Cost]]*Table3[[#This Row],[Terminal Value Adjustment (%)]] -> 409664.8302 | AH29: 620329 | AI29: =Table3[[#This Row],[Net Present Value of Establishment Cost]]*Table3[[#This Row],[Terminal Value Adjustment (%)]] -> 409664.8302
B30: APT112 | C30: CHE-SP-010 | D30: Cycle Route (Primary) | E30: Citywide | F30: Downfall Creek Bikeway (Gympie Road Underpass) | H30: 145 | I30: Cycle Route (Primary) | K30: 736 | L30: =IF(Table3[[#This Row],[Size of Land (m2)]]=0,0,Table3[[#This Row],[Land Value]]/Table3[[#This Row],[Size of Land (m2)]]) -> 1.345108696 | M30: 990 | N30: =Table3[[#This Row],[Direct Construction Cost]]/Table3[[#This Row],[Length (m)]] -> 815.6137931 | O30: 118264 | P30: 2021 | Q30: 0.01 | S30: 27201 | T30: 0.2 | U30: 29093 | V30: 0 | W30: 2034 | X30: 1.264319088 | Y30: 174558 | Z30: =IFERROR(IF(Table3[[#This Row],[Year of Provision]]>2024,VLOOKUP(Table3[[#This Row],[Service Catchment]],'Catchment Demand - Pathway'!C$8:M$8,11,FALSE),""),"") -> 0.3396007115 | AA30: =_xlfn.IFS(Table3[[#This Row],[Year of Provision]]=2024,0,Table3[[#This Row],[Year of Provision]]=2029,Table3[[#This Row],[Net Present Value of Establishment Cost]]/SUMIFS($AF$17:$AF$102,$W$17:$W$102,"2029",$E$17:$E$102,Table3[[#This Row],[Service Catchment]]),Table3[[#This Row],[Year of Provision]]=2034,Table3[[#This Row],[Net Present Value of Establishment Cost]]/SUMIFS($AF$17:$AF$102,$W$17:$W$102,"2034",$E$17:$E$102,Table3[[#This Row],[Service Catchment]])) -> 0.03766228142 | AB30: =IF(AND(Table3[[#This Row],[Spare Capacity (%)]]>30%,Table3[[#This Row],[Share of the total Cost with the same year of provision %]]>20%),(1-Table3[[#This Row],[Spare Capacity (%)]]),1) -> 1 | AC30: =IF(Table3[[#This Row],[Terminal Value Analysis]]<0,0,Table3[[#This Row],[Terminal Value Analysis]]) -> 1 | AD30: =ROUND(Y30+M30-Table3[[#This Row],[Grants and Subsidies ($)]],0) -> 175548 | AE30: 221980 | AF30: 105228 | AG30: =Table3[[#This Row],[Net Present Value of Establishment Cost]]*Table3[[#This Row],[Terminal Value Adjustment (%)]] -> 105228 | AH30: 105228 | AI30: =Table3[[#This Row],[Net Present Value of Establishment Cost]]*Table3[[#This Row],[Terminal Value Adjustment (%)]] -> 105228
B31: APT112 | C31: CHE-SP-011 | D31: Cycle Route (Primary) | E31: Citywide | F31: Downfall Creek West (Hamilton Road to Beneke Street) | H31: 387 | I31: Cycle Route (Primary) | K31: 2729 | L31: =IF(Table3[[#This Row],[Size of Land (m2)]]=0,0,Table3[[#This Row],[Land Value]]/Table3[[#This Row],[Size of Land (m2)]]) -> 0 | M31: 0 | N31: =Table3[[#This Row],[Direct Construction Cost]]/Table3[[#This Row],[Length (m)]] -> 736.0439276 | O31: 284849 | P31: 2021 | Q31: 0.01 | S31: 65515 | T31: 0.15 | U31: 52555 | V31: 0 | W31: 2029 | X31: 1.155263475 | Y31: 402919 | Z31: =IFERROR(IF(Table3[[#This Row],[Year of Provision]]>2024,VLOOKUP(Table3[[#This Row],[Service Catchment]],'Catchment Demand - Pathway'!C$8:M$8,11,FALSE),""),"") -> 0.3396007115 | AA31: =_xlfn.IFS(Table3[[#This Row],[Year of Provision]]=2024,0,Table3[[#This Row],[Year of Provision]]=2029,Table3[[#This Row],[Net Present Value of Establishment Cost]]/SUMIFS($AF$17:$AF$102,$W$17:$W$102,"2029",$E$17:$E$102,Table3[[#This Row],[Service Catchment]]),Table3[[#This Row],[Year of Provision]]=2034,Table3[[#This Row],[Net Present Value of Establishment Cost]]/SUMIFS($AF$17:$AF$102,$W$17:$W$102,"2034",$E$17:$E$102,Table3[[#This Row],[Service Catchment]])) -> 0.001275954652 | AB31: =IF(AND(Table3[[#This Row],[Spare Capacity (%)]]>30%,Table3[[#This Row],[Share of the total Cost with the same year of provision %]]>20%),(1-Table3[[#This Row],[Spare Capacity (%)]]),1) -> 1 | AC31: =IF(Table3[[#This Row],[Terminal Value Analysis]]<0,0,Table3[[#This Row],[Terminal Value Analysis]]) -> 1 | AD31: =ROUND(Y31+M31-Table3[[#This Row],[Grants and Subsidies ($)]],0) -> 402919 | AE31: 465478 | AF31: 294038 | AG31: =Table3[[#This Row],[Net Present Value of Establishment Cost]]*Table3[[#This Row],[Terminal Value Adjustment (%)]] -> 294038 | AH31: 294038 | AI31: =Table3[[#This Row],[Net Present Value of Establishment Cost]]*Table3[[#This Row],[Terminal Value Adjustment (%)]] -> 294038
B32: APT270 | C32: DAR-SP-004 | D32: Cycle Route (Secondary) | E32: Citywide | F32: Oxley Bikeway (Harcourt Road to Englefield Road (southern side of railway line) | H32: 789 | I32: Cycle Route (Secondary) | K32: 5255 | L32: =IF(Table3[[#This Row],[Size of Land (m2)]]=0,0,Table3[[#This Row],[Land Value]]/Table3[[#This Row],[Size of Land (m2)]]) -> 72.44738344 | M32: 380711 | N32: =Table3[[#This Row],[Direct Construction Cost]]/Table3[[#This Row],[Length (m)]] -> 736.0430925 | O32: 580738 | P32: 2021 | Q32: 0.01 | S32: 133570 | T32: 0.075 | U32: 53573 | V32: 0 | W32: 2024 | X32: 1.055614607 | Y32: 767881 | Z32: =IFERROR(IF(Table3[[#This Row],[Year of Provision]]>2024,VLOOKUP(Table3[[#This Row],[Service Catchment]],'Catchment Demand - Pathway'!C$8:M$8,11,FALSE),""),"") ->  | AA32: =_xlfn.IFS(Table3[[#This Row],[Year of Provision]]=2024,0,Table3[[#This Row],[Year of Provision]]=2029,Table3[[#This Row],[Net Present Value of Establishment Cost]]/SUMIFS($AF$17:$AF$102,$W$17:$W$102,"2029",$E$17:$E$102,Table3[[#This Row],[Service Catchment]]),Table3[[#This Row],[Year of Provision]]=2034,Table3[[#This Row],[Net Present Value of Establishment Cost]]/SUMIFS($AF$17:$AF$102,$W$17:$W$102,"2034",$E$17:$E$102,Table3[[#This Row],[Service Catchment]])) -> 0 | AB32: =IF(AND(Table3[[#This Row],[Spare Capacity (%)]]>30%,Table3[[#This Row],[Share of the total Cost with the same year of provision %]]>20%),(1-Table3[[#This Row],[Spare Capacity (%)]]),1) -> 1 | AC32: =IF(Table3[[#This Row],[Terminal Value Analysis]]<0,0,Table3[[#This Row],[Terminal Value Analysis]]) -> 1 | AD32: =ROUND(Y32+M32-Table3[[#This Row],[Grants and Subsidies ($)]],0) -> 1148592 | AE32: 1214733 | AF32: 1022516 | AG32: =Table3[[#This Row],[Net Present Value of Establishment Cost]]*Table3[[#This Row],[Terminal Value Adjustment (%)]] -> 1022516 | AH32: 1022516 | AI32: =Table3[[#This Row],[Net Present Value of Establishment Cost]]*Table3[[#This Row],[Terminal Value Adjustment (%)]] -> 1022516
B33: APT270 | C33: DAR-SP-006 | D33: Cycle Route (Primary) | E33: Citywide | F33: CBD - Ipswich Road bikeway (Centenary Motorway connection) | H33: 706 | I33: Cycle Route (Primary) | K33: 1 | L33: =IF(Table3[[#This Row],[Size of Land (m2)]]=0,0,Table3[[#This Row],[Land Value]]/Table3[[#This Row],[Size of Land (m2)]]) -> 563 | M33: 563 | N33: =Table3[[#This Row],[Direct Construction Cost]]/Table3[[#This Row],[Length (m)]] -> 736.0424929 | O33: 519646 | P33: 2021 | Q33: 0.01 | S33: 119519 | T33: 0.15 | U33: 95875 | V33: 0 | W33: 2029 | X33: 1.155263475 | Y33: 735040 | Z33: =IFERROR(IF(Table3[[#This Row],[Year of Provision]]>2024,VLOOKUP(Table3[[#This Row],[Service Catchment]],'Catchment Demand - Pathway'!C$8:M$8,11,FALSE),""),"") -> 0.3396007115 | AA33: =_xlfn.IFS(Table3[[#This Row],[Year of Provision]]=2024,0,Table3[[#This Row],[Year of Provision]]=2029,Table3[[#This Row],[Net Present Value of Establishment Cost]]/SUMIFS($AF$17:$AF$102,$W$17:$W$102,"2029",$E$17:$E$102,Table3[[#This Row],[Service Catchment]]),Table3[[#This Row],[Year of Provision]]=2034,Table3[[#This Row],[Net Present Value of Establishment Cost]]/SUMIFS($AF$17:$AF$102,$W$17:$W$102,"2034",$E$17:$E$102,Table3[[#This Row],[Service Catchment]])) -> 0.00232951398 | AB33: =IF(AND(Table3[[#This Row],[Spare Capacity (%)]]>30%,Table3[[#This Row],[Share of the total Cost with the same year of provision %]]>20%),(1-Table3[[#This Row],[Spare Capacity (%)]]),1) -> 1 | AC33: =IF(Table3[[#This Row],[Terminal Value Analysis]]<0,0,Table3[[#This Row],[Terminal Value Analysis]]) -> 1 | AD33: =ROUND(Y33+M33-Table3[[#This Row],[Grants and Subsidies ($)]],0) -> 735603 | AE33: 849825 | AF33: 536826 | AG33: =Table3[[#This Row],[Net Present Value of Establishment Cost]]*Table3[[#This Row],[Terminal Value Adjustment (%)]] -> 536826 | AH33: 536826 | AI33: =Table3[[#This Row],[Net Present Value of Establishment Cost]]*Table3[[#This Row],[Terminal Value Adjustment (%)]] -> 536826
B34: APT213 | C34: EAB-SP-001 | D34: Cycle Route (Secondary) | E34: Citywide | F34: Kingfisher Creek Bikeway (Withington Street to Caswell Street) | H34: 471 | I34: Cycle Route (Secondary) | K34: 1992 | L34: =IF(Table3[[#This Row],[Size of Land (m2)]]=0,0,Table3[[#This Row],[Land Value]]/Table3[[#This Row],[Size of Land (m2)]]) -> 612.2389558 | M34: 1219580 | N34: =Table3[[#This Row],[Direct Construction Cost]]/Table3[[#This Row],[Length (m)]] -> 736.0424628 | O34: 346676 | P34: 2021 | Q34: 0.01 | S34: 79735 | T34: 0.15 | U34: 63962 | V34: 0 | W34: 2029 | X34: 1.155263475 | Y34: 490373 | Z34: =IFERROR(IF(Table3[[#This Row],[Year of Provision]]>2024,VLOOKUP(Table3[[#This Row],[Service Catchment]],'Catchment Demand - Pathway'!C$8:M$8,11,FALSE),""),"") -> 0.3396007115 | AA34: =_xlfn.IFS(Table3[[#This Row],[Year of Provision]]=2024,0,Table3[[#This Row],[Year of Provision]]=2029,Table3[[#This Row],[Net Present Value of Establishment Cost]]/SUMIFS($AF$17:$AF$102,$W$17:$W$102,"2029",$E$17:$E$102,Table3[[#This Row],[Service Catchment]]),Table3[[#This Row],[Year of Provision]]=2034,Table3[[#This Row],[Net Present Value of Establishment Cost]]/SUMIFS($AF$17:$AF$102,$W$17:$W$102,"2034",$E$17:$E$102,Table3[[#This Row],[Service Catchment]])) -> 0.005473285583 | AB34: =IF(AND(Table3[[#This Row],[Spare Capacity (%)]]>30%,Table3[[#This Row],[Share of the total Cost with the same year of provision %]]>20%),(1-Table3[[#This Row],[Spare Capacity (%)]]),1) -> 1 | AC34: =IF(Table3[[#This Row],[Terminal Value Analysis]]<0,0,Table3[[#This Row],[Terminal Value Analysis]]) -> 1 | AD34: =ROUND(Y34+M34-Table3[[#This Row],[Grants and Subsidies ($)]],0) -> 1709953 | AE34: 1996696 | AF34: 1261294 | AG34: =Table3[[#This Row],[Net Present Value of Establishment Cost]]*Table3[[#This Row],[Terminal Value Adjustment (%)]] -> 1261294 | AH34: 1261294 | AI34: =Table3[[#This Row],[Net Present Value of Establishment Cost]]*Table3[[#This Row],[Terminal Value Adjustment (%)]] -> 1261294
B35: APT154, APT155 | C35: EAF-SP-003 | D35: Cycle Route (Secondary) | E35: Citywide | F35: Kingsford Smith Drive Bikeway (Schneider Road to Viola Place) | H35: 466 | I35: Cycle Route (Secondary) | K35: 3086 | L35: =IF(Table3[[#This Row],[Size of Land (m2)]]=0,0,Table3[[#This Row],[Land Value]]/Table3[[#This Row],[Size of Land (m2)]]) -> 402.6513286 | M35: 1242582 | N35: =Table3[[#This Row],[Direct Construction Cost]]/Table3[[#This Row],[Length (m)]] -> 736.0429185 | O35: 342996 | P35: 2021 | Q35: 0.01 | S35: 78889 | T35: 0.075 | U35: 31641 | V35: 0 | W35: 2024 | X35: 1.055614607 | Y35: 453526 | Z35: =IFERROR(IF(Table3[[#This Row],[Year of Provision]]>2024,VLOOKUP(Table3[[#This Row],[Service Catchment]],'Catchment Demand - Pathway'!C$8:M$8,11,FALSE),""),"") ->  | AA35: =_xlfn.IFS(Table3[[#This Row],[Year of Provision]]=2024,0,Table3[[#This Row],[Year of Provision]]=2029,Table3[[#This Row],[Net Present Value of Establishment Cost]]/SUMIFS($AF$17:$AF$102,$W$17:$W$102,"2029",$E$17:$E$102,Table3[[#This Row],[Service Catchment]]),Table3[[#This Row],[Year of Provision]]=2034,Table3[[#This Row],[Net Present Value of Establishment Cost]]/SUMIFS($AF$17:$AF$102,$W$17:$W$102,"2034",$E$17:$E$102,Table3[[#This Row],[Service Catchment]])) -> 0 | AB35: =IF(AND(Table3[[#This Row],[Spare Capacity (%)]]>30%,Table3[[#This Row],[Share of the total Cost with the same year of provision %]]>20%),(1-Table3[[#This Row],[Spare Capacity (%)]]),1) -> 1 | AC35: =IF(Table3[[#This Row],[Terminal Value Analysis]]<0,0,Table3[[#This Row],[Terminal Value Analysis]]) -> 1 | AD35: =ROUND(Y35+M35-Table3[[#This Row],[Grants and Subsidies ($)]],0) -> 1696108 | AE35: 1797820 | AF35: 1513336 | AG35: =Table3[[#This Row],[Net Present Value of Establishment Cost]]*Table3[[#This Row],[Terminal Value Adjustment (%)]] -> 1513336 | AH35: 1513336 | AI35: =Table3[[#This Row],[Net Present Value of Establishment Cost]]*Table3[[#This Row],[Terminal Value Adjustment (%)]] -> 1513336
B36: APT310 | C36: ELG-SP-002 | D36: Cycle Route (Secondary) | E36: Citywide | F36: Bullockhead Creek Bikeway (Waterford Road to Roxwell Street - along eastern side of creek) | H36: 1383 | I36: Cycle Route (Secondary) | K36: 9521 | L36: =IF(Table3[[#This Row],[Size of Land (m2)]]=0,0,Table3[[#This Row],[Land Value]]/Table3[[#This Row],[Size of Land (m2)]]) -> 9.967860519 | M36: 94904 | N36: =Table3[[#This Row],[Direct Construction Cost]]/Table3[[#This Row],[Length (m)]] -> 736.0433839 | O36: 1017948 | P36: 2021 | Q36: 0.01 | S36: 234128 | T36: 0.075 | U36: 93906 | V36: 0 | W36: 2024 | X36: 1.055614607 | Y36: 1345982 | Z36: =IFERROR(IF(Table3[[#This Row],[Year of Provision]]>2024,VLOOKUP(Table3[[#This Row],[Service Catchment]],'Catchment Demand - Pathway'!C$8:M$8,11,FALSE),""),"") ->  | AA36: =_xlfn.IFS(Table3[[#This Row],[Year of Provision]]=2024,0,Table3[[#This Row],[Year of Provision]]=2029,Table3[[#This Row],[Net Present Value of Establishment Cost]]/SUMIFS($AF$17:$AF$102,$W$17:$W$102,"2029",$E$17:$E$102,Table3[[#This Row],[Service Catchment]]),Table3[[#This Row],[Year of Provision]]=2034,Table3[[#This Row],[Net Present Value of Establishment Cost]]/SUMIFS($AF$17:$AF$102,$W$17:$W$102,"2034",$E$17:$E$102,Table3[[#This Row],[Service Catchment]])) -> 0 | AB36: =IF(AND(Table3[[#This Row],[Spare Capacity (%)]]>30%,Table3[[#This Row],[Share of the total Cost with the same year of provision %]]>20%),(1-Table3[[#This Row],[Spare Capacity (%)]]),1) -> 1 | AC36: =IF(Table3[[#This Row],[Terminal Value Analysis]]<0,0,Table3[[#This Row],[Terminal Value Analysis]]) -> 1 | AD36: =ROUND(Y36+M36-Table3[[#This Row],[Grants and Subsidies ($)]],0) -> 1440886 | AE36: 1521584 | AF36: 1280811 | AG36: =Table3[[#This Row],[Net Present Value of Establishment Cost]]*Table3[[#This Row],[Terminal Value Adjustment (%)]] -> 1280811 | AH36: 1280811 | AI36: =Table3[[#This Row],[Net Present Value of Establishment Cost]]*Table3[[#This Row],[Terminal Value Adjustment (%)]] -> 1280811
B37: APT310 | C37: ELG-SP-003 | D37: Cycle Route (Secondary) | E37: Citywide | F37: Ellen Grove to Forest Lake Bikeway (Woogaroo Street to Lovat Street) | H37: 440 | I37: Cycle Route (Secondary) | K37: 2755 | L37: =IF(Table3[[#This Row],[Size of Land (m2)]]=0,0,Table3[[#This Row],[Land Value]]/Table3[[#This Row],[Size of Land (m2)]]) -> 118.3597096 | M37: 326081 | N37: =Table3[[#This Row],[Direct Construction Cost]]/Table3[[#This Row],[Length (m)]] -> 736.0431818 | O37: 323859 | P37: 2021 | Q37: 0.01 | S37: 74488 | T37: 0.075 | U37: 29876 | V37: 0 | W37: 2024 | X37: 1.055614607 | Y37: 428223 | Z37: =IFERROR(IF(Table3[[#This Row],[Year of Provision]]>2024,VLOOKUP(Table3[[#This Row],[Service Catchment]],'Catchment Demand - Pathway'!C$8:M$8,11,FALSE),""),"") ->  | AA37: =_xlfn.IFS(Table3[[#This Row],[Year of Provision]]=2024,0,Table3[[#This Row],[Year of Provision]]=2029,Table3[[#This Row],[Net Present Value of Establishment Cost]]/SUMIFS($AF$17:$AF$102,$W$17:$W$102,"2029",$E$17:$E$102,Table3[[#This Row],[Service Catchment]]),Table3[[#This Row],[Year of Provision]]=2034,Table3[[#This Row],[Net Present Value of Establishment Cost]]/SUMIFS($AF$17:$AF$102,$W$17:$W$102,"2034",$E$17:$E$102,Table3[[#This Row],[Service Catchment]])) -> 0 | AB37: =IF(AND(Table3[[#This Row],[Spare Capacity (%)]]>30%,Table3[[#This Row],[Share of the total Cost with the same year of provision %]]>20%),(1-Table3[[#This Row],[Spare Capacity (%)]]),1) -> 1 | AC37: =IF(Table3[[#This Row],[Terminal Value Analysis]]<0,0,Table3[[#This Row],[Terminal Value Analysis]]) -> 1 | AD37: =ROUND(Y37+M37-Table3[[#This Row],[Grants and Subsidies ($)]],0) -> 754304 | AE37: 798192 | AF37: 671887 | AG37: =Table3[[#This Row],[Net Present Value of Establishment Cost]]*Table3[[#This Row],[Terminal Value Adjustment (%)]] -> 671887 | AH37: 671887 | AI37: =Table3[[#This Row],[Net Present Value of Establishment Cost]]*Table3[[#This Row],[Terminal Value Adjustment (%)]] -> 671887
B38: APT310 | C38: ELG-SP-004 | D38: Cycle Route (Secondary) | E38: Citywide | F38: Ellen Grove to Forest Lake Bikeway (Lovat Street to Bagnall Street) | H38: 440 | I38: Cycle Route (Secondary) | K38: 2751 | L38: =IF(Table3[[#This Row],[Size of Land (m2)]]=0,0,Table3[[#This Row],[Land Value]]/Table3[[#This Row],[Size of Land (m2)]]) -> 75.26317703 | M38: 207049 | N38: =Table3[[#This Row],[Direct Construction Cost]]/Table3[[#This Row],[Length (m)]] -> 736.0431818 | O38: 323859 | P38: 2021 | Q38: 0.01 | S38: 74488 | T38: 0.075 | U38: 29876 | V38: 0 | W38: 2024 | X38: 1.055614607 | Y38: 428223 | Z38: =IFERROR(IF(Table3[[#This Row],[Year of Provision]]>2024,VLOOKUP(Table3[[#This Row],[Service Catchment]],'Catchment Demand - Pathway'!C$8:M$8,11,FALSE),""),"") ->  | AA38: =_xlfn.IFS(Table3[[#This Row],[Year of Provision]]=2024,0,Table3[[#This Row],[Year of Provision]]=2029,Table3[[#This Row],[Net Present Value of Establishment Cost]]/SUMIFS($AF$17:$AF$102,$W$17:$W$102,"2029",$E$17:$E$102,Table3[[#This Row],[Service Catchment]]),Table3[[#This Row],[Year of Provision]]=2034,Table3[[#This Row],[Net Present Value of Establishment Cost]]/SUMIFS($AF$17:$AF$102,$W$17:$W$102,"2034",$E$17:$E$102,Table3[[#This Row],[Service Catchment]])) -> 0 | AB38: =IF(AND(Table3[[#This Row],[Spare Capacity (%)]]>30%,Table3[[#This Row],[Share of the total Cost with the same year of provision %]]>20%),(1-Table3[[#This Row],[Spare Capacity (%)]]),1) -> 1 | AC38: =IF(Table3[[#This Row],[Terminal Value Analysis]]<0,0,Table3[[#This Row],[Terminal Value Analysis]]) -> 1 | AD38: =ROUND(Y38+M38-Table3[[#This Row],[Grants and Subsidies ($)]],0) -> 635272 | AE38: 671833 | AF38: 565523 | AG38: =Table3[[#This Row],[Net Present Value of Establishment Cost]]*Table3[[#This Row],[Terminal Value Adjustment (%)]] -> 565523 | AH38: 565523 | AI38: =Table3[[#This Row],[Net Present Value of Establishment Cost]]*Table3[[#This Row],[Terminal Value Adjustment (%)]] -> 565523
B39: APT310 | C39: ELG-SP-005 | D39: Cycle Route (Secondary) | E39: Citywide | F39: Ellen Grove to Forest Lake Bikeway (Bagnall Street to Considine Street) | H39: 447 | I39: Cycle Route (Secondary) | K39: 2792 | L39: =IF(Table3[[#This Row],[Size of Land (m2)]]=0,0,Table3[[#This Row],[Land Value]]/Table3[[#This Row],[Size of Land (m2)]]) -> 10.11318052 | M39: 28236 | N39: =Table3[[#This Row],[Direct Construction Cost]]/Table3[[#This Row],[Length (m)]] -> 736.0425056 | O39: 329011 | P39: 2021 | Q39: 0.01 | S39: 75673 | T39: 0.2 | U39: 80937 | V39: 0 | W39: 2034 | X39: 1.264319088 | Y39: 485621 | Z39: =IFERROR(IF(Table3[[#This Row],[Year of Provision]]>2024,VLOOKUP(Table3[[#This Row],[Service Catchment]],'Catchment Demand - Pathway'!C$8:M$8,11,FALSE),""),"") -> 0.3396007115 | AA39: =_xlfn.IFS(Table3[[#This Row],[Year of Provision]]=2024,0,Table3[[#This Row],[Year of Provision]]=2029,Table3[[#This Row],[Net Present Value of Establishment Cost]]/SUMIFS($AF$17:$AF$102,$W$17:$W$102,"2029",$E$17:$E$102,Table3[[#This Row],[Service Catchment]]),Table3[[#This Row],[Year of Provision]]=2034,Table3[[#This Row],[Net Present Value of Establishment Cost]]/SUMIFS($AF$17:$AF$102,$W$17:$W$102,"2034",$E$17:$E$102,Table3[[#This Row],[Service Catchment]])) -> 0.1103776715 | AB39: =IF(AND(Table3[[#This Row],[Spare Capacity (%)]]>30%,Table3[[#This Row],[Share of the total Cost with the same year of provision %]]>20%),(1-Table3[[#This Row],[Spare Capacity (%)]]),1) -> 1 | AC39: =IF(Table3[[#This Row],[Terminal Value Analysis]]<0,0,Table3[[#This Row],[Terminal Value Analysis]]) -> 1 | AD39: =ROUND(Y39+M39-Table3[[#This Row],[Grants and Subsidies ($)]],0) -> 513857 | AE39: 650558 | AF39: 308394 | AG39: =Table3[[#This Row],[Net Present Value of Establishment Cost]]*Table3[[#This Row],[Terminal Value Adjustment (%)]] -> 308394 | AH39: 308394 | AI39: =Table3[[#This Row],[Net Present Value of Establishment Cost]]*Table3[[#This Row],[Terminal Value Adjustment (%)]] -> 308394
B40: APT131 | C40: ENG-SB-001 | D40: Cycle Route (Secondary) | E40: Citywide | F40: Kedron Brook Bikeway (Enoggera Memorial Park to northern side of creek) | H40: 79 | I40: Cycle Route (Secondary) | K40: 430 | L40: =IF(Table3[[#This Row],[Size of Land (m2)]]=0,0,Table3[[#This Row],[Land Value]]/Table3[[#This Row],[Size of Land (m2)]]) -> 6.725581395 | M40: 2892 | N40: =Table3[[#This Row],[Direct Construction Cost]]/Table3[[#This Row],[Length (m)]] -> 12812 | O40: 1012148 | P40: 2021 | Q40: 0.01 | S40: 232794 | T40: 0.075 | U40: 93371 | V40: 0 | W40: 2024 | X40: 1.055614607 | Y40: 1338313 | Z40: =IFERROR(IF(Table3[[#This Row],[Year of Provision]]>2024,VLOOKUP(Table3[[#This Row],[Service Catchment]],'Catchment Demand - Pathway'!C$8:M$8,11,FALSE),""),"") ->  | AA40: =_xlfn.IFS(Table3[[#This Row],[Year of Provision]]=2024,0,Table3[[#This Row],[Year of Provision]]=2029,Table3[[#This Row],[Net Present Value of Establishment Cost]]/SUMIFS($AF$17:$AF$102,$W$17:$W$102,"2029",$E$17:$E$102,Table3[[#This Row],[Service Catchment]]),Table3[[#This Row],[Year of Provision]]=2034,Table3[[#This Row],[Net Present Value of Establishment Cost]]/SUMIFS($AF$17:$AF$102,$W$17:$W$102,"2034",$E$17:$E$102,Table3[[#This Row],[Service Catchment]])) -> 0 | AB40: =IF(AND(Table3[[#This Row],[Spare Capacity (%)]]>30%,Table3[[#This Row],[Share of the total Cost with the same year of provision %]]>20%),(1-Table3[[#This Row],[Spare Capacity (%)]]),1) -> 1 | AC40: =IF(Table3[[#This Row],[Terminal Value Analysis]]<0,0,Table3[[#This Row],[Terminal Value Analysis]]) -> 1 | AD40: =ROUND(Y40+M40-Table3[[#This Row],[Grants and Subsidies ($)]],0) -> 1341205 | AE40: 1415813 | AF40: 1191777 | AG40: =Table3[[#This Row],[Net Present Value of Establishment Cost]]*Table3[[#This Row],[Terminal Value Adjustment (%)]] -> 1191777 | AH40: 1191777 | AI40: =Table3[[#This Row],[Net Present Value of Establishment Cost]]*Table3[[#This Row],[Terminal Value Adjustment (%)]] -> 1191777
B41: APT129 | C41: FGR-SP-006 | D41: Cycle Route (Secondary) | E41: Citywide | F41: Cedar Creek Bikeway (Keperra Picnic Ground Park to Nelson Place Park) | H41: 811 | I41: Cycle Route (Secondary) | K41: 4992 | L41: =IF(Table3[[#This Row],[Size of Land (m2)]]=0,0,Table3[[#This Row],[Land Value]]/Table3[[#This Row],[Size of Land (m2)]]) -> 93.53625801 | M41: 466933 | N41: =Table3[[#This Row],[Direct Construction Cost]]/Table3[[#This Row],[Length (m)]] -> 736.0431566 | O41: 596931 | P41: 2021 | Q41: 0.01 | S41: 137294 | T41: 0.15 | U41: 110134 | V41: 0 | W41: 2029 | X41: 1.155263475 | Y41: 844359 | Z41: =IFERROR(IF(Table3[[#This Row],[Year of Provision]]>2024,VLOOKUP(Table3[[#This Row],[Service Catchment]],'Catchment Demand - Pathway'!C$8:M$8,11,FALSE),""),"") -> 0.3396007115 | AA41: =_xlfn.IFS(Table3[[#This Row],[Year of Provision]]=2024,0,Table3[[#This Row],[Year of Provision]]=2029,Table3[[#This Row],[Net Present Value of Establishment Cost]]/SUMIFS($AF$17:$AF$102,$W$17:$W$102,"2029",$E$17:$E$102,Table3[[#This Row],[Service Catchment]]),Table3[[#This Row],[Year of Provision]]=2034,Table3[[#This Row],[Net Present Value of Establishment Cost]]/SUMIFS($AF$17:$AF$102,$W$17:$W$102,"2034",$E$17:$E$102,Table3[[#This Row],[Service Catchment]])) -> 0.004174870089 | AB41: =IF(AND(Table3[[#This Row],[Spare Capacity (%)]]>30%,Table3[[#This Row],[Share of the total Cost with the same year of provision %]]>20%),(1-Table3[[#This Row],[Spare Capacity (%)]]),1) -> 1 | AC41: =IF(Table3[[#This Row],[Terminal Value Analysis]]<0,0,Table3[[#This Row],[Terminal Value Analysis]]) -> 1 | AD41: =ROUND(Y41+M41-Table3[[#This Row],[Grants and Subsidies ($)]],0) -> 1311292 | AE41: 1523024 | AF41: 962080 | AG41: =Table3[[#This Row],[Net Present Value of Establishment Cost]]*Table3[[#This Row],[Terminal Value Adjustment (%)]] -> 962080 | AH41: 962080 | AI41: =Table3[[#This Row],[Net Present Value of Establishment Cost]]*Table3[[#This Row],[Terminal Value Adjustment (%)]] -> 962080
B42: APT310 | C42: FLK-SP-002 | D42: Cycle Route (Secondary) | E42: Citywide | F42: Bullockhead Creek Bikeway (Lilydale Place to Waterford Road) | H42: 964 | I42: Cycle Route (Secondary) | K42: 2747 | L42: =IF(Table3[[#This Row],[Size of Land (m2)]]=0,0,Table3[[#This Row],[Land Value]]/Table3[[#This Row],[Size of Land (m2)]]) -> 9.729159083 | M42: 26726 | N42: =Table3[[#This Row],[Direct Construction Cost]]/Table3[[#This Row],[Length (m)]] -> 736.0435685 | O42: 709546 | P42: 2021 | Q42: 0.01 | S42: 163196 | T42: 0.15 | U42: 130911 | V42: 0 | W42: 2029 | X42: 1.155263475 | Y42: 1003653 | Z42: =IFERROR(IF(Table3[[#This Row],[Year of Provision]]>2024,VLOOKUP(Table3[[#This Row],[Service Catchment]],'Catchment Demand - Pathway'!C$8:M$8,11,FALSE),""),"") -> 0.3396007115 | AA42: =_xlfn.IFS(Table3[[#This Row],[Year of Provision]]=2024,0,Table3[[#This Row],[Year of Provision]]=2029,Table3[[#This Row],[Net Present Value of Establishment Cost]]/SUMIFS($AF$17:$AF$102,$W$17:$W$102,"2029",$E$17:$E$102,Table3[[#This Row],[Service Catchment]]),Table3[[#This Row],[Year of Provision]]=2034,Table3[[#This Row],[Net Present Value of Establishment Cost]]/SUMIFS($AF$17:$AF$102,$W$17:$W$102,"2034",$E$17:$E$102,Table3[[#This Row],[Service Catchment]])) -> 0.003264255625 | AB42: =IF(AND(Table3[[#This Row],[Spare Capacity (%)]]>30%,Table3[[#This Row],[Share of the total Cost with the same year of provision %]]>20%),(1-Table3[[#This Row],[Spare Capacity (%)]]),1) -> 1 | AC42: =IF(Table3[[#This Row],[Terminal Value Analysis]]<0,0,Table3[[#This Row],[Terminal Value Analysis]]) -> 1 | AD42: =ROUND(Y42+M42-Table3[[#This Row],[Grants and Subsidies ($)]],0) -> 1030379 | AE42: 1190825 | AF42: 752233 | AG42: =Table3[[#This Row],[Net Present Value of Establishment Cost]]*Table3[[#This Row],[Terminal Value Adjustment (%)]] -> 752233 | AH42: 752233 | AI42: =Table3[[#This Row],[Net Present Value of Establishment Cost]]*Table3[[#This Row],[Terminal Value Adjustment (%)]] -> 752233
B43: APT131 | C43: GTN-SP-003 | D43: Cycle Route (Secondary) | E43: Citywide | F43: Gaythorne Bikeway (QR Railway parallel to Bellevue Ave) | H43: 270 | I43: Cycle Route (Secondary) | K43: 1060 | L43: =IF(Table3[[#This Row],[Size of Land (m2)]]=0,0,Table3[[#This Row],[Land Value]]/Table3[[#This Row],[Size of Land (m2)]]) -> 0 | M43: 0 | N43: =Table3[[#This Row],[Direct Construction Cost]]/Table3[[#This Row],[Length (m)]] -> 736.0444444 | O43: 198732 | P43: 2021 | Q43: 0.01 | S43: 45708 | T43: 0.15 | U43: 36666 | V43: 0 | W43: 2029 | X43: 1.155263475 | Y43: 281106 | Z43: =IFERROR(IF(Table3[[#This Row],[Year of Provision]]>2024,VLOOKUP(Table3[[#This Row],[Service Catchment]],'Catchment Demand - Pathway'!C$8:M$8,11,FALSE),""),"") -> 0.3396007115 | AA43: =_xlfn.IFS(Table3[[#This Row],[Year of Provision]]=2024,0,Table3[[#This Row],[Year of Provision]]=2029,Table3[[#This Row],[Net Present Value of Establishment Cost]]/SUMIFS($AF$17:$AF$102,$W$17:$W$102,"2029",$E$17:$E$102,Table3[[#This Row],[Service Catchment]]),Table3[[#This Row],[Year of Provision]]=2034,Table3[[#This Row],[Net Present Value of Establishment Cost]]/SUMIFS($AF$17:$AF$102,$W$17:$W$102,"2034",$E$17:$E$102,Table3[[#This Row],[Service Catchment]])) -> 0.0008901974885 | AB43: =IF(AND(Table3[[#This Row],[Spare Capacity (%)]]>30%,Table3[[#This Row],[Share of the total Cost with the same year of provision %]]>20%),(1-Table3[[#This Row],[Spare Capacity (%)]]),1) -> 1 | AC43: =IF(Table3[[#This Row],[Terminal Value Analysis]]<0,0,Table3[[#This Row],[Terminal Value Analysis]]) -> 1 | AD43: =ROUND(Y43+M43-Table3[[#This Row],[Grants and Subsidies ($)]],0) -> 281106 | AE43: 324751 | AF43: 205142 | AG43: =Table3[[#This Row],[Net Present Value of Establishment Cost]]*Table3[[#This Row],[Terminal Value Adjustment (%)]] -> 205142 | AH43: 205142 | AI43: =Table3[[#This Row],[Net Present Value of Establishment Cost]]*Table3[[#This Row],[Terminal Value Adjustment (%)]] -> 205142
B44: APT131 | C44: GTN-SP-004 | D44: Cycle Route (Secondary) | E44: Citywide | F44: Gaythorne Bikeway (parallel to QR Railway between Bellevue Avenue to Prospect Road) | H44: 358 | I44: Cycle Route (Secondary) | K44: 2227 | L44: =IF(Table3[[#This Row],[Size of Land (m2)]]=0,0,Table3[[#This Row],[Land Value]]/Table3[[#This Row],[Size of Land (m2)]]) -> 752.9043556 | M44: 1676718 | N44: =Table3[[#This Row],[Direct Construction Cost]]/Table3[[#This Row],[Length (m)]] -> 736.0418994 | O44: 263503 | P44: 2021 | Q44: 0.01 | S44: 60606 | T44: 0.075 | U44: 24308 | V44: 0 | W44: 2024 | X44: 1.055614607 | Y44: 348417 | Z44: =IFERROR(IF(Table3[[#This Row],[Year of Provision]]>2024,VLOOKUP(Table3[[#This Row],[Service Catchment]],'Catchment Demand - Pathway'!C$8:M$8,11,FALSE),""),"") ->  | AA44: =_xlfn.IFS(Table3[[#This Row],[Year of Provision]]=2024,0,Table3[[#This Row],[Year of Provision]]=2029,Table3[[#This Row],[Net Present Value of Establishment Cost]]/SUMIFS($AF$17:$AF$102,$W$17:$W$102,"2029",$E$17:$E$102,Table3[[#This Row],[Service Catchment]]),Table3[[#This Row],[Year of Provision]]=2034,Table3[[#This Row],[Net Present Value of Establishment Cost]]/SUMIFS($AF$17:$AF$102,$W$17:$W$102,"2034",$E$17:$E$102,Table3[[#This Row],[Service Catchment]])) -> 0 | AB44: =IF(AND(Table3[[#This Row],[Spare Capacity (%)]]>30%,Table3[[#This Row],[Share of the total Cost with the same year of provision %]]>20%),(1-Table3[[#This Row],[Spare Capacity (%)]]),1) -> 1 | AC44: =IF(Table3[[#This Row],[Terminal Value Analysis]]<0,0,Table3[[#This Row],[Terminal Value Analysis]]) -> 1 | AD44: =ROUND(Y44+M44-Table3[[#This Row],[Grants and Subsidies ($)]],0) -> 2025135 | AE44: 2147726 | AF44: 1807873 | AG44: =Table3[[#This Row],[Net Present Value of Establishment Cost]]*Table3[[#This Row],[Terminal Value Adjustment (%)]] -> 1807873 | AH44: 1807873 | AI44: =Table3[[#This Row],[Net Present Value of Establishment Cost]]*Table3[[#This Row],[Terminal Value Adjustment (%)]] -> 1807873
B45: APT152 | C45: HER-SP-001 | D45: Cycle Route (Secondary) | E45: Citywide | F45: Enoggera Creek Bikeway (Clyde Road to Gould Road Park) | H45: 621 | I45: Cycle Route (Secondary) | K45: 4401 | L45: =IF(Table3[[#This Row],[Size of Land (m2)]]=0,0,Table3[[#This Row],[Land Value]]/Table3[[#This Row],[Size of Land (m2)]]) -> 2.395137469 | M45: 10541 | N45: =Table3[[#This Row],[Direct Construction Cost]]/Table3[[#This Row],[Length (m)]] -> 736.0434783 | O45: 457083 | P45: 2021 | Q45: 0.01 | S45: 105129 | T45: 0.15 | U45: 84332 | V45: 0 | W45: 2029 | X45: 1.155263475 | Y45: 646544 | Z45: =IFERROR(IF(Table3[[#This Row],[Year of Provision]]>2024,VLOOKUP(Table3[[#This Row],[Service Catchment]],'Catchment Demand - Pathway'!C$8:M$8,11,FALSE),""),"") -> 0.3396007115 | AA45: =_xlfn.IFS(Table3[[#This Row],[Year of Provision]]=2024,0,Table3[[#This Row],[Year of Provision]]=2029,Table3[[#This Row],[Net Present Value of Establishment Cost]]/SUMIFS($AF$17:$AF$102,$W$17:$W$102,"2029",$E$17:$E$102,Table3[[#This Row],[Service Catchment]]),Table3[[#This Row],[Year of Provision]]=2034,Table3[[#This Row],[Net Present Value of Establishment Cost]]/SUMIFS($AF$17:$AF$102,$W$17:$W$102,"2034",$E$17:$E$102,Table3[[#This Row],[Service Catchment]])) -> 0.002081342497 | AB45: =IF(AND(Table3[[#This Row],[Spare Capacity (%)]]>30%,Table3[[#This Row],[Share of the total Cost with the same year of provision %]]>20%),(1-Table3[[#This Row],[Spare Capacity (%)]]),1) -> 1 | AC45: =IF(Table3[[#This Row],[Terminal Value Analysis]]<0,0,Table3[[#This Row],[Terminal Value Analysis]]) -> 1 | AD45: =ROUND(Y45+M45-Table3[[#This Row],[Grants and Subsidies ($)]],0) -> 657085 | AE45: 759290 | AF45: 479636 | AG45: =Table3[[#This Row],[Net Present Value of Establishment Cost]]*Table3[[#This Row],[Terminal Value Adjustment (%)]] -> 479636 | AH45: 479636 | AI45: =Table3[[#This Row],[Net Present Value of Establishment Cost]]*Table3[[#This Row],[Terminal Value Adjustment (%)]] -> 479636
B46: APT233 | C46: HPW-SP-004 | D46: Cycle Route (Secondary) | E46: Citywide | F46: Glindemann Creek Bikeway (Birdwood Road Park to Joachim Street Park) | H46: 653 | I46: Cycle Route (Secondary) | K46: 4414 | L46: =IF(Table3[[#This Row],[Size of Land (m2)]]=0,0,Table3[[#This Row],[Land Value]]/Table3[[#This Row],[Size of Land (m2)]]) -> 2.454463072 | M46: 10834 | N46: =Table3[[#This Row],[Direct Construction Cost]]/Table3[[#This Row],[Length (m)]] -> 736.042879 | O46: 480636 | P46: 2021 | Q46: 0.01 | S46: 110546 | T46: 0.075 | U46: 44339 | V46: 0 | W46: 2024 | X46: 1.055614607 | Y46: 635521 | Z46: =IFERROR(IF(Table3[[#This Row],[Year of Provision]]>2024,VLOOKUP(Table3[[#This Row],[Service Catchment]],'Catchment Demand - Pathway'!C$8:M$8,11,FALSE),""),"") ->  | AA46: =_xlfn.IFS(Table3[[#This Row],[Year of Provision]]=2024,0,Table3[[#This Row],[Year of Provision]]=2029,Table3[[#This Row],[Net Present Value of Establishment Cost]]/SUMIFS($AF$17:$AF$102,$W$17:$W$102,"2029",$E$17:$E$102,Table3[[#This Row],[Service Catchment]]),Table3[[#This Row],[Year of Provision]]=2034,Table3[[#This Row],[Net Present Value of Establishment Cost]]/SUMIFS($AF$17:$AF$102,$W$17:$W$102,"2034",$E$17:$E$102,Table3[[#This Row],[Service Catchment]])) -> 0 | AB46: =IF(AND(Table3[[#This Row],[Spare Capacity (%)]]>30%,Table3[[#This Row],[Share of the total Cost with the same year of provision %]]>20%),(1-Table3[[#This Row],[Spare Capacity (%)]]),1) -> 1 | AC46: =IF(Table3[[#This Row],[Terminal Value Analysis]]<0,0,Table3[[#This Row],[Terminal Value Analysis]]) -> 1 | AD46: =ROUND(Y46+M46-Table3[[#This Row],[Grants and Subsidies ($)]],0) -> 646355 | AE46: 682366 | AF46: 574389 | AG46: =Table3[[#This Row],[Net Present Value of Establishment Cost]]*Table3[[#This Row],[Terminal Value Adjustment (%)]] -> 574389 | AH46: 574389 | AI46: =Table3[[#This Row],[Net Present Value of Establishment Cost]]*Table3[[#This Row],[Terminal Value Adjustment (%)]] -> 574389
B47: APT193 | C47: KAN-GB-001 | D47: Green Bridge | E47: Citywide | F47: Kangaroo Point Green Bridge | H47: 410 | I47: Green Bridge | K47: 0 | L47: =IF(Table3[[#This Row],[Size of Land (m2)]]=0,0,Table3[[#This Row],[Land Value]]/Table3[[#This Row],[Size of Land (m2)]]) -> 0 | M47: 0 | N47: =Table3[[#This Row],[Direct Construction Cost]]/Table3[[#This Row],[Length (m)]] -> 244124.3244 | O47: 100090973 | P47: 2021 | Q47: 0.01 | S47: 23020924 | T47: 0.075 | U47: 9233392 | V47: 0 | W47: 2024 | X47: 1.055614607 | Y47: 132345289 | Z47: =IFERROR(IF(Table3[[#This Row],[Year of Provision]]>2024,VLOOKUP(Table3[[#This Row],[Service Catchment]],'Catchment Demand - Pathway'!C$8:M$8,11,FALSE),""),"") ->  | AA47: =_xlfn.IFS(Table3[[#This Row],[Year of Provision]]=2024,0,Table3[[#This Row],[Year of Provision]]=2029,Table3[[#This Row],[Net Present Value of Establishment Cost]]/SUMIFS($AF$17:$AF$102,$W$17:$W$102,"2029",$E$17:$E$102,Table3[[#This Row],[Service Catchment]]),Table3[[#This Row],[Year of Provision]]=2034,Table3[[#This Row],[Net Present Value of Establishment Cost]]/SUMIFS($AF$17:$AF$102,$W$17:$W$102,"2034",$E$17:$E$102,Table3[[#This Row],[Service Catchment]])) -> 0 | AB47: =IF(AND(Table3[[#This Row],[Spare Capacity (%)]]>30%,Table3[[#This Row],[Share of the total Cost with the same year of provision %]]>20%),(1-Table3[[#This Row],[Spare Capacity (%)]]),1) -> 1 | AC47: =IF(Table3[[#This Row],[Terminal Value Analysis]]<0,0,Table3[[#This Row],[Terminal Value Analysis]]) -> 1 | AD47: =ROUND(Y47+M47-Table3[[#This Row],[Grants and Subsidies ($)]],0) -> 132345289 | AE47: 139705620 | AF47: 117598822 | AG47: =Table3[[#This Row],[Net Present Value of Establishment Cost]]*Table3[[#This Row],[Terminal Value Adjustment (%)]] -> 117598822 | AH47: 117598822 | AI47: =Table3[[#This Row],[Net Present Value of Establishment Cost]]*Table3[[#This Row],[Terminal Value Adjustment (%)]] -> 117598822
B48: APT193 | C48: KAN-RW-004 | D48: RiverWalk | E48: Citywide | F48: Kangaroo Point Riverwalk (Dockside Ferry Terminal to Mowbray Park) | H48: 765 | I48: RiverWalk | K48: 0 | L48: =IF(Table3[[#This Row],[Size of Land (m2)]]=0,0,Table3[[#This Row],[Land Value]]/Table3[[#This Row],[Size of Land (m2)]]) -> 0 | M48: 0 | N48: =Table3[[#This Row],[Direct Construction Cost]]/Table3[[#This Row],[Length (m)]] -> 55805 | O48: 42690825 | P48: 2021 | Q48: 0.01 | S48: 9818890 | T48: 0.15 | U48: 7876457 | V48: 20000000 | W48: 2029 | X48: 1.155263475 | Y48: 60386172 | Z48: =IFERROR(IF(Table3[[#This Row],[Year of Provision]]>2024,VLOOKUP(Table3[[#This Row],[Service Catchment]],'Catchment Demand - Pathway'!C$8:M$8,11,FALSE),""),"") -> 0.3396007115 | AA48: =_xlfn.IFS(Table3[[#This Row],[Year of Provision]]=2024,0,Table3[[#This Row],[Year of Provision]]=2029,Table3[[#This Row],[Net Present Value of Establishment Cost]]/SUMIFS($AF$17:$AF$102,$W$17:$W$102,"2029",$E$17:$E$102,Table3[[#This Row],[Service Catchment]]),Table3[[#This Row],[Year of Provision]]=2034,Table3[[#This Row],[Net Present Value of Establishment Cost]]/SUMIFS($AF$17:$AF$102,$W$17:$W$102,"2034",$E$17:$E$102,Table3[[#This Row],[Service Catchment]])) -> 0.1912293629 | AB48: =IF(AND(Table3[[#This Row],[Spare Capacity (%)]]>30%,Table3[[#This Row],[Share of the total Cost with the same year of provision %]]>20%),(1-Table3[[#This Row],[Spare Capacity (%)]]),1) -> 1 | AC48: =IF(Table3[[#This Row],[Terminal Value Analysis]]<0,0,Table3[[#This Row],[Terminal Value Analysis]]) -> 1 | AD48: =ROUND(Y48+M48-Table3[[#This Row],[Grants and Subsidies ($)]],0) -> 40386172 | AE48: 69761939 | AF48: 44067945 | AG48: =Table3[[#This Row],[Net Present Value of Establishment Cost]]*Table3[[#This Row],[Terminal Value Adjustment (%)]] -> 44067945 | AH48: 44067945 | AI48: =Table3[[#This Row],[Net Present Value of Establishment Cost]]*Table3[[#This Row],[Terminal Value Adjustment (%)]] -> 44067945
B49: APT193, APT192 | C49: KAN-SP-004 | D49: Cycle Route (Primary) | E49: Citywide | F49: Kangaroo Point Bikeway (Veloway 1 Cycleway to Thornton Street) | H49: 1679 | I49: Cycle Route (Primary) | K49: 10179 | L49: =IF(Table3[[#This Row],[Size of Land (m2)]]=0,0,Table3[[#This Row],[Land Value]]/Table3[[#This Row],[Size of Land (m2)]]) -> 43.27232538 | M49: 440469 | N49: =Table3[[#This Row],[Direct Construction Cost]]/Table3[[#This Row],[Length (m)]] -> 736.0428827 | O49: 1235816 | P49: 2021 | Q49: 0.01 | S49: =ROUND((O49)*23%,0) -> 284238 | T49: =IF(W49="","",IF(W49<=YEAR+5,0.075,IF(AND(W49>YEAR+5,W49<=YEAR+10),0.15,IF(AND(W49>YEAR+10,W49<=YEAR+20),0.2,IF(W49>YEAR+20,0.25,""))))) -> 0.15 | U49: =ROUND((O49+S49)*T49,0) -> 228008 | V49: 0 | W49: 2029 | X49: =(1+PPI)^(W49-YEAR) -> 1.155263475 | Y49: =ROUND(U49+S49+O49,0) -> 1748062 | Z49: =IFERROR(IF(Table3[[#This Row],[Year of Provision]]>2024,VLOOKUP(Table3[[#This Row],[Service Catchment]],'Catchment Demand - Pathway'!C$8:M$8,11,FALSE),""),"") -> 0.3396007115 | AA49: =_xlfn.IFS(Table3[[#This Row],[Year of Provision]]=2024,0,Table3[[#This Row],[Year of Provision]]=2029,Table3[[#This Row],[Net Present Value of Establishment Cost]]/SUMIFS($AF$17:$AF$102,$W$17:$W$102,"2029",$E$17:$E$102,Table3[[#This Row],[Service Catchment]]),Table3[[#This Row],[Year of Provision]]=2034,Table3[[#This Row],[Net Present Value of Establishment Cost]]/SUMIFS($AF$17:$AF$102,$W$17:$W$102,"2034",$E$17:$E$102,Table3[[#This Row],[Service Catchment]])) -> 0.006951622148 | AB49: =IF(AND(Table3[[#This Row],[Spare Capacity (%)]]>30%,Table3[[#This Row],[Share of the total Cost with the same year of provision %]]>20%),(1-Table3[[#This Row],[Spare Capacity (%)]]),1) -> 1 | AC49: =IF(Table3[[#This Row],[Terminal Value Analysis]]<0,0,Table3[[#This Row],[Terminal Value Analysis]]) -> 1 | AD49: =ROUND(Y49+M49-Table3[[#This Row],[Grants and Subsidies ($)]],0) -> 2188531 | AE49: =IFERROR(ROUND((Y49*X49+(M49*((1+Landind)^(W49-YEAR)))),0),0) -> 2536005 | AF49: =ROUND((AE49*(1/(1+WACC))^(W49-YEAR)),0) -> 1601970 | AG49: =Table3[[#This Row],[Net Present Value of Establishment Cost]]*Table3[[#This Row],[Terminal Value Adjustment (%)]] -> 1601970 | AH49: =AF49 -> 1601970 | AI49: =Table3[[#This Row],[Net Present Value of Establishment Cost]]*Table3[[#This Row],[Terminal Value Adjustment (%)]] -> 1601970
B50: APT111 | C50: MDW-SP-002 | D50: Cycle Route (Secondary) | E50: Citywide | F50: Cabbage Tree Creek Bikeway (Hamilton Road to Old Northern Road) | H50: 411 | I50: Cycle Route (Secondary) | K50: 2824 | L50: =IF(Table3[[#This Row],[Size of Land (m2)]]=0,0,Table3[[#This Row],[Land Value]]/Table3[[#This Row],[Size of Land (m2)]]) -> 10.07754958 | M50: 28459 | N50: =Table3[[#This Row],[Direct Construction Cost]]/Table3[[#This Row],[Length (m)]] -> 736.0437956 | O50: 302514 | P50: 2021 | Q50: 0.01 | S50: 69578 | T50: 0.075 | U50: 27907 | V50: 0 | W50: 2024 | X50: 1.055614607 | Y50: 399999 | Z50: =IFERROR(IF(Table3[[#This Row],[Year of Provision]]>2024,VLOOKUP(Table3[[#This Row],[Service Catchment]],'Catchment Demand - Pathway'!C$8:M$8,11,FALSE),""),"") ->  | AA50: =_xlfn.IFS(Table3[[#This Row],[Year of Provision]]=2024,0,Table3[[#This Row],[Year of Provision]]=2029,Table3[[#This Row],[Net Present Value of Establishment Cost]]/SUMIFS($AF$17:$AF$102,$W$17:$W$102,"2029",$E$17:$E$102,Table3[[#This Row],[Service Catchment]]),Table3[[#This Row],[Year of Provision]]=2034,Table3[[#This Row],[Net Present Value of Establishment Cost]]/SUMIFS($AF$17:$AF$102,$W$17:$W$102,"2034",$E$17:$E$102,Table3[[#This Row],[Service Catchment]])) -> 0 | AB50: =IF(AND(Table3[[#This Row],[Spare Capacity (%)]]>30%,Table3[[#This Row],[Share of the total Cost with the same year of provision %]]>20%),(1-Table3[[#This Row],[Spare Capacity (%)]]),1) -> 1 | AC50: =IF(Table3[[#This Row],[Terminal Value Analysis]]<0,0,Table3[[#This Row],[Terminal Value Analysis]]) -> 1 | AD50: =ROUND(Y50+M50-Table3[[#This Row],[Grants and Subsidies ($)]],0) -> 428458 | AE50: 452456 | AF50: 380860 | AG50: =Table3[[#This Row],[Net Present Value of Establishment Cost]]*Table3[[#This Row],[Terminal Value Adjustment (%)]] -> 380860 | AH50: 380860 | AI50: =Table3[[#This Row],[Net Present Value of Establishment Cost]]*Table3[[#This Row],[Terminal Value Adjustment (%)]] -> 380860
B51: APT235 | C51: MGE-SP-001 | D51: Cycle Route (Secondary) | E51: Citywide | F51: Salvin Creek Bikeway (Creek Road to Pine Mountain Road) | H51: 266 | I51: Cycle Route (Secondary) | K51: 1885 | L51: =IF(Table3[[#This Row],[Size of Land (m2)]]=0,0,Table3[[#This Row],[Land Value]]/Table3[[#This Row],[Size of Land (m2)]]) -> 57.81220159 | M51: 108976 | N51: =Table3[[#This Row],[Direct Construction Cost]]/Table3[[#This Row],[Length (m)]] -> 736.0413534 | O51: 195787 | P51: 2021 | Q51: 0.01 | S51: 45031 | T51: 0.15 | U51: 36123 | V51: 0 | W51: 2029 | X51: 1.155263475 | Y51: 276941 | Z51: =IFERROR(IF(Table3[[#This Row],[Year of Provision]]>2024,VLOOKUP(Table3[[#This Row],[Service Catchment]],'Catchment Demand - Pathway'!C$8:M$8,11,FALSE),""),"") -> 0.3396007115 | AA51: =_xlfn.IFS(Table3[[#This Row],[Year of Provision]]=2024,0,Table3[[#This Row],[Year of Provision]]=2029,Table3[[#This Row],[Net Present Value of Establishment Cost]]/SUMIFS($AF$17:$AF$102,$W$17:$W$102,"2029",$E$17:$E$102,Table3[[#This Row],[Service Catchment]]),Table3[[#This Row],[Year of Provision]]=2034,Table3[[#This Row],[Net Present Value of Establishment Cost]]/SUMIFS($AF$17:$AF$102,$W$17:$W$102,"2034",$E$17:$E$102,Table3[[#This Row],[Service Catchment]])) -> 0.001227318422 | AB51: =IF(AND(Table3[[#This Row],[Spare Capacity (%)]]>30%,Table3[[#This Row],[Share of the total Cost with the same year of provision %]]>20%),(1-Table3[[#This Row],[Spare Capacity (%)]]),1) -> 1 | AC51: =IF(Table3[[#This Row],[Terminal Value Analysis]]<0,0,Table3[[#This Row],[Terminal Value Analysis]]) -> 1 | AD51: =ROUND(Y51+M51-Table3[[#This Row],[Grants and Subsidies ($)]],0) -> 385917 | AE51: 447735 | AF51: 282830 | AG51: =Table3[[#This Row],[Net Present Value of Establishment Cost]]*Table3[[#This Row],[Terminal Value Adjustment (%)]] -> 282830 | AH51: 282830 | AI51: =Table3[[#This Row],[Net Present Value of Establishment Cost]]*Table3[[#This Row],[Terminal Value Adjustment (%)]] -> 282830
B52: APT130 | C52: MIT-SP-003 | D52: Cycle Route (Secondary) | E52: Citywide | F52: Kedron Brook Bikeway (Cribb Avenue to Oxford Grove Park) | H52: 171 | I52: Cycle Route (Secondary) | K52: 1121 | L52: =IF(Table3[[#This Row],[Size of Land (m2)]]=0,0,Table3[[#This Row],[Land Value]]/Table3[[#This Row],[Size of Land (m2)]]) -> 9.111507583 | M52: 10214 | N52: =Table3[[#This Row],[Direct Construction Cost]]/Table3[[#This Row],[Length (m)]] -> 815.6140351 | O52: 139470 | P52: 2021 | Q52: 0.01 | S52: 32078 | T52: 0.075 | U52: 12866 | V52: 0 | W52: 2024 | X52: 1.055614607 | Y52: 184414 | Z52: =IFERROR(IF(Table3[[#This Row],[Year of Provision]]>2024,VLOOKUP(Table3[[#This Row],[Service Catchment]],'Catchment Demand - Pathway'!C$8:M$8,11,FALSE),""),"") ->  | AA52: =_xlfn.IFS(Table3[[#This Row],[Year of Provision]]=2024,0,Table3[[#This Row],[Year of Provision]]=2029,Table3[[#This Row],[Net Present Value of Establishment Cost]]/SUMIFS($AF$17:$AF$102,$W$17:$W$102,"2029",$E$17:$E$102,Table3[[#This Row],[Service Catchment]]),Table3[[#This Row],[Year of Provision]]=2034,Table3[[#This Row],[Net Present Value of Establishment Cost]]/SUMIFS($AF$17:$AF$102,$W$17:$W$102,"2034",$E$17:$E$102,Table3[[#This Row],[Service Catchment]])) -> 0 | AB52: =IF(AND(Table3[[#This Row],[Spare Capacity (%)]]>30%,Table3[[#This Row],[Share of the total Cost with the same year of provision %]]>20%),(1-Table3[[#This Row],[Spare Capacity (%)]]),1) -> 1 | AC52: =IF(Table3[[#This Row],[Terminal Value Analysis]]<0,0,Table3[[#This Row],[Terminal Value Analysis]]) -> 1 | AD52: =ROUND(Y52+M52-Table3[[#This Row],[Grants and Subsidies ($)]],0) -> 194628 | AE52: 205513 | AF52: 172993 | AG52: =Table3[[#This Row],[Net Present Value of Establishment Cost]]*Table3[[#This Row],[Terminal Value Adjustment (%)]] -> 172993 | AH52: 172993 | AI52: =Table3[[#This Row],[Net Present Value of Establishment Cost]]*Table3[[#This Row],[Terminal Value Adjustment (%)]] -> 172993
B53: APT131 | C53: MIT-SP-008 | D53: Cycle Route (Secondary) | E53: Citywide | F53: Kedron Brook South near Brookside centre (Northmore Street to Burwood Road) | H53: 489 | I53: Cycle Route (Secondary) | K53: 3076 | L53: =IF(Table3[[#This Row],[Size of Land (m2)]]=0,0,Table3[[#This Row],[Land Value]]/Table3[[#This Row],[Size of Land (m2)]]) -> 14.51918075 | M53: 44661 | N53: =Table3[[#This Row],[Direct Construction Cost]]/Table3[[#This Row],[Length (m)]] -> 736.0429448 | O53: 359925 | P53: 2021 | Q53: 0.01 | S53: 82783 | T53: 0.15 | U53: 66406 | V53: 0 | W53: 2029 | X53: 1.155263475 | Y53: 509114 | Z53: =IFERROR(IF(Table3[[#This Row],[Year of Provision]]>2024,VLOOKUP(Table3[[#This Row],[Service Catchment]],'Catchment Demand - Pathway'!C$8:M$8,11,FALSE),""),"") -> 0.3396007115 | AA53: =_xlfn.IFS(Table3[[#This Row],[Year of Provision]]=2024,0,Table3[[#This Row],[Year of Provision]]=2029,Table3[[#This Row],[Net Present Value of Establishment Cost]]/SUMIFS($AF$17:$AF$102,$W$17:$W$102,"2029",$E$17:$E$102,Table3[[#This Row],[Service Catchment]]),Table3[[#This Row],[Year of Provision]]=2034,Table3[[#This Row],[Net Present Value of Establishment Cost]]/SUMIFS($AF$17:$AF$102,$W$17:$W$102,"2034",$E$17:$E$102,Table3[[#This Row],[Service Catchment]])) -> 0.001755812157 | AB53: =IF(AND(Table3[[#This Row],[Spare Capacity (%)]]>30%,Table3[[#This Row],[Share of the total Cost with the same year of provision %]]>20%),(1-Table3[[#This Row],[Spare Capacity (%)]]),1) -> 1 | AC53: =IF(Table3[[#This Row],[Terminal Value Analysis]]<0,0,Table3[[#This Row],[Terminal Value Analysis]]) -> 1 | AD53: =ROUND(Y53+M53-Table3[[#This Row],[Grants and Subsidies ($)]],0) -> 553775 | AE53: 640534 | AF53: 404619 | AG53: =Table3[[#This Row],[Net Present Value of Establishment Cost]]*Table3[[#This Row],[Terminal Value Adjustment (%)]] -> 404619 | AH53: 404619 | AI53: =Table3[[#This Row],[Net Present Value of Establishment Cost]]*Table3[[#This Row],[Terminal Value Adjustment (%)]] -> 404619
B54: APT131 | C54: MIT-SP-009 | D54: Cycle Route (Secondary) | E54: Citywide | F54: Mitchelton Bikeway (parallel to QR Railway between Prospect Road and Osborne Road) | H54: 427 | I54: Cycle Route (Secondary) | K54: 2660 | L54: =IF(Table3[[#This Row],[Size of Land (m2)]]=0,0,Table3[[#This Row],[Land Value]]/Table3[[#This Row],[Size of Land (m2)]]) -> 125.2334586 | M54: 333121 | N54: =Table3[[#This Row],[Direct Construction Cost]]/Table3[[#This Row],[Length (m)]] -> 736.0421546 | O54: 314290 | P54: 2021 | Q54: 0.01 | S54: 72287 | T54: 0.2 | U54: 77315 | V54: 0 | W54: 2034 | X54: 1.264319088 | Y54: 463892 | Z54: =IFERROR(IF(Table3[[#This Row],[Year of Provision]]>2024,VLOOKUP(Table3[[#This Row],[Service Catchment]],'Catchment Demand - Pathway'!C$8:M$8,11,FALSE),""),"") -> 0.3396007115 | AA54: =_xlfn.IFS(Table3[[#This Row],[Year of Provision]]=2024,0,Table3[[#This Row],[Year of Provision]]=2029,Table3[[#This Row],[Net Present Value of Establishment Cost]]/SUMIFS($AF$17:$AF$102,$W$17:$W$102,"2029",$E$17:$E$102,Table3[[#This Row],[Service Catchment]]),Table3[[#This Row],[Year of Provision]]=2034,Table3[[#This Row],[Net Present Value of Establishment Cost]]/SUMIFS($AF$17:$AF$102,$W$17:$W$102,"2034",$E$17:$E$102,Table3[[#This Row],[Service Catchment]])) -> 0.1727283107 | AB54: =IF(AND(Table3[[#This Row],[Spare Capacity (%)]]>30%,Table3[[#This Row],[Share of the total Cost with the same year of provision %]]>20%),(1-Table3[[#This Row],[Spare Capacity (%)]]),1) -> 1 | AC54: =IF(Table3[[#This Row],[Terminal Value Analysis]]<0,0,Table3[[#This Row],[Terminal Value Analysis]]) -> 1 | AD54: =ROUND(Y54+M54-Table3[[#This Row],[Grants and Subsidies ($)]],0) -> 797013 | AE54: 1018050 | AF54: 482601 | AG54: =Table3[[#This Row],[Net Present Value of Establishment Cost]]*Table3[[#This Row],[Terminal Value Adjustment (%)]] -> 482601 | AH54: 482601 | AI54: =Table3[[#This Row],[Net Present Value of Establishment Cost]]*Table3[[#This Row],[Terminal Value Adjustment (%)]] -> 482601
B55: APT131, APT130 | C55: MIT-SP-010 | D55: Cycle Route (Primary) | E55: Citywide | F55: Kedron Brook Bikeway (Cribb Av to Lansvale St) | H55: 1046 | I55: Cycle Route (Primary) | K55: 6644 | L55: =IF(Table3[[#This Row],[Size of Land (m2)]]=0,0,Table3[[#This Row],[Land Value]]/Table3[[#This Row],[Size of Land (m2)]]) -> 10.62748344 | M55: 70609 | N55: =Table3[[#This Row],[Direct Construction Cost]]/Table3[[#This Row],[Length (m)]] -> 736.043021 | O55: 769901 | P55: 2021 | Q55: 0.01 | S55: =ROUND((O55)*23%,0) -> 177077 | T55: =IF(W55="","",IF(W55<=YEAR+5,0.075,IF(AND(W55>YEAR+5,W55<=YEAR+10),0.15,IF(AND(W55>YEAR+10,W55<=YEAR+20),0.2,IF(W55>YEAR+20,0.25,""))))) -> 0.15 | U55: =ROUND((O55+S55)*T55,0) -> 142047 | V55: 0 | W55: 2029 | X55: =(1+PPI)^(W55-YEAR) -> 1.155263475 | Y55: =ROUND(U55+S55+O55,0) -> 1089025 | Z55: =IFERROR(IF(Table3[[#This Row],[Year of Provision]]>2024,VLOOKUP(Table3[[#This Row],[Service Catchment]],'Catchment Demand - Pathway'!C$8:M$8,11,FALSE),""),"") -> 0.3396007115 | AA55: =_xlfn.IFS(Table3[[#This Row],[Year of Provision]]=2024,0,Table3[[#This Row],[Year of Provision]]=2029,Table3[[#This Row],[Net Present Value of Establishment Cost]]/SUMIFS($AF$17:$AF$102,$W$17:$W$102,"2029",$E$17:$E$102,Table3[[#This Row],[Service Catchment]]),Table3[[#This Row],[Year of Provision]]=2034,Table3[[#This Row],[Net Present Value of Establishment Cost]]/SUMIFS($AF$17:$AF$102,$W$17:$W$102,"2034",$E$17:$E$102,Table3[[#This Row],[Service Catchment]])) -> 0.003675671784 | AB55: =IF(AND(Table3[[#This Row],[Spare Capacity (%)]]>30%,Table3[[#This Row],[Share of the total Cost with the same year of provision %]]>20%),(1-Table3[[#This Row],[Spare Capacity (%)]]),1) -> 1 | AC55: =IF(Table3[[#This Row],[Terminal Value Analysis]]<0,0,Table3[[#This Row],[Terminal Value Analysis]]) -> 1 | AD55: =ROUND(Y55+M55-Table3[[#This Row],[Grants and Subsidies ($)]],0) -> 1159634 | AE55: =IFERROR(ROUND((Y55*X55+(M55*((1+Landind)^(W55-YEAR)))),0),0) -> 1340913 | AF55: =ROUND((AE55*(1/(1+WACC))^(W55-YEAR)),0) -> 847042 | AG55: =Table3[[#This Row],[Net Present Value of Establishment Cost]]*Table3[[#This Row],[Terminal Value Adjustment (%)]] -> 847042 | AH55: =AF55 -> 847042 | AI55: =Table3[[#This Row],[Net Present Value of Establishment Cost]]*Table3[[#This Row],[Terminal Value Adjustment (%)]] -> 847042
B56: APT252 | C56: MKA-SP-003 | D56: Cycle Route (Secondary) | E56: Citywide | F56: Rocky Water Holes Creek Bikeway (Muriel Avenue to John Bright Street) | H56: 480 | I56: Cycle Route (Secondary) | K56: 1832 | L56: =IF(Table3[[#This Row],[Size of Land (m2)]]=0,0,Table3[[#This Row],[Land Value]]/Table3[[#This Row],[Size of Land (m2)]]) -> 1.580786026 | M56: 2896 | N56: =Table3[[#This Row],[Direct Construction Cost]]/Table3[[#This Row],[Length (m)]] -> 736.04375 | O56: 353301 | P56: 2021 | Q56: 0.01 | S56: 81259 | T56: 0.15 | U56: 65184 | V56: 0 | W56: 2029 | X56: 1.155263475 | Y56: 499744 | Z56: =IFERROR(IF(Table3[[#This Row],[Year of Provision]]>2024,VLOOKUP(Table3[[#This Row],[Service Catchment]],'Catchment Demand - Pathway'!C$8:M$8,11,FALSE),""),"") -> 0.3396007115 | AA56: =_xlfn.IFS(Table3[[#This Row],[Year of Provision]]=2024,0,Table3[[#This Row],[Year of Provision]]=2029,Table3[[#This Row],[Net Present Value of Establishment Cost]]/SUMIFS($AF$17:$AF$102,$W$17:$W$102,"2029",$E$17:$E$102,Table3[[#This Row],[Service Catchment]]),Table3[[#This Row],[Year of Provision]]=2034,Table3[[#This Row],[Net Present Value of Establishment Cost]]/SUMIFS($AF$17:$AF$102,$W$17:$W$102,"2034",$E$17:$E$102,Table3[[#This Row],[Service Catchment]])) -> 0.001591886192 | AB56: =IF(AND(Table3[[#This Row],[Spare Capacity (%)]]>30%,Table3[[#This Row],[Share of the total Cost with the same year of provision %]]>20%),(1-Table3[[#This Row],[Spare Capacity (%)]]),1) -> 1 | AC56: =IF(Table3[[#This Row],[Terminal Value Analysis]]<0,0,Table3[[#This Row],[Terminal Value Analysis]]) -> 1 | AD56: =ROUND(Y56+M56-Table3[[#This Row],[Grants and Subsidies ($)]],0) -> 502640 | AE56: 580732 | AF56: 366843 | AG56: =Table3[[#This Row],[Net Present Value of Establishment Cost]]*Table3[[#This Row],[Terminal Value Adjustment (%)]] -> 366843 | AH56: 366843 | AI56: =Table3[[#This Row],[Net Present Value of Establishment Cost]]*Table3[[#This Row],[Terminal Value Adjustment (%)]] -> 366843
B57: APT252 | C57: MKA-SP-005 | D57: Cycle Route (Secondary) | E57: Citywide | F57: Rocky Water Holes Creek Bikeway (Gladstone Street to Beaudesert Road) | H57: 89 | I57: Cycle Route (Secondary) | K57: 480 | L57: =IF(Table3[[#This Row],[Size of Land (m2)]]=0,0,Table3[[#This Row],[Land Value]]/Table3[[#This Row],[Size of Land (m2)]]) -> 14.37916667 | M57: 6902 | N57: =Table3[[#This Row],[Direct Construction Cost]]/Table3[[#This Row],[Length (m)]] -> 994.6516854 | O57: 88524 | P57: 2021 | Q57: 0.01 | S57: 20361 | T57: 0.15 | U57: 16333 | V57: 0 | W57: 2029 | X57: 1.155263475 | Y57: 125218 | Z57: =IFERROR(IF(Table3[[#This Row],[Year of Provision]]>2024,VLOOKUP(Table3[[#This Row],[Service Catchment]],'Catchment Demand - Pathway'!C$8:M$8,11,FALSE),""),"") -> 0.3396007115 | AA57: =_xlfn.IFS(Table3[[#This Row],[Year of Provision]]=2024,0,Table3[[#This Row],[Year of Provision]]=2029,Table3[[#This Row],[Net Present Value of Establishment Cost]]/SUMIFS($AF$17:$AF$102,$W$17:$W$102,"2029",$E$17:$E$102,Table3[[#This Row],[Service Catchment]]),Table3[[#This Row],[Year of Provision]]=2034,Table3[[#This Row],[Net Present Value of Establishment Cost]]/SUMIFS($AF$17:$AF$102,$W$17:$W$102,"2034",$E$17:$E$102,Table3[[#This Row],[Service Catchment]])) -> 0.0004187237438 | AB57: =IF(AND(Table3[[#This Row],[Spare Capacity (%)]]>30%,Table3[[#This Row],[Share of the total Cost with the same year of provision %]]>20%),(1-Table3[[#This Row],[Spare Capacity (%)]]),1) -> 1 | AC57: =IF(Table3[[#This Row],[Terminal Value Analysis]]<0,0,Table3[[#This Row],[Terminal Value Analysis]]) -> 1 | AD57: =ROUND(Y57+M57-Table3[[#This Row],[Grants and Subsidies ($)]],0) -> 132120 | AE57: 152754 | AF57: 96493 | AG57: =Table3[[#This Row],[Net Present Value of Establishment Cost]]*Table3[[#This Row],[Terminal Value Adjustment (%)]] -> 96493 | AH57: 96493 | AI57: =Table3[[#This Row],[Net Present Value of Establishment Cost]]*Table3[[#This Row],[Terminal Value Adjustment (%)]] -> 96493
B58: APT174 | C58: MOR-RW-001 | D58: RiverWalk | E58: Citywide | F58: Morningside Riverwalk (Taylor Street to Colmslie Recreation Reserve) | H58: 1672 | I58: RiverWalk | K58: 0 | L58: =IF(Table3[[#This Row],[Size of Land (m2)]]=0,0,Table3[[#This Row],[Land Value]]/Table3[[#This Row],[Size of Land (m2)]]) -> 0 | M58: 0 | N58: =Table3[[#This Row],[Direct Construction Cost]]/Table3[[#This Row],[Length (m)]] -> 9003 | O58: 15053016 | P58: 2021 | Q58: 0.01 | S58: 3462194 | T58: 0.15 | U58: 2777282 | V58: 0 | W58: 2029 | X58: 1.155263475 | Y58: 21292492 | Z58: =IFERROR(IF(Table3[[#This Row],[Year of Provision]]>2024,VLOOKUP(Table3[[#This Row],[Service Catchment]],'Catchment Demand - Pathway'!C$8:M$8,11,FALSE),""),"") -> 0.3396007115 | AA58: =_xlfn.IFS(Table3[[#This Row],[Year of Provision]]=2024,0,Table3[[#This Row],[Year of Provision]]=2029,Table3[[#This Row],[Net Present Value of Establishment Cost]]/SUMIFS($AF$17:$AF$102,$W$17:$W$102,"2029",$E$17:$E$102,Table3[[#This Row],[Service Catchment]]),Table3[[#This Row],[Year of Provision]]=2034,Table3[[#This Row],[Net Present Value of Establishment Cost]]/SUMIFS($AF$17:$AF$102,$W$17:$W$102,"2034",$E$17:$E$102,Table3[[#This Row],[Service Catchment]])) -> 0.06742850871 | AB58: =IF(AND(Table3[[#This Row],[Spare Capacity (%)]]>30%,Table3[[#This Row],[Share of the total Cost with the same year of provision %]]>20%),(1-Table3[[#This Row],[Spare Capacity (%)]]),1) -> 1 | AC58: =IF(Table3[[#This Row],[Terminal Value Analysis]]<0,0,Table3[[#This Row],[Terminal Value Analysis]]) -> 1 | AD58: =ROUND(Y58+M58-Table3[[#This Row],[Grants and Subsidies ($)]],0) -> 21292492 | AE58: 24598438 | AF58: 15538596 | AG58: =Table3[[#This Row],[Net Present Value of Establishment Cost]]*Table3[[#This Row],[Terminal Value Adjustment (%)]] -> 15538596 | AH58: 15538596 | AI58: =Table3[[#This Row],[Net Present Value of Establishment Cost]]*Table3[[#This Row],[Terminal Value Adjustment (%)]] -> 15538596
B59: APT174 | C59: MOR-RW-002 | D59: RiverWalk | E59: Citywide | F59: Morningside Riverwalk (Colmslie Recreation Reserve to Colmslie Beach Reserve) | H59: 636 | I59: RiverWalk | K59: 0 | L59: =IF(Table3[[#This Row],[Size of Land (m2)]]=0,0,Table3[[#This Row],[Land Value]]/Table3[[#This Row],[Size of Land (m2)]]) -> 0 | M59: 0 | N59: =Table3[[#This Row],[Direct Construction Cost]]/Table3[[#This Row],[Length (m)]] -> 3003 | O59: 1909908 | P59: 2021 | Q59: 0.01 | S59: 439279 | T59: 0.15 | U59: 352378 | V59: 0 | W59: 2029 | X59: 1.155263475 | Y59: 2701565 | Z59: =IFERROR(IF(Table3[[#This Row],[Year of Provision]]>2024,VLOOKUP(Table3[[#This Row],[Service Catchment]],'Catchment Demand - Pathway'!C$8:M$8,11,FALSE),""),"") -> 0.3396007115 | AA59: =_xlfn.IFS(Table3[[#This Row],[Year of Provision]]=2024,0,Table3[[#This Row],[Year of Provision]]=2029,Table3[[#This Row],[Net Present Value of Establishment Cost]]/SUMIFS($AF$17:$AF$102,$W$17:$W$102,"2029",$E$17:$E$102,Table3[[#This Row],[Service Catchment]]),Table3[[#This Row],[Year of Provision]]=2034,Table3[[#This Row],[Net Present Value of Establishment Cost]]/SUMIFS($AF$17:$AF$102,$W$17:$W$102,"2034",$E$17:$E$102,Table3[[#This Row],[Service Catchment]])) -> 0.008555246474 | AB59: =IF(AND(Table3[[#This Row],[Spare Capacity (%)]]>30%,Table3[[#This Row],[Share of the total Cost with the same year of provision %]]>20%),(1-Table3[[#This Row],[Spare Capacity (%)]]),1) -> 1 | AC59: =IF(Table3[[#This Row],[Terminal Value Analysis]]<0,0,Table3[[#This Row],[Terminal Value Analysis]]) -> 1 | AD59: =ROUND(Y59+M59-Table3[[#This Row],[Grants and Subsidies ($)]],0) -> 2701565 | AE59: 3121019 | AF59: 1971518 | AG59: =Table3[[#This Row],[Net Present Value of Establishment Cost]]*Table3[[#This Row],[Terminal Value Adjustment (%)]] -> 1971518 | AH59: 1971518 | AI59: =Table3[[#This Row],[Net Present Value of Establishment Cost]]*Table3[[#This Row],[Terminal Value Adjustment (%)]] -> 1971518
B60: APT174 | C60: MOR-SP-001 | D60: Cycle Route (Secondary) | E60: Citywide | F60: Perrin Creek Bikeway (Algoori Street to Beelarong Street) | H60: 322 | I60: Cycle Route (Secondary) | K60: 1707 | L60: =IF(Table3[[#This Row],[Size of Land (m2)]]=0,0,Table3[[#This Row],[Land Value]]/Table3[[#This Row],[Size of Land (m2)]]) -> 9.988869361 | M60: 17051 | N60: =Table3[[#This Row],[Direct Construction Cost]]/Table3[[#This Row],[Length (m)]] -> 736.0434783 | O60: 237006 | P60: 2021 | Q60: 0.01 | S60: 54511 | T60: 0.15 | U60: 43728 | V60: 0 | W60: 2029 | X60: 1.155263475 | Y60: 335245 | Z60: =IFERROR(IF(Table3[[#This Row],[Year of Provision]]>2024,VLOOKUP(Table3[[#This Row],[Service Catchment]],'Catchment Demand - Pathway'!C$8:M$8,11,FALSE),""),"") -> 0.3396007115 | AA60: =_xlfn.IFS(Table3[[#This Row],[Year of Provision]]=2024,0,Table3[[#This Row],[Year of Provision]]=2029,Table3[[#This Row],[Net Present Value of Establishment Cost]]/SUMIFS($AF$17:$AF$102,$W$17:$W$102,"2029",$E$17:$E$102,Table3[[#This Row],[Service Catchment]]),Table3[[#This Row],[Year of Provision]]=2034,Table3[[#This Row],[Net Present Value of Establishment Cost]]/SUMIFS($AF$17:$AF$102,$W$17:$W$102,"2034",$E$17:$E$102,Table3[[#This Row],[Service Catchment]])) -> 0.001116454896 | AB60: =IF(AND(Table3[[#This Row],[Spare Capacity (%)]]>30%,Table3[[#This Row],[Share of the total Cost with the same year of provision %]]>20%),(1-Table3[[#This Row],[Spare Capacity (%)]]),1) -> 1 | AC60: =IF(Table3[[#This Row],[Terminal Value Analysis]]<0,0,Table3[[#This Row],[Terminal Value Analysis]]) -> 1 | AD60: =ROUND(Y60+M60-Table3[[#This Row],[Grants and Subsidies ($)]],0) -> 352296 | AE60: 407292 | AF60: 257282 | AG60: =Table3[[#This Row],[Net Present Value of Establishment Cost]]*Table3[[#This Row],[Terminal Value Adjustment (%)]] -> 257282 | AH60: 257282 | AI60: =Table3[[#This Row],[Net Present Value of Establishment Cost]]*Table3[[#This Row],[Terminal Value Adjustment (%)]] -> 257282
B61: APT174 | C61: MOR-SP-004 | D61: Cycle Route (Secondary) | E61: Citywide | F61: Perrin Creek Bikeway (Algoori Street to Baringa Street) | H61: 213 | I61: Cycle Route (Secondary) | K61: 1434 | L61: =IF(Table3[[#This Row],[Size of Land (m2)]]=0,0,Table3[[#This Row],[Land Value]]/Table3[[#This Row],[Size of Land (m2)]]) -> 128.3807531 | M61: 184098 | N61: =Table3[[#This Row],[Direct Construction Cost]]/Table3[[#This Row],[Length (m)]] -> 815.6150235 | O61: 173726 | P61: 2021 | Q61: 0.01 | S61: 39957 | T61: 0.15 | U61: 32052 | V61: 0 | W61: 2029 | X61: 1.155263475 | Y61: 245735 | Z61: =IFERROR(IF(Table3[[#This Row],[Year of Provision]]>2024,VLOOKUP(Table3[[#This Row],[Service Catchment]],'Catchment Demand - Pathway'!C$8:M$8,11,FALSE),""),"") -> 0.3396007115 | AA61: =_xlfn.IFS(Table3[[#This Row],[Year of Provision]]=2024,0,Table3[[#This Row],[Year of Provision]]=2029,Table3[[#This Row],[Net Present Value of Establishment Cost]]/SUMIFS($AF$17:$AF$102,$W$17:$W$102,"2029",$E$17:$E$102,Table3[[#This Row],[Service Catchment]]),Table3[[#This Row],[Year of Provision]]=2034,Table3[[#This Row],[Net Present Value of Establishment Cost]]/SUMIFS($AF$17:$AF$102,$W$17:$W$102,"2034",$E$17:$E$102,Table3[[#This Row],[Service Catchment]])) -> 0.001369976885 | AB61: =IF(AND(Table3[[#This Row],[Spare Capacity (%)]]>30%,Table3[[#This Row],[Share of the total Cost with the same year of provision %]]>20%),(1-Table3[[#This Row],[Spare Capacity (%)]]),1) -> 1 | AC61: =IF(Table3[[#This Row],[Terminal Value Analysis]]<0,0,Table3[[#This Row],[Terminal Value Analysis]]) -> 1 | AD61: =ROUND(Y61+M61-Table3[[#This Row],[Grants and Subsidies ($)]],0) -> 429833 | AE61: 499778 | AF61: 315705 | AG61: =Table3[[#This Row],[Net Present Value of Establishment Cost]]*Table3[[#This Row],[Terminal Value Adjustment (%)]] -> 315705 | AH61: 315705 | AI61: =Table3[[#This Row],[Net Present Value of Establishment Cost]]*Table3[[#This Row],[Terminal Value Adjustment (%)]] -> 315705
B62: APT175 | C62: MUR-SP-006 | D62: Cycle Route (Secondary) | E62: Citywide | F62: Junction Road bikeway (Colmslie Road to Metroplex Avenue) | H62: 668 | I62: Cycle Route (Secondary) | K62: 4188 | L62: =IF(Table3[[#This Row],[Size of Land (m2)]]=0,0,Table3[[#This Row],[Land Value]]/Table3[[#This Row],[Size of Land (m2)]]) -> 150.0716332 | M62: 628500 | N62: =Table3[[#This Row],[Direct Construction Cost]]/Table3[[#This Row],[Length (m)]] -> 736.0434132 | O62: 491677 | P62: 2021 | Q62: 0.01 | S62: 113086 | T62: 0.2 | U62: 120953 | V62: 0 | W62: 2034 | X62: 1.264319088 | Y62: 725716 | Z62: =IFERROR(IF(Table3[[#This Row],[Year of Provision]]>2024,VLOOKUP(Table3[[#This Row],[Service Catchment]],'Catchment Demand - Pathway'!C$8:M$8,11,FALSE),""),"") -> 0.3396007115 | AA62: =_xlfn.IFS(Table3[[#This Row],[Year of Provision]]=2024,0,Table3[[#This Row],[Year of Provision]]=2029,Table3[[#This Row],[Net Present Value of Establishment Cost]]/SUMIFS($AF$17:$AF$102,$W$17:$W$102,"2029",$E$17:$E$102,Table3[[#This Row],[Service Catchment]]),Table3[[#This Row],[Year of Provision]]=2034,Table3[[#This Row],[Net Present Value of Establishment Cost]]/SUMIFS($AF$17:$AF$102,$W$17:$W$102,"2034",$E$17:$E$102,Table3[[#This Row],[Service Catchment]])) -> 0.2938154016 | AB62: =IF(AND(Table3[[#This Row],[Spare Capacity (%)]]>30%,Table3[[#This Row],[Share of the total Cost with the same year of provision %]]>20%),(1-Table3[[#This Row],[Spare Capacity (%)]]),1) -> 0.6603992885 | AC62: =IF(Table3[[#This Row],[Terminal Value Analysis]]<0,0,Table3[[#This Row],[Terminal Value Analysis]]) -> 0.6603992885 | AD62: =ROUND(Y62+M62-Table3[[#This Row],[Grants and Subsidies ($)]],0) -> 1354216 | AE62: 1731728 | AF62: 820917 | AG62: =Table3[[#This Row],[Net Present Value of Establishment Cost]]*Table3[[#This Row],[Terminal Value Adjustment (%)]] -> 542133.0027 | AH62: 820917 | AI62: =Table3[[#This Row],[Net Present Value of Establishment Cost]]*Table3[[#This Row],[Terminal Value Adjustment (%)]] -> 542133.0027
B63: APT114 | C63: NOG-SP-003 | D63: Cycle Route (Secondary) | E63: Citywide | F63: Acacia Avenue - Railway Parade Bikeway (Holland Street to Acacia Avenue along QR Railway) | H63: 499 | I63: Cycle Route (Secondary) | K63: 3028 | L63: =IF(Table3[[#This Row],[Size of Land (m2)]]=0,0,Table3[[#This Row],[Land Value]]/Table3[[#This Row],[Size of Land (m2)]]) -> 915.507926 | M63: 2772158 | N63: =Table3[[#This Row],[Direct Construction Cost]]/Table3[[#This Row],[Length (m)]] -> 736.0440882 | O63: 367286 | P63: 2021 | Q63: 0.01 | S63: 84476 | T63: 0.15 | U63: 67764 | V63: 0 | W63: 2029 | X63: 1.155263475 | Y63: 519526 | Z63: =IFERROR(IF(Table3[[#This Row],[Year of Provision]]>2024,VLOOKUP(Table3[[#This Row],[Service Catchment]],'Catchment Demand - Pathway'!C$8:M$8,11,FALSE),""),"") -> 0.3396007115 | AA63: =_xlfn.IFS(Table3[[#This Row],[Year of Provision]]=2024,0,Table3[[#This Row],[Year of Provision]]=2029,Table3[[#This Row],[Net Present Value of Establishment Cost]]/SUMIFS($AF$17:$AF$102,$W$17:$W$102,"2029",$E$17:$E$102,Table3[[#This Row],[Service Catchment]]),Table3[[#This Row],[Year of Provision]]=2034,Table3[[#This Row],[Net Present Value of Establishment Cost]]/SUMIFS($AF$17:$AF$102,$W$17:$W$102,"2034",$E$17:$E$102,Table3[[#This Row],[Service Catchment]])) -> 0.01055642685 | AB63: =IF(AND(Table3[[#This Row],[Spare Capacity (%)]]>30%,Table3[[#This Row],[Share of the total Cost with the same year of provision %]]>20%),(1-Table3[[#This Row],[Spare Capacity (%)]]),1) -> 1 | AC63: =IF(Table3[[#This Row],[Terminal Value Analysis]]<0,0,Table3[[#This Row],[Terminal Value Analysis]]) -> 1 | AD63: =ROUND(Y63+M63-Table3[[#This Row],[Grants and Subsidies ($)]],0) -> 3291684 | AE63: 3851065 | AF63: 2432681 | AG63: =Table3[[#This Row],[Net Present Value of Establishment Cost]]*Table3[[#This Row],[Terminal Value Adjustment (%)]] -> 2432681 | AH63: 2432681 | AI63: =Table3[[#This Row],[Net Present Value of Establishment Cost]]*Table3[[#This Row],[Terminal Value Adjustment (%)]] -> 2432681
B64: APT153 | C64: NWS-GB-001 | D64: Green Bridge | E64: Citywide | F64: Breakfast Creek Green Bridge | H64: 123 | I64: Green Bridge | K64: 0 | L64: =IF(Table3[[#This Row],[Size of Land (m2)]]=0,0,Table3[[#This Row],[Land Value]]/Table3[[#This Row],[Size of Land (m2)]]) -> 0 | M64: 0 | N64: =Table3[[#This Row],[Direct Construction Cost]]/Table3[[#This Row],[Length (m)]] -> 144819.4959 | O64: 17812798 | P64: 2021 | Q64: 0.01 | S64: 4096944 | T64: 0.075 | U64: 1643231 | V64: 0 | W64: 2024 | X64: 1.055614607 | Y64: 23552973 | Z64: =IFERROR(IF(Table3[[#This Row],[Year of Provision]]>2024,VLOOKUP(Table3[[#This Row],[Service Catchment]],'Catchment Demand - Pathway'!C$8:M$8,11,FALSE),""),"") ->  | AA64: =_xlfn.IFS(Table3[[#This Row],[Year of Provision]]=2024,0,Table3[[#This Row],[Year of Provision]]=2029,Table3[[#This Row],[Net Present Value of Establishment Cost]]/SUMIFS($AF$17:$AF$102,$W$17:$W$102,"2029",$E$17:$E$102,Table3[[#This Row],[Service Catchment]]),Table3[[#This Row],[Year of Provision]]=2034,Table3[[#This Row],[Net Present Value of Establishment Cost]]/SUMIFS($AF$17:$AF$102,$W$17:$W$102,"2034",$E$17:$E$102,Table3[[#This Row],[Service Catchment]])) -> 0 | AB64: =IF(AND(Table3[[#This Row],[Spare Capacity (%)]]>30%,Table3[[#This Row],[Share of the total Cost with the same year of provision %]]>20%),(1-Table3[[#This Row],[Spare Capacity (%)]]),1) -> 1 | AC64: =IF(Table3[[#This Row],[Terminal Value Analysis]]<0,0,Table3[[#This Row],[Terminal Value Analysis]]) -> 1 | AD64: =ROUND(Y64+M64-Table3[[#This Row],[Grants and Subsidies ($)]],0) -> 23552973 | AE64: 24862862 | AF64: 20928602 | AG64: =Table3[[#This Row],[Net Present Value of Establishment Cost]]*Table3[[#This Row],[Terminal Value Adjustment (%)]] -> 20928602 | AH64: 20928602 | AI64: =Table3[[#This Row],[Net Present Value of Establishment Cost]]*Table3[[#This Row],[Terminal Value Adjustment (%)]] -> 20928602
B65: APT270 | C65: OXY-SP-001 | D65: Cycle Route (Secondary) | E65: Citywide | F65: Oxley Bikeway (Englefield Road to Douglas Street - southern side of railway line) | H65: 689 | I65: Cycle Route (Secondary) | K65: 4683 | L65: =IF(Table3[[#This Row],[Size of Land (m2)]]=0,0,Table3[[#This Row],[Land Value]]/Table3[[#This Row],[Size of Land (m2)]]) -> 2.826606876 | M65: 13237 | N65: =Table3[[#This Row],[Direct Construction Cost]]/Table3[[#This Row],[Length (m)]] -> 736.0435414 | O65: 507134 | P65: 2021 | Q65: 0.01 | S65: 116641 | T65: 0.15 | U65: 93566 | V65: 0 | W65: 2029 | X65: 1.155263475 | Y65: 717341 | Z65: =IFERROR(IF(Table3[[#This Row],[Year of Provision]]>2024,VLOOKUP(Table3[[#This Row],[Service Catchment]],'Catchment Demand - Pathway'!C$8:M$8,11,FALSE),""),"") -> 0.3396007115 | AA65: =_xlfn.IFS(Table3[[#This Row],[Year of Provision]]=2024,0,Table3[[#This Row],[Year of Provision]]=2029,Table3[[#This Row],[Net Present Value of Establishment Cost]]/SUMIFS($AF$17:$AF$102,$W$17:$W$102,"2029",$E$17:$E$102,Table3[[#This Row],[Service Catchment]]),Table3[[#This Row],[Year of Provision]]=2034,Table3[[#This Row],[Net Present Value of Establishment Cost]]/SUMIFS($AF$17:$AF$102,$W$17:$W$102,"2034",$E$17:$E$102,Table3[[#This Row],[Service Catchment]])) -> 0.002314208843 | AB65: =IF(AND(Table3[[#This Row],[Spare Capacity (%)]]>30%,Table3[[#This Row],[Share of the total Cost with the same year of provision %]]>20%),(1-Table3[[#This Row],[Spare Capacity (%)]]),1) -> 1 | AC65: =IF(Table3[[#This Row],[Terminal Value Analysis]]<0,0,Table3[[#This Row],[Terminal Value Analysis]]) -> 1 | AD65: =ROUND(Y65+M65-Table3[[#This Row],[Grants and Subsidies ($)]],0) -> 730578 | AE65: 844241 | AF65: 533299 | AG65: =Table3[[#This Row],[Net Present Value of Establishment Cost]]*Table3[[#This Row],[Terminal Value Adjustment (%)]] -> 533299 | AH65: 533299 | AI65: =Table3[[#This Row],[Net Present Value of Establishment Cost]]*Table3[[#This Row],[Terminal Value Adjustment (%)]] -> 533299
B66: APT251, APT270, APT271 | C66: OXY-SP-002 | D66: Cycle Route (Secondary) | E66: Citywide | F66: Oxley Bikeway (Douglas Street to Oxley Station Road - southern side of railway line) | H66: 687 | I66: Cycle Route (Secondary) | K66: 4659 | L66: =IF(Table3[[#This Row],[Size of Land (m2)]]=0,0,Table3[[#This Row],[Land Value]]/Table3[[#This Row],[Size of Land (m2)]]) -> 28.98239966 | M66: 135029 | N66: =Table3[[#This Row],[Direct Construction Cost]]/Table3[[#This Row],[Length (m)]] -> 736.0436681 | O66: 505662 | P66: 2021 | Q66: 0.01 | S66: 116302 | T66: 0.15 | U66: 93295 | V66: 0 | W66: 2029 | X66: 1.155263475 | Y66: 715259 | Z66: =IFERROR(IF(Table3[[#This Row],[Year of Provision]]>2024,VLOOKUP(Table3[[#This Row],[Service Catchment]],'Catchment Demand - Pathway'!C$8:M$8,11,FALSE),""),"") -> 0.3396007115 | AA66: =_xlfn.IFS(Table3[[#This Row],[Year of Provision]]=2024,0,Table3[[#This Row],[Year of Provision]]=2029,Table3[[#This Row],[Net Present Value of Establishment Cost]]/SUMIFS($AF$17:$AF$102,$W$17:$W$102,"2029",$E$17:$E$102,Table3[[#This Row],[Service Catchment]]),Table3[[#This Row],[Year of Provision]]=2034,Table3[[#This Row],[Net Present Value of Establishment Cost]]/SUMIFS($AF$17:$AF$102,$W$17:$W$102,"2034",$E$17:$E$102,Table3[[#This Row],[Service Catchment]])) -> 0.002699119819 | AB66: =IF(AND(Table3[[#This Row],[Spare Capacity (%)]]>30%,Table3[[#This Row],[Share of the total Cost with the same year of provision %]]>20%),(1-Table3[[#This Row],[Spare Capacity (%)]]),1) -> 1 | AC66: =IF(Table3[[#This Row],[Terminal Value Analysis]]<0,0,Table3[[#This Row],[Terminal Value Analysis]]) -> 1 | AD66: =ROUND(Y66+M66-Table3[[#This Row],[Grants and Subsidies ($)]],0) -> 850288 | AE66: 984659 | AF66: 622000 | AG66: =Table3[[#This Row],[Net Present Value of Establishment Cost]]*Table3[[#This Row],[Terminal Value Adjustment (%)]] -> 622000 | AH66: 622000 | AI66: =Table3[[#This Row],[Net Present Value of Establishment Cost]]*Table3[[#This Row],[Terminal Value Adjustment (%)]] -> 622000
B67: APT251, APT271 | C67: OXY-SP-009 | D67: Cycle Route (Secondary) | E67: Citywide | F67: Oxley Greenway (Cliveden Avenue - Kendall Street) | H67: 1587 | I67: Cycle Route (Secondary) | K67: 8986 | L67: =IF(Table3[[#This Row],[Size of Land (m2)]]=0,0,Table3[[#This Row],[Land Value]]/Table3[[#This Row],[Size of Land (m2)]]) -> 2.964722902 | M67: 26641 | N67: =Table3[[#This Row],[Direct Construction Cost]]/Table3[[#This Row],[Length (m)]] -> 736.0428481 | O67: 1168100 | P67: 2021 | Q67: 0.01 | S67: 268663 | T67: 0.15 | U67: 215514 | V67: 0 | W67: 2029 | X67: 1.155263475 | Y67: 1652277 | Z67: =IFERROR(IF(Table3[[#This Row],[Year of Provision]]>2024,VLOOKUP(Table3[[#This Row],[Service Catchment]],'Catchment Demand - Pathway'!C$8:M$8,11,FALSE),""),"") -> 0.3396007115 | AA67: =_xlfn.IFS(Table3[[#This Row],[Year of Provision]]=2024,0,Table3[[#This Row],[Year of Provision]]=2029,Table3[[#This Row],[Net Present Value of Establishment Cost]]/SUMIFS($AF$17:$AF$102,$W$17:$W$102,"2029",$E$17:$E$102,Table3[[#This Row],[Service Catchment]]),Table3[[#This Row],[Year of Provision]]=2034,Table3[[#This Row],[Net Present Value of Establishment Cost]]/SUMIFS($AF$17:$AF$102,$W$17:$W$102,"2034",$E$17:$E$102,Table3[[#This Row],[Service Catchment]])) -> 0.005318025442 | AB67: =IF(AND(Table3[[#This Row],[Spare Capacity (%)]]>30%,Table3[[#This Row],[Share of the total Cost with the same year of provision %]]>20%),(1-Table3[[#This Row],[Spare Capacity (%)]]),1) -> 1 | AC67: =IF(Table3[[#This Row],[Terminal Value Analysis]]<0,0,Table3[[#This Row],[Terminal Value Analysis]]) -> 1 | AD67: =ROUND(Y67+M67-Table3[[#This Row],[Grants and Subsidies ($)]],0) -> 1678918 | AE67: 1940057 | AF67: 1225515 | AG67: =Table3[[#This Row],[Net Present Value of Establishment Cost]]*Table3[[#This Row],[Terminal Value Adjustment (%)]] -> 1225515 | AH67: 1225515 | AI67: =Table3[[#This Row],[Net Present Value of Establishment Cost]]*Table3[[#This Row],[Terminal Value Adjustment (%)]] -> 1225515
B68: APT312 | C68: PAL-SP-001 | D68: Cycle Route (Secondary) | E68: Citywide | F68: Pallara Bikeway (Sweets Road to Vied Road) | H68: 441 | I68: Cycle Route (Secondary) | K68: 2821 | L68: =IF(Table3[[#This Row],[Size of Land (m2)]]=0,0,Table3[[#This Row],[Land Value]]/Table3[[#This Row],[Size of Land (m2)]]) -> 21.56540234 | M68: 60836 | N68: =Table3[[#This Row],[Direct Construction Cost]]/Table3[[#This Row],[Length (m)]] -> 736.0430839 | O68: 324595 | P68: 2021 | Q68: 0.01 | S68: 74657 | T68: 0.075 | U68: 29944 | V68: 0 | W68: 2024 | X68: 1.055614607 | Y68: 429196 | Z68: =IFERROR(IF(Table3[[#This Row],[Year of Provision]]>2024,VLOOKUP(Table3[[#This Row],[Service Catchment]],'Catchment Demand - Pathway'!C$8:M$8,11,FALSE),""),"") ->  | AA68: =_xlfn.IFS(Table3[[#This Row],[Year of Provision]]=2024,0,Table3[[#This Row],[Year of Provision]]=2029,Table3[[#This Row],[Net Present Value of Establishment Cost]]/SUMIFS($AF$17:$AF$102,$W$17:$W$102,"2029",$E$17:$E$102,Table3[[#This Row],[Service Catchment]]),Table3[[#This Row],[Year of Provision]]=2034,Table3[[#This Row],[Net Present Value of Establishment Cost]]/SUMIFS($AF$17:$AF$102,$W$17:$W$102,"2034",$E$17:$E$102,Table3[[#This Row],[Service Catchment]])) -> 0 | AB68: =IF(AND(Table3[[#This Row],[Spare Capacity (%)]]>30%,Table3[[#This Row],[Share of the total Cost with the same year of provision %]]>20%),(1-Table3[[#This Row],[Spare Capacity (%)]]),1) -> 1 | AC68: =IF(Table3[[#This Row],[Terminal Value Analysis]]<0,0,Table3[[#This Row],[Terminal Value Analysis]]) -> 1 | AD68: =ROUND(Y68+M68-Table3[[#This Row],[Grants and Subsidies ($)]],0) -> 490032 | AE68: 517646 | AF68: 435735 | AG68: =Table3[[#This Row],[Net Present Value of Establishment Cost]]*Table3[[#This Row],[Terminal Value Adjustment (%)]] -> 435735 | AH68: 435735 | AI68: =Table3[[#This Row],[Net Present Value of Establishment Cost]]*Table3[[#This Row],[Terminal Value Adjustment (%)]] -> 435735
B69: APT312 | C69: PAL-SP-002 | D69: Cycle Route (Secondary) | E69: Citywide | F69: Pallara Bikeway (Kraft Road to Sweets Road) | H69: 426 | I69: Cycle Route (Secondary) | K69: 3021 | L69: =IF(Table3[[#This Row],[Size of Land (m2)]]=0,0,Table3[[#This Row],[Land Value]]/Table3[[#This Row],[Size of Land (m2)]]) -> 12.7672956 | M69: 38570 | N69: =Table3[[#This Row],[Direct Construction Cost]]/Table3[[#This Row],[Length (m)]] -> 736.0422535 | O69: 313554 | P69: 2021 | Q69: 0.01 | S69: 72117 | T69: 0.075 | U69: 28925 | V69: 0 | W69: 2024 | X69: 1.055614607 | Y69: 414596 | Z69: =IFERROR(IF(Table3[[#This Row],[Year of Provision]]>2024,VLOOKUP(Table3[[#This Row],[Service Catchment]],'Catchment Demand - Pathway'!C$8:M$8,11,FALSE),""),"") ->  | AA69: =_xlfn.IFS(Table3[[#This Row],[Year of Provision]]=2024,0,Table3[[#This Row],[Year of Provision]]=2029,Table3[[#This Row],[Net Present Value of Establishment Cost]]/SUMIFS($AF$17:$AF$102,$W$17:$W$102,"2029",$E$17:$E$102,Table3[[#This Row],[Service Catchment]]),Table3[[#This Row],[Year of Provision]]=2034,Table3[[#This Row],[Net Present Value of Establishment Cost]]/SUMIFS($AF$17:$AF$102,$W$17:$W$102,"2034",$E$17:$E$102,Table3[[#This Row],[Service Catchment]])) -> 0 | AB69: =IF(AND(Table3[[#This Row],[Spare Capacity (%)]]>30%,Table3[[#This Row],[Share of the total Cost with the same year of provision %]]>20%),(1-Table3[[#This Row],[Spare Capacity (%)]]),1) -> 1 | AC69: =IF(Table3[[#This Row],[Terminal Value Analysis]]<0,0,Table3[[#This Row],[Terminal Value Analysis]]) -> 1 | AD69: =ROUND(Y69+M69-Table3[[#This Row],[Grants and Subsidies ($)]],0) -> 453166 | AE69: 478598 | AF69: 402865 | AG69: =Table3[[#This Row],[Net Present Value of Establishment Cost]]*Table3[[#This Row],[Terminal Value Adjustment (%)]] -> 402865 | AH69: 402865 | AI69: =Table3[[#This Row],[Net Present Value of Establishment Cost]]*Table3[[#This Row],[Terminal Value Adjustment (%)]] -> 402865
B70: APT312 | C70: PAL-SP-003 | D70: Cycle Route (Secondary) | E70: Citywide | F70: Pallara Bikeway (Kraft Road to Laxton Road) | H70: 454 | I70: Cycle Route (Secondary) | K70: 2840 | L70: =IF(Table3[[#This Row],[Size of Land (m2)]]=0,0,Table3[[#This Row],[Land Value]]/Table3[[#This Row],[Size of Land (m2)]]) -> 0 | M70: 0 | N70: =Table3[[#This Row],[Direct Construction Cost]]/Table3[[#This Row],[Length (m)]] -> 736.0440529 | O70: 334164 | P70: 2021 | Q70: 0.01 | S70: 76858 | T70: 0.075 | U70: 30827 | V70: 0 | W70: 2024 | X70: 1.055614607 | Y70: 441849 | Z70: =IFERROR(IF(Table3[[#This Row],[Year of Provision]]>2024,VLOOKUP(Table3[[#This Row],[Service Catchment]],'Catchment Demand - Pathway'!C$8:M$8,11,FALSE),""),"") ->  | AA70: =_xlfn.IFS(Table3[[#This Row],[Year of Provision]]=2024,0,Table3[[#This Row],[Year of Provision]]=2029,Table3[[#This Row],[Net Present Value of Establishment Cost]]/SUMIFS($AF$17:$AF$102,$W$17:$W$102,"2029",$E$17:$E$102,Table3[[#This Row],[Service Catchment]]),Table3[[#This Row],[Year of Provision]]=2034,Table3[[#This Row],[Net Present Value of Establishment Cost]]/SUMIFS($AF$17:$AF$102,$W$17:$W$102,"2034",$E$17:$E$102,Table3[[#This Row],[Service Catchment]])) -> 0 | AB70: =IF(AND(Table3[[#This Row],[Spare Capacity (%)]]>30%,Table3[[#This Row],[Share of the total Cost with the same year of provision %]]>20%),(1-Table3[[#This Row],[Spare Capacity (%)]]),1) -> 1 | AC70: =IF(Table3[[#This Row],[Terminal Value Analysis]]<0,0,Table3[[#This Row],[Terminal Value Analysis]]) -> 1 | AD70: =ROUND(Y70+M70-Table3[[#This Row],[Grants and Subsidies ($)]],0) -> 441849 | AE70: 466422 | AF70: 392616 | AG70: =Table3[[#This Row],[Net Present Value of Establishment Cost]]*Table3[[#This Row],[Terminal Value Adjustment (%)]] -> 392616 | AH70: 392616 | AI70: =Table3[[#This Row],[Net Present Value of Establishment Cost]]*Table3[[#This Row],[Terminal Value Adjustment (%)]] -> 392616
B71: APT312, APT311 | C71: PAL-SP-004 | D71: Cycle Route (Secondary) | E71: Citywide | F71: Pallara Bikeway (Laxton Road to Van Dieren Road) | H71: 454 | I71: Cycle Route (Secondary) | K71: 2840 | L71: =IF(Table3[[#This Row],[Size of Land (m2)]]=0,0,Table3[[#This Row],[Land Value]]/Table3[[#This Row],[Size of Land (m2)]]) -> 0 | M71: 0 | N71: =Table3[[#This Row],[Direct Construction Cost]]/Table3[[#This Row],[Length (m)]] -> 736.0440529 | O71: 334164 | P71: 2021 | Q71: 0.01 | S71: 76858 | T71: 0.075 | U71: 30827 | V71: 0 | W71: 2024 | X71: 1.055614607 | Y71: 441849 | Z71: =IFERROR(IF(Table3[[#This Row],[Year of Provision]]>2024,VLOOKUP(Table3[[#This Row],[Service Catchment]],'Catchment Demand - Pathway'!C$8:M$8,11,FALSE),""),"") ->  | AA71: =_xlfn.IFS(Table3[[#This Row],[Year of Provision]]=2024,0,Table3[[#This Row],[Year of Provision]]=2029,Table3[[#This Row],[Net Present Value of Establishment Cost]]/SUMIFS($AF$17:$AF$102,$W$17:$W$102,"2029",$E$17:$E$102,Table3[[#This Row],[Service Catchment]]),Table3[[#This Row],[Year of Provision]]=2034,Table3[[#This Row],[Net Present Value of Establishment Cost]]/SUMIFS($AF$17:$AF$102,$W$17:$W$102,"2034",$E$17:$E$102,Table3[[#This Row],[Service Catchment]])) -> 0 | AB71: =IF(AND(Table3[[#This Row],[Spare Capacity (%)]]>30%,Table3[[#This Row],[Share of the total Cost with the same year of provision %]]>20%),(1-Table3[[#This Row],[Spare Capacity (%)]]),1) -> 1 | AC71: =IF(Table3[[#This Row],[Terminal Value Analysis]]<0,0,Table3[[#This Row],[Terminal Value Analysis]]) -> 1 | AD71: =ROUND(Y71+M71-Table3[[#This Row],[Grants and Subsidies ($)]],0) -> 441849 | AE71: 466422 | AF71: 392616 | AG71: =Table3[[#This Row],[Net Present Value of Establishment Cost]]*Table3[[#This Row],[Terminal Value Adjustment (%)]] -> 392616 | AH71: 392616 | AI71: =Table3[[#This Row],[Net Present Value of Establishment Cost]]*Table3[[#This Row],[Terminal Value Adjustment (%)]] -> 392616
B72: APT331, APT311 | C72: PAL-SP-005 | D72: Cycle Route (Secondary) | E72: Citywide | F72: Pallara Bikeway (Van Dieren Road to Devries Road) | H72: 453 | I72: Cycle Route (Secondary) | K72: 2832 | L72: =IF(Table3[[#This Row],[Size of Land (m2)]]=0,0,Table3[[#This Row],[Land Value]]/Table3[[#This Row],[Size of Land (m2)]]) -> 0 | M72: 0 | N72: =Table3[[#This Row],[Direct Construction Cost]]/Table3[[#This Row],[Length (m)]] -> 736.0441501 | O72: 333428 | P72: 2021 | Q72: 0.01 | S72: 76688 | T72: 0.075 | U72: 30759 | V72: 0 | W72: 2024 | X72: 1.055614607 | Y72: 440875 | Z72: =IFERROR(IF(Table3[[#This Row],[Year of Provision]]>2024,VLOOKUP(Table3[[#This Row],[Service Catchment]],'Catchment Demand - Pathway'!C$8:M$8,11,FALSE),""),"") ->  | AA72: =_xlfn.IFS(Table3[[#This Row],[Year of Provision]]=2024,0,Table3[[#This Row],[Year of Provision]]=2029,Table3[[#This Row],[Net Present Value of Establishment Cost]]/SUMIFS($AF$17:$AF$102,$W$17:$W$102,"2029",$E$17:$E$102,Table3[[#This Row],[Service Catchment]]),Table3[[#This Row],[Year of Provision]]=2034,Table3[[#This Row],[Net Present Value of Establishment Cost]]/SUMIFS($AF$17:$AF$102,$W$17:$W$102,"2034",$E$17:$E$102,Table3[[#This Row],[Service Catchment]])) -> 0 | AB72: =IF(AND(Table3[[#This Row],[Spare Capacity (%)]]>30%,Table3[[#This Row],[Share of the total Cost with the same year of provision %]]>20%),(1-Table3[[#This Row],[Spare Capacity (%)]]),1) -> 1 | AC72: =IF(Table3[[#This Row],[Terminal Value Analysis]]<0,0,Table3[[#This Row],[Terminal Value Analysis]]) -> 1 | AD72: =ROUND(Y72+M72-Table3[[#This Row],[Grants and Subsidies ($)]],0) -> 440875 | AE72: 465394 | AF72: 391751 | AG72: =Table3[[#This Row],[Net Present Value of Establishment Cost]]*Table3[[#This Row],[Terminal Value Adjustment (%)]] -> 391751 | AH72: 391751 | AI72: =Table3[[#This Row],[Net Present Value of Establishment Cost]]*Table3[[#This Row],[Terminal Value Adjustment (%)]] -> 391751
B73: APT311 | C73: PAL-SP-007 | D73: Cycle Route (Secondary) | E73: Citywide | F73: Blunder Creek Bikeway (Blunder Road to Ritchie Road) | H73: 441 | I73: Cycle Route (Secondary) | K73: 6249 | L73: =IF(Table3[[#This Row],[Size of Land (m2)]]=0,0,Table3[[#This Row],[Land Value]]/Table3[[#This Row],[Size of Land (m2)]]) -> 11.76924308 | M73: 73546 | N73: =Table3[[#This Row],[Direct Construction Cost]]/Table3[[#This Row],[Length (m)]] -> 736.0430839 | O73: 324595 | P73: 2021 | Q73: 0.01 | S73: 74657 | T73: 0.075 | U73: 29944 | V73: 0 | W73: 2024 | X73: 1.055614607 | Y73: 429196 | Z73: =IFERROR(IF(Table3[[#This Row],[Year of Provision]]>2024,VLOOKUP(Table3[[#This Row],[Service Catchment]],'Catchment Demand - Pathway'!C$8:M$8,11,FALSE),""),"") ->  | AA73: =_xlfn.IFS(Table3[[#This Row],[Year of Provision]]=2024,0,Table3[[#This Row],[Year of Provision]]=2029,Table3[[#This Row],[Net Present Value of Establishment Cost]]/SUMIFS($AF$17:$AF$102,$W$17:$W$102,"2029",$E$17:$E$102,Table3[[#This Row],[Service Catchment]]),Table3[[#This Row],[Year of Provision]]=2034,Table3[[#This Row],[Net Present Value of Establishment Cost]]/SUMIFS($AF$17:$AF$102,$W$17:$W$102,"2034",$E$17:$E$102,Table3[[#This Row],[Service Catchment]])) -> 0 | AB73: =IF(AND(Table3[[#This Row],[Spare Capacity (%)]]>30%,Table3[[#This Row],[Share of the total Cost with the same year of provision %]]>20%),(1-Table3[[#This Row],[Spare Capacity (%)]]),1) -> 1 | AC73: =IF(Table3[[#This Row],[Terminal Value Analysis]]<0,0,Table3[[#This Row],[Terminal Value Analysis]]) -> 1 | AD73: =ROUND(Y73+M73-Table3[[#This Row],[Grants and Subsidies ($)]],0) -> 502742 | AE73: 531139 | AF73: 447092 | AG73: =Table3[[#This Row],[Net Present Value of Establishment Cost]]*Table3[[#This Row],[Terminal Value Adjustment (%)]] -> 447092 | AH73: 447092 | AI73: =Table3[[#This Row],[Net Present Value of Establishment Cost]]*Table3[[#This Row],[Terminal Value Adjustment (%)]] -> 447092
B74: APT155, APT175, APT174 | C74: PIN-SP-001 | D74: Cycle Route (Primary) | E74: Citywide | F74: Northshore Hamilton | H74: 2334 | I74: Cycle Route (Primary) | K74: 11855 | L74: =IF(Table3[[#This Row],[Size of Land (m2)]]=0,0,Table3[[#This Row],[Land Value]]/Table3[[#This Row],[Size of Land (m2)]]) -> 149.196879 | M74: 1768729 | N74: =Table3[[#This Row],[Direct Construction Cost]]/Table3[[#This Row],[Length (m)]] -> 736.0432734 | O74: 1717925 | P74: 2021 | Q74: 0.01 | S74: 395123 | T74: 0.15 | U74: 316957 | V74: 0 | W74: 2029 | X74: 1.155263475 | Y74: 2430005 | Z74: =IFERROR(IF(Table3[[#This Row],[Year of Provision]]>2024,VLOOKUP(Table3[[#This Row],[Service Catchment]],'Catchment Demand - Pathway'!C$8:M$8,11,FALSE),""),"") -> 0.3396007115 | AA74: =_xlfn.IFS(Table3[[#This Row],[Year of Provision]]=2024,0,Table3[[#This Row],[Year of Provision]]=2029,Table3[[#This Row],[Net Present Value of Establishment Cost]]/SUMIFS($AF$17:$AF$102,$W$17:$W$102,"2029",$E$17:$E$102,Table3[[#This Row],[Service Catchment]]),Table3[[#This Row],[Year of Provision]]=2034,Table3[[#This Row],[Net Present Value of Establishment Cost]]/SUMIFS($AF$17:$AF$102,$W$17:$W$102,"2034",$E$17:$E$102,Table3[[#This Row],[Service Catchment]])) -> 0.01338092122 | AB74: =IF(AND(Table3[[#This Row],[Spare Capacity (%)]]>30%,Table3[[#This Row],[Share of the total Cost with the same year of provision %]]>20%),(1-Table3[[#This Row],[Spare Capacity (%)]]),1) -> 1 | AC74: =IF(Table3[[#This Row],[Terminal Value Analysis]]<0,0,Table3[[#This Row],[Terminal Value Analysis]]) -> 1 | AD74: =ROUND(Y74+M74-Table3[[#This Row],[Grants and Subsidies ($)]],0) -> 4198734 | AE74: 4881463 | AF74: 3083573 | AG74: =Table3[[#This Row],[Net Present Value of Establishment Cost]]*Table3[[#This Row],[Terminal Value Adjustment (%)]] -> 3083573 | AH74: 3083573 | AI74: =Table3[[#This Row],[Net Present Value of Establishment Cost]]*Table3[[#This Row],[Terminal Value Adjustment (%)]] -> 3083573
B75: APT290 | C75: RIC-SP-012 | D75: Cycle Route (Secondary) | E75: Citywide | F75: Richlands Bikeway (Teraba Street to Bendara Street) | H75: 483 | I75: Cycle Route (Secondary) | K75: 3023 | L75: =IF(Table3[[#This Row],[Size of Land (m2)]]=0,0,Table3[[#This Row],[Land Value]]/Table3[[#This Row],[Size of Land (m2)]]) -> 246.5491234 | M75: 745318 | N75: =Table3[[#This Row],[Direct Construction Cost]]/Table3[[#This Row],[Length (m)]] -> 736.0434783 | O75: 355509 | P75: 2021 | Q75: 0.01 | S75: 81767 | T75: 0.15 | U75: 65591 | V75: 0 | W75: 2029 | X75: 1.155263475 | Y75: 502867 | Z75: =IFERROR(IF(Table3[[#This Row],[Year of Provision]]>2024,VLOOKUP(Table3[[#This Row],[Service Catchment]],'Catchment Demand - Pathway'!C$8:M$8,11,FALSE),""),"") -> 0.3396007115 | AA75: =_xlfn.IFS(Table3[[#This Row],[Year of Provision]]=2024,0,Table3[[#This Row],[Year of Provision]]=2029,Table3[[#This Row],[Net Present Value of Establishment Cost]]/SUMIFS($AF$17:$AF$102,$W$17:$W$102,"2029",$E$17:$E$102,Table3[[#This Row],[Service Catchment]]),Table3[[#This Row],[Year of Provision]]=2034,Table3[[#This Row],[Net Present Value of Establishment Cost]]/SUMIFS($AF$17:$AF$102,$W$17:$W$102,"2034",$E$17:$E$102,Table3[[#This Row],[Service Catchment]])) -> 0.003988318383 | AB75: =IF(AND(Table3[[#This Row],[Spare Capacity (%)]]>30%,Table3[[#This Row],[Share of the total Cost with the same year of provision %]]>20%),(1-Table3[[#This Row],[Spare Capacity (%)]]),1) -> 1 | AC75: =IF(Table3[[#This Row],[Terminal Value Analysis]]<0,0,Table3[[#This Row],[Terminal Value Analysis]]) -> 1 | AD75: =ROUND(Y75+M75-Table3[[#This Row],[Grants and Subsidies ($)]],0) -> 1248185 | AE75: 1454969 | AF75: 919090 | AG75: =Table3[[#This Row],[Net Present Value of Establishment Cost]]*Table3[[#This Row],[Terminal Value Adjustment (%)]] -> 919090 | AH75: 919090 | AI75: =Table3[[#This Row],[Net Present Value of Establishment Cost]]*Table3[[#This Row],[Terminal Value Adjustment (%)]] -> 919090
B76: APT275 | C76: ROC-SP-002 | D76: Cycle Route (Primary) | E76: Citywide | F76: Rochedale Bikeway (Cooper Crescent to Prebble Street plus link to Gardner Road) | H76: 437 | I76: Cycle Route (Primary) | K76: 2695 | L76: =IF(Table3[[#This Row],[Size of Land (m2)]]=0,0,Table3[[#This Row],[Land Value]]/Table3[[#This Row],[Size of Land (m2)]]) -> 3.854174397 | M76: 10387 | N76: =Table3[[#This Row],[Direct Construction Cost]]/Table3[[#This Row],[Length (m)]] -> 736.0434783 | O76: 321651 | P76: 2021 | Q76: 0.01 | S76: 73980 | T76: 0.075 | U76: 29672 | V76: 0 | W76: 2024 | X76: 1.055614607 | Y76: 425303 | Z76: =IFERROR(IF(Table3[[#This Row],[Year of Provision]]>2024,VLOOKUP(Table3[[#This Row],[Service Catchment]],'Catchment Demand - Pathway'!C$8:M$8,11,FALSE),""),"") ->  | AA76: =_xlfn.IFS(Table3[[#This Row],[Year of Provision]]=2024,0,Table3[[#This Row],[Year of Provision]]=2029,Table3[[#This Row],[Net Present Value of Establishment Cost]]/SUMIFS($AF$17:$AF$102,$W$17:$W$102,"2029",$E$17:$E$102,Table3[[#This Row],[Service Catchment]]),Table3[[#This Row],[Year of Provision]]=2034,Table3[[#This Row],[Net Present Value of Establishment Cost]]/SUMIFS($AF$17:$AF$102,$W$17:$W$102,"2034",$E$17:$E$102,Table3[[#This Row],[Service Catchment]])) -> 0 | AB76: =IF(AND(Table3[[#This Row],[Spare Capacity (%)]]>30%,Table3[[#This Row],[Share of the total Cost with the same year of provision %]]>20%),(1-Table3[[#This Row],[Spare Capacity (%)]]),1) -> 1 | AC76: =IF(Table3[[#This Row],[Terminal Value Analysis]]<0,0,Table3[[#This Row],[Terminal Value Analysis]]) -> 1 | AD76: =ROUND(Y76+M76-Table3[[#This Row],[Grants and Subsidies ($)]],0) -> 435690 | AE76: 459982 | AF76: 387195 | AG76: =Table3[[#This Row],[Net Present Value of Establishment Cost]]*Table3[[#This Row],[Terminal Value Adjustment (%)]] -> 387195 | AH76: 387195 | AI76: =Table3[[#This Row],[Net Present Value of Establishment Cost]]*Table3[[#This Row],[Terminal Value Adjustment (%)]] -> 387195
B77: APT276, APT275 | C77: ROC-SP-017 | D77: Cycle Route (Secondary) | E77: Citywide | F77: Prebble Street extension (Priestdale Road to Underwood Road) | H77: 1173 | I77: Cycle Route (Secondary) | K77: 7342 | L77: =IF(Table3[[#This Row],[Size of Land (m2)]]=0,0,Table3[[#This Row],[Land Value]]/Table3[[#This Row],[Size of Land (m2)]]) -> 206.9494688 | M77: 1519423 | N77: =Table3[[#This Row],[Direct Construction Cost]]/Table3[[#This Row],[Length (m)]] -> 736.0434783 | O77: 863379 | P77: 2021 | Q77: 0.01 | S77: 198577 | T77: 0.15 | U77: 159293 | V77: 0 | W77: 2029 | X77: 1.155263475 | Y77: 1221249 | Z77: =IFERROR(IF(Table3[[#This Row],[Year of Provision]]>2024,VLOOKUP(Table3[[#This Row],[Service Catchment]],'Catchment Demand - Pathway'!C$8:M$8,11,FALSE),""),"") -> 0.3396007115 | AA77: =_xlfn.IFS(Table3[[#This Row],[Year of Provision]]=2024,0,Table3[[#This Row],[Year of Provision]]=2029,Table3[[#This Row],[Net Present Value of Establishment Cost]]/SUMIFS($AF$17:$AF$102,$W$17:$W$102,"2029",$E$17:$E$102,Table3[[#This Row],[Service Catchment]]),Table3[[#This Row],[Year of Provision]]=2034,Table3[[#This Row],[Net Present Value of Establishment Cost]]/SUMIFS($AF$17:$AF$102,$W$17:$W$102,"2034",$E$17:$E$102,Table3[[#This Row],[Service Catchment]])) -> 0.008751661684 | AB77: =IF(AND(Table3[[#This Row],[Spare Capacity (%)]]>30%,Table3[[#This Row],[Share of the total Cost with the same year of provision %]]>20%),(1-Table3[[#This Row],[Spare Capacity (%)]]),1) -> 1 | AC77: =IF(Table3[[#This Row],[Terminal Value Analysis]]<0,0,Table3[[#This Row],[Terminal Value Analysis]]) -> 1 | AD77: =ROUND(Y77+M77-Table3[[#This Row],[Grants and Subsidies ($)]],0) -> 2740672 | AE77: 3192673 | AF77: 2016781 | AG77: =Table3[[#This Row],[Net Present Value of Establishment Cost]]*Table3[[#This Row],[Terminal Value Adjustment (%)]] -> 2016781 | AH77: 2016781 | AI77: =Table3[[#This Row],[Net Present Value of Establishment Cost]]*Table3[[#This Row],[Terminal Value Adjustment (%)]] -> 2016781
B78: APT251 | C78: ROK-SP-005 | D78: Cycle Route (Secondary) | E78: Citywide | F78: Oxley Greenway (Sherwood Road - Pony Club) | H78: 3432 | I78: Cycle Route (Secondary) | K78: 21424 | L78: =IF(Table3[[#This Row],[Size of Land (m2)]]=0,0,Table3[[#This Row],[Land Value]]/Table3[[#This Row],[Size of Land (m2)]]) -> 10.23277633 | M78: 219227 | N78: =Table3[[#This Row],[Direct Construction Cost]]/Table3[[#This Row],[Length (m)]] -> 736.0431235 | O78: 2526100 | P78: 2021 | Q78: 0.01 | S78: 581003 | T78: 0.15 | U78: 466065 | V78: 0 | W78: 2029 | X78: 1.155263475 | Y78: 3573168 | Z78: =IFERROR(IF(Table3[[#This Row],[Year of Provision]]>2024,VLOOKUP(Table3[[#This Row],[Service Catchment]],'Catchment Demand - Pathway'!C$8:M$8,11,FALSE),""),"") -> 0.3396007115 | AA78: =_xlfn.IFS(Table3[[#This Row],[Year of Provision]]=2024,0,Table3[[#This Row],[Year of Provision]]=2029,Table3[[#This Row],[Net Present Value of Establishment Cost]]/SUMIFS($AF$17:$AF$102,$W$17:$W$102,"2029",$E$17:$E$102,Table3[[#This Row],[Service Catchment]]),Table3[[#This Row],[Year of Provision]]=2034,Table3[[#This Row],[Net Present Value of Establishment Cost]]/SUMIFS($AF$17:$AF$102,$W$17:$W$102,"2034",$E$17:$E$102,Table3[[#This Row],[Service Catchment]])) -> 0.01202012655 | AB78: =IF(AND(Table3[[#This Row],[Spare Capacity (%)]]>30%,Table3[[#This Row],[Share of the total Cost with the same year of provision %]]>20%),(1-Table3[[#This Row],[Spare Capacity (%)]]),1) -> 1 | AC78: =IF(Table3[[#This Row],[Terminal Value Analysis]]<0,0,Table3[[#This Row],[Terminal Value Analysis]]) -> 1 | AD78: =ROUND(Y78+M78-Table3[[#This Row],[Grants and Subsidies ($)]],0) -> 3792395 | AE78: 4385035 | AF78: 2769984 | AG78: =Table3[[#This Row],[Net Present Value of Establishment Cost]]*Table3[[#This Row],[Terminal Value Adjustment (%)]] -> 2769984 | AH78: 2769984 | AI78: =Table3[[#This Row],[Net Present Value of Establishment Cost]]*Table3[[#This Row],[Terminal Value Adjustment (%)]] -> 2769984
B79: APT271 | C79: ROK-SP-006 | D79: Cycle Route (Secondary) | E79: Citywide | F79: Oxley Greenway (Kendall Street - Ipswich Motorway) | H79: 1096 | I79: Cycle Route (Secondary) | K79: 6655 | L79: =IF(Table3[[#This Row],[Size of Land (m2)]]=0,0,Table3[[#This Row],[Land Value]]/Table3[[#This Row],[Size of Land (m2)]]) -> 3.011570248 | M79: 20042 | N79: =Table3[[#This Row],[Direct Construction Cost]]/Table3[[#This Row],[Length (m)]] -> 736.0428832 | O79: 806703 | P79: 2021 | Q79: 0.01 | S79: 185542 | T79: 0.15 | U79: 148837 | V79: 0 | W79: 2029 | X79: 1.155263475 | Y79: 1141082 | Z79: =IFERROR(IF(Table3[[#This Row],[Year of Provision]]>2024,VLOOKUP(Table3[[#This Row],[Service Catchment]],'Catchment Demand - Pathway'!C$8:M$8,11,FALSE),""),"") -> 0.3396007115 | AA79: =_xlfn.IFS(Table3[[#This Row],[Year of Provision]]=2024,0,Table3[[#This Row],[Year of Provision]]=2029,Table3[[#This Row],[Net Present Value of Establishment Cost]]/SUMIFS($AF$17:$AF$102,$W$17:$W$102,"2029",$E$17:$E$102,Table3[[#This Row],[Service Catchment]]),Table3[[#This Row],[Year of Provision]]=2034,Table3[[#This Row],[Net Present Value of Establishment Cost]]/SUMIFS($AF$17:$AF$102,$W$17:$W$102,"2034",$E$17:$E$102,Table3[[#This Row],[Service Catchment]])) -> 0.003677971677 | AB79: =IF(AND(Table3[[#This Row],[Spare Capacity (%)]]>30%,Table3[[#This Row],[Share of the total Cost with the same year of provision %]]>20%),(1-Table3[[#This Row],[Spare Capacity (%)]]),1) -> 1 | AC79: =IF(Table3[[#This Row],[Terminal Value Analysis]]<0,0,Table3[[#This Row],[Terminal Value Analysis]]) -> 1 | AD79: =ROUND(Y79+M79-Table3[[#This Row],[Grants and Subsidies ($)]],0) -> 1161124 | AE79: 1341753 | AF79: 847572 | AG79: =Table3[[#This Row],[Net Present Value of Establishment Cost]]*Table3[[#This Row],[Terminal Value Adjustment (%)]] -> 847572 | AH79: 847572 | AI79: =Table3[[#This Row],[Net Present Value of Establishment Cost]]*Table3[[#This Row],[Terminal Value Adjustment (%)]] -> 847572
B80: APT252 | C80: ROK-SP-007 | D80: Cycle Route (Secondary) | E80: Citywide | F80: Rocky Water Holes Creek Bikeway (connection to Rocklea Station) | H80: 232 | I80: Cycle Route (Secondary) | K80: 756 | L80: =IF(Table3[[#This Row],[Size of Land (m2)]]=0,0,Table3[[#This Row],[Land Value]]/Table3[[#This Row],[Size of Land (m2)]]) -> 18.93650794 | M80: 14316 | N80: =Table3[[#This Row],[Direct Construction Cost]]/Table3[[#This Row],[Length (m)]] -> 815.6163793 | O80: 189223 | P80: 2021 | Q80: 0.01 | S80: =ROUND((O80)*23%,0) -> 43521 | T80: =IF(W80="","",IF(W80<=YEAR+5,0.075,IF(AND(W80>YEAR+5,W80<=YEAR+10),0.15,IF(AND(W80>YEAR+10,W80<=YEAR+20),0.2,IF(W80>YEAR+20,0.25,""))))) -> 0.15 | U80: =ROUND((O80+S80)*T80,0) -> 34912 | V80: 0 | W80: 2029 | X80: =(1+PPI)^(W80-YEAR) -> 1.155263475 | Y80: =ROUND(U80+S80+O80,0) -> 267656 | Z80: =IFERROR(IF(Table3[[#This Row],[Year of Provision]]>2024,VLOOKUP(Table3[[#This Row],[Service Catchment]],'Catchment Demand - Pathway'!C$8:M$8,11,FALSE),""),"") -> 0.3396007115 | AA80: =_xlfn.IFS(Table3[[#This Row],[Year of Provision]]=2024,0,Table3[[#This Row],[Year of Provision]]=2029,Table3[[#This Row],[Net Present Value of Establishment Cost]]/SUMIFS($AF$17:$AF$102,$W$17:$W$102,"2029",$E$17:$E$102,Table3[[#This Row],[Service Catchment]]),Table3[[#This Row],[Year of Provision]]=2034,Table3[[#This Row],[Net Present Value of Establishment Cost]]/SUMIFS($AF$17:$AF$102,$W$17:$W$102,"2034",$E$17:$E$102,Table3[[#This Row],[Service Catchment]])) -> 0.0008936256311 | AB80: =IF(AND(Table3[[#This Row],[Spare Capacity (%)]]>30%,Table3[[#This Row],[Share of the total Cost with the same year of provision %]]>20%),(1-Table3[[#This Row],[Spare Capacity (%)]]),1) -> 1 | AC80: =IF(Table3[[#This Row],[Terminal Value Analysis]]<0,0,Table3[[#This Row],[Terminal Value Analysis]]) -> 1 | AD80: =ROUND(Y80+M80-Table3[[#This Row],[Grants and Subsidies ($)]],0) -> 281972 | AE80: =IFERROR(ROUND((Y80*X80+(M80*((1+Landind)^(W80-YEAR)))),0),0) -> 326001 | AF80: =ROUND((AE80*(1/(1+WACC))^(W80-YEAR)),0) -> 205932 | AG80: =Table3[[#This Row],[Net Present Value of Establishment Cost]]*Table3[[#This Row],[Terminal Value Adjustment (%)]] -> 205932 | AH80: =AF80 -> 205932 | AI80: =Table3[[#This Row],[Net Present Value of Establishment Cost]]*Table3[[#This Row],[Terminal Value Adjustment (%)]] -> 205932
B81: APT294 | C81: RUN-SP-002 | D81: Cycle Route (Primary) | E81: Citywide | F81: Runcorn Bikeway (Glenefer Street to Beenleigh Road) | H81: 736 | I81: Cycle Route (Primary) | K81: 5608 | L81: =IF(Table3[[#This Row],[Size of Land (m2)]]=0,0,Table3[[#This Row],[Land Value]]/Table3[[#This Row],[Size of Land (m2)]]) -> 4.366797432 | M81: 24489 | N81: =Table3[[#This Row],[Direct Construction Cost]]/Table3[[#This Row],[Length (m)]] -> 736.0434783 | O81: 541728 | P81: 2021 | Q81: 0.01 | S81: =ROUND((O81)*23%,0) -> 124597 | T81: =IF(W81="","",IF(W81<=YEAR+5,0.075,IF(AND(W81>YEAR+5,W81<=YEAR+10),0.15,IF(AND(W81>YEAR+10,W81<=YEAR+20),0.2,IF(W81>YEAR+20,0.25,""))))) -> 0.15 | U81: =ROUND((O81+S81)*T81,0) -> 99949 | V81: 0 | W81: 2029 | X81: =(1+PPI)^(W81-YEAR) -> 1.155263475 | Y81: =ROUND(U81+S81+O81,0) -> 766274 | Z81: =IFERROR(IF(Table3[[#This Row],[Year of Provision]]>2024,VLOOKUP(Table3[[#This Row],[Service Catchment]],'Catchment Demand - Pathway'!C$8:M$8,11,FALSE),""),"") -> 0.3396007115 | AA81: =_xlfn.IFS(Table3[[#This Row],[Year of Provision]]=2024,0,Table3[[#This Row],[Year of Provision]]=2029,Table3[[#This Row],[Net Present Value of Establishment Cost]]/SUMIFS($AF$17:$AF$102,$W$17:$W$102,"2029",$E$17:$E$102,Table3[[#This Row],[Service Catchment]]),Table3[[#This Row],[Year of Provision]]=2034,Table3[[#This Row],[Net Present Value of Establishment Cost]]/SUMIFS($AF$17:$AF$102,$W$17:$W$102,"2034",$E$17:$E$102,Table3[[#This Row],[Service Catchment]])) -> 0.002505338638 | AB81: =IF(AND(Table3[[#This Row],[Spare Capacity (%)]]>30%,Table3[[#This Row],[Share of the total Cost with the same year of provision %]]>20%),(1-Table3[[#This Row],[Spare Capacity (%)]]),1) -> 1 | AC81: =IF(Table3[[#This Row],[Terminal Value Analysis]]<0,0,Table3[[#This Row],[Terminal Value Analysis]]) -> 1 | AD81: =ROUND(Y81+M81-Table3[[#This Row],[Grants and Subsidies ($)]],0) -> 790763 | AE81: =IFERROR(ROUND((Y81*X81+(M81*((1+Landind)^(W81-YEAR)))),0),0) -> 913966 | AF81: =ROUND((AE81*(1/(1+WACC))^(W81-YEAR)),0) -> 577344 | AG81: =Table3[[#This Row],[Net Present Value of Establishment Cost]]*Table3[[#This Row],[Terminal Value Adjustment (%)]] -> 577344 | AH81: =AF81 -> 577344 | AI81: =Table3[[#This Row],[Net Present Value of Establishment Cost]]*Table3[[#This Row],[Terminal Value Adjustment (%)]] -> 577344
B82: APT314 | C82: RUN-SP-007 | D82: Cycle Route (Primary) | E82: Citywide | F82: Bulimba Creek Bikeway (Cannon Hill to Runcorn) - Chelsea Street Park to Glenefer Street Park section | H82: 501 | I82: Cycle Route (Primary) | K82: 3396 | L82: =IF(Table3[[#This Row],[Size of Land (m2)]]=0,0,Table3[[#This Row],[Land Value]]/Table3[[#This Row],[Size of Land (m2)]]) -> 3.954063604 | M82: 13428 | N82: =Table3[[#This Row],[Direct Construction Cost]]/Table3[[#This Row],[Length (m)]] -> 736.0439122 | O82: 368758 | P82: 2021 | Q82: 0.01 | S82: 84814 | T82: 0.15 | U82: 68036 | V82: 0 | W82: 2029 | X82: 1.155263475 | Y82: 521608 | Z82: =IFERROR(IF(Table3[[#This Row],[Year of Provision]]>2024,VLOOKUP(Table3[[#This Row],[Service Catchment]],'Catchment Demand - Pathway'!C$8:M$8,11,FALSE),""),"") -> 0.3396007115 | AA82: =_xlfn.IFS(Table3[[#This Row],[Year of Provision]]=2024,0,Table3[[#This Row],[Year of Provision]]=2029,Table3[[#This Row],[Net Present Value of Establishment Cost]]/SUMIFS($AF$17:$AF$102,$W$17:$W$102,"2029",$E$17:$E$102,Table3[[#This Row],[Service Catchment]]),Table3[[#This Row],[Year of Provision]]=2034,Table3[[#This Row],[Net Present Value of Establishment Cost]]/SUMIFS($AF$17:$AF$102,$W$17:$W$102,"2034",$E$17:$E$102,Table3[[#This Row],[Service Catchment]])) -> 0.001694982155 | AB82: =IF(AND(Table3[[#This Row],[Spare Capacity (%)]]>30%,Table3[[#This Row],[Share of the total Cost with the same year of provision %]]>20%),(1-Table3[[#This Row],[Spare Capacity (%)]]),1) -> 1 | AC82: =IF(Table3[[#This Row],[Terminal Value Analysis]]<0,0,Table3[[#This Row],[Terminal Value Analysis]]) -> 1 | AD82: =ROUND(Y82+M82-Table3[[#This Row],[Grants and Subsidies ($)]],0) -> 535036 | AE82: 618342 | AF82: 390601 | AG82: =Table3[[#This Row],[Net Present Value of Establishment Cost]]*Table3[[#This Row],[Terminal Value Adjustment (%)]] -> 390601 | AH82: 390601 | AI82: =Table3[[#This Row],[Net Present Value of Establishment Cost]]*Table3[[#This Row],[Terminal Value Adjustment (%)]] -> 390601
B83: APT294 | C83: RUN-SP-008 | D83: Cycle Route (Primary) | E83: Citywide | F83: Bulimba Creek Bikeway (Bonemill Road Park) | H83: 460 | I83: Cycle Route (Primary) | K83: 2831 | L83: =IF(Table3[[#This Row],[Size of Land (m2)]]=0,0,Table3[[#This Row],[Land Value]]/Table3[[#This Row],[Size of Land (m2)]]) -> 0 | M83: 0 | N83: =Table3[[#This Row],[Direct Construction Cost]]/Table3[[#This Row],[Length (m)]] -> 736.0434783 | O83: 338580 | P83: 2021 | Q83: 0.01 | S83: 77873 | T83: 0.15 | U83: 62468 | V83: 0 | W83: 2029 | X83: 1.155263475 | Y83: 478921 | Z83: =IFERROR(IF(Table3[[#This Row],[Year of Provision]]>2024,VLOOKUP(Table3[[#This Row],[Service Catchment]],'Catchment Demand - Pathway'!C$8:M$8,11,FALSE),""),"") -> 0.3396007115 | AA83: =_xlfn.IFS(Table3[[#This Row],[Year of Provision]]=2024,0,Table3[[#This Row],[Year of Provision]]=2029,Table3[[#This Row],[Net Present Value of Establishment Cost]]/SUMIFS($AF$17:$AF$102,$W$17:$W$102,"2029",$E$17:$E$102,Table3[[#This Row],[Service Catchment]]),Table3[[#This Row],[Year of Provision]]=2034,Table3[[#This Row],[Net Present Value of Establishment Cost]]/SUMIFS($AF$17:$AF$102,$W$17:$W$102,"2034",$E$17:$E$102,Table3[[#This Row],[Service Catchment]])) -> 0.001516636294 | AB83: =IF(AND(Table3[[#This Row],[Spare Capacity (%)]]>30%,Table3[[#This Row],[Share of the total Cost with the same year of provision %]]>20%),(1-Table3[[#This Row],[Spare Capacity (%)]]),1) -> 1 | AC83: =IF(Table3[[#This Row],[Terminal Value Analysis]]<0,0,Table3[[#This Row],[Terminal Value Analysis]]) -> 1 | AD83: =ROUND(Y83+M83-Table3[[#This Row],[Grants and Subsidies ($)]],0) -> 478921 | AE83: 553280 | AF83: 349502 | AG83: =Table3[[#This Row],[Net Present Value of Establishment Cost]]*Table3[[#This Row],[Terminal Value Adjustment (%)]] -> 349502 | AH83: 349502 | AI83: =Table3[[#This Row],[Net Present Value of Establishment Cost]]*Table3[[#This Row],[Terminal Value Adjustment (%)]] -> 349502
B84: APT253, APT252 | C84: SAL-SP-002 | D84: Cycle Route (Secondary) | E84: Citywide | F84: Rocky Water Holes Creek Bikeway (McCarthy Road to Precision Street) | H84: 400 | I84: Cycle Route (Secondary) | K84: 2729 | L84: =IF(Table3[[#This Row],[Size of Land (m2)]]=0,0,Table3[[#This Row],[Land Value]]/Table3[[#This Row],[Size of Land (m2)]]) -> 409.1997069 | M84: 1116706 | N84: =Table3[[#This Row],[Direct Construction Cost]]/Table3[[#This Row],[Length (m)]] -> 736.0425 | O84: 294417 | P84: 2021 | Q84: 0.01 | S84: 67716 | T84: 0.15 | U84: 54320 | V84: 0 | W84: 2029 | X84: 1.155263475 | Y84: 416453 | Z84: =IFERROR(IF(Table3[[#This Row],[Year of Provision]]>2024,VLOOKUP(Table3[[#This Row],[Service Catchment]],'Catchment Demand - Pathway'!C$8:M$8,11,FALSE),""),"") -> 0.3396007115 | AA84: =_xlfn.IFS(Table3[[#This Row],[Year of Provision]]=2024,0,Table3[[#This Row],[Year of Provision]]=2029,Table3[[#This Row],[Net Present Value of Establishment Cost]]/SUMIFS($AF$17:$AF$102,$W$17:$W$102,"2029",$E$17:$E$102,Table3[[#This Row],[Service Catchment]]),Table3[[#This Row],[Year of Provision]]=2034,Table3[[#This Row],[Net Present Value of Establishment Cost]]/SUMIFS($AF$17:$AF$102,$W$17:$W$102,"2034",$E$17:$E$102,Table3[[#This Row],[Service Catchment]])) -> 0.00490850561 | AB84: =IF(AND(Table3[[#This Row],[Spare Capacity (%)]]>30%,Table3[[#This Row],[Share of the total Cost with the same year of provision %]]>20%),(1-Table3[[#This Row],[Spare Capacity (%)]]),1) -> 1 | AC84: =IF(Table3[[#This Row],[Terminal Value Analysis]]<0,0,Table3[[#This Row],[Terminal Value Analysis]]) -> 1 | AD84: =ROUND(Y84+M84-Table3[[#This Row],[Grants and Subsidies ($)]],0) -> 1533159 | AE84: 1790660 | AF84: 1131143 | AG84: =Table3[[#This Row],[Net Present Value of Establishment Cost]]*Table3[[#This Row],[Terminal Value Adjustment (%)]] -> 1131143 | AH84: 1131143 | AI84: =Table3[[#This Row],[Net Present Value of Establishment Cost]]*Table3[[#This Row],[Terminal Value Adjustment (%)]] -> 1131143
B85: APT252 | C85: SAL-SP-003 | D85: Cycle Route (Secondary) | E85: Citywide | F85: Rocky Water Holes Creek Bikeway (Precision Street to Assembly Street) | H85: 347 | I85: Cycle Route (Secondary) | K85: 2387 | L85: =IF(Table3[[#This Row],[Size of Land (m2)]]=0,0,Table3[[#This Row],[Land Value]]/Table3[[#This Row],[Size of Land (m2)]]) -> 80.26728111 | M85: 191598 | N85: =Table3[[#This Row],[Direct Construction Cost]]/Table3[[#This Row],[Length (m)]] -> 736.0432277 | O85: 255407 | P85: 2021 | Q85: 0.01 | S85: 58744 | T85: 0.15 | U85: 47123 | V85: 0 | W85: 2029 | X85: 1.155263475 | Y85: 361274 | Z85: =IFERROR(IF(Table3[[#This Row],[Year of Provision]]>2024,VLOOKUP(Table3[[#This Row],[Service Catchment]],'Catchment Demand - Pathway'!C$8:M$8,11,FALSE),""),"") -> 0.3396007115 | AA85: =_xlfn.IFS(Table3[[#This Row],[Year of Provision]]=2024,0,Table3[[#This Row],[Year of Provision]]=2029,Table3[[#This Row],[Net Present Value of Establishment Cost]]/SUMIFS($AF$17:$AF$102,$W$17:$W$102,"2029",$E$17:$E$102,Table3[[#This Row],[Service Catchment]]),Table3[[#This Row],[Year of Provision]]=2034,Table3[[#This Row],[Net Present Value of Establishment Cost]]/SUMIFS($AF$17:$AF$102,$W$17:$W$102,"2034",$E$17:$E$102,Table3[[#This Row],[Service Catchment]])) -> 0.001759969323 | AB85: =IF(AND(Table3[[#This Row],[Spare Capacity (%)]]>30%,Table3[[#This Row],[Share of the total Cost with the same year of provision %]]>20%),(1-Table3[[#This Row],[Spare Capacity (%)]]),1) -> 1 | AC85: =IF(Table3[[#This Row],[Terminal Value Analysis]]<0,0,Table3[[#This Row],[Terminal Value Analysis]]) -> 1 | AD85: =ROUND(Y85+M85-Table3[[#This Row],[Grants and Subsidies ($)]],0) -> 552872 | AE85: 642051 | AF85: 405577 | AG85: =Table3[[#This Row],[Net Present Value of Establishment Cost]]*Table3[[#This Row],[Terminal Value Adjustment (%)]] -> 405577 | AH85: 405577 | AI85: =Table3[[#This Row],[Net Present Value of Establishment Cost]]*Table3[[#This Row],[Terminal Value Adjustment (%)]] -> 405577
B86: APT252 | C86: SAL-SP-004 | D86: Cycle Route (Secondary) | E86: Citywide | F86: Rocky Water Holes Creek Bikeway (Assembly Street to Beaudesert Road) | H86: 814 | I86: Cycle Route (Secondary) | K86: 5721 | L86: =IF(Table3[[#This Row],[Size of Land (m2)]]=0,0,Table3[[#This Row],[Land Value]]/Table3[[#This Row],[Size of Land (m2)]]) -> 15.60601293 | M86: 89282 | N86: =Table3[[#This Row],[Direct Construction Cost]]/Table3[[#This Row],[Length (m)]] -> 736.0429975 | O86: 599139 | P86: 2021 | Q86: 0.01 | S86: 137802 | T86: 0.15 | U86: 110541 | V86: 0 | W86: 2029 | X86: 1.155263475 | Y86: 847482 | Z86: =IFERROR(IF(Table3[[#This Row],[Year of Provision]]>2024,VLOOKUP(Table3[[#This Row],[Service Catchment]],'Catchment Demand - Pathway'!C$8:M$8,11,FALSE),""),"") -> 0.3396007115 | AA86: =_xlfn.IFS(Table3[[#This Row],[Year of Provision]]=2024,0,Table3[[#This Row],[Year of Provision]]=2029,Table3[[#This Row],[Net Present Value of Establishment Cost]]/SUMIFS($AF$17:$AF$102,$W$17:$W$102,"2029",$E$17:$E$102,Table3[[#This Row],[Service Catchment]]),Table3[[#This Row],[Year of Provision]]=2034,Table3[[#This Row],[Net Present Value of Establishment Cost]]/SUMIFS($AF$17:$AF$102,$W$17:$W$102,"2034",$E$17:$E$102,Table3[[#This Row],[Service Catchment]])) -> 0.002970784927 | AB86: =IF(AND(Table3[[#This Row],[Spare Capacity (%)]]>30%,Table3[[#This Row],[Share of the total Cost with the same year of provision %]]>20%),(1-Table3[[#This Row],[Spare Capacity (%)]]),1) -> 1 | AC86: =IF(Table3[[#This Row],[Terminal Value Analysis]]<0,0,Table3[[#This Row],[Terminal Value Analysis]]) -> 1 | AD86: =ROUND(Y86+M86-Table3[[#This Row],[Grants and Subsidies ($)]],0) -> 936764 | AE86: 1083765 | AF86: 684604 | AG86: =Table3[[#This Row],[Net Present Value of Establishment Cost]]*Table3[[#This Row],[Terminal Value Adjustment (%)]] -> 684604 | AH86: 684604 | AI86: =Table3[[#This Row],[Net Present Value of Establishment Cost]]*Table3[[#This Row],[Terminal Value Adjustment (%)]] -> 684604
B87: APT250 | C87: SIP-SB-001 | D87: Cycle Route (Secondary) | E87: Citywide | F87: Jindalee Creek Bikeway (Bridge over Jindalee Creek) | H87: 70 | I87: Cycle Route (Secondary) | K87: 497 | L87: =IF(Table3[[#This Row],[Size of Land (m2)]]=0,0,Table3[[#This Row],[Land Value]]/Table3[[#This Row],[Size of Land (m2)]]) -> 6.213279678 | M87: 3088 | N87: =Table3[[#This Row],[Direct Construction Cost]]/Table3[[#This Row],[Length (m)]] -> 12812 | O87: 896840 | P87: 2021 | Q87: 0.01 | S87: 206273 | T87: 0.075 | U87: 82733 | V87: 0 | W87: 2024 | X87: 1.055614607 | Y87: 1185846 | Z87: =IFERROR(IF(Table3[[#This Row],[Year of Provision]]>2024,VLOOKUP(Table3[[#This Row],[Service Catchment]],'Catchment Demand - Pathway'!C$8:M$8,11,FALSE),""),"") ->  | AA87: =_xlfn.IFS(Table3[[#This Row],[Year of Provision]]=2024,0,Table3[[#This Row],[Year of Provision]]=2029,Table3[[#This Row],[Net Present Value of Establishment Cost]]/SUMIFS($AF$17:$AF$102,$W$17:$W$102,"2029",$E$17:$E$102,Table3[[#This Row],[Service Catchment]]),Table3[[#This Row],[Year of Provision]]=2034,Table3[[#This Row],[Net Present Value of Establishment Cost]]/SUMIFS($AF$17:$AF$102,$W$17:$W$102,"2034",$E$17:$E$102,Table3[[#This Row],[Service Catchment]])) -> 0 | AB87: =IF(AND(Table3[[#This Row],[Spare Capacity (%)]]>30%,Table3[[#This Row],[Share of the total Cost with the same year of provision %]]>20%),(1-Table3[[#This Row],[Spare Capacity (%)]]),1) -> 1 | AC87: =IF(Table3[[#This Row],[Terminal Value Analysis]]<0,0,Table3[[#This Row],[Terminal Value Analysis]]) -> 1 | AD87: =ROUND(Y87+M87-Table3[[#This Row],[Grants and Subsidies ($)]],0) -> 1188934 | AE87: 1255074 | AF87: 1056473 | AG87: =Table3[[#This Row],[Net Present Value of Establishment Cost]]*Table3[[#This Row],[Terminal Value Adjustment (%)]] -> 1056473 | AH87: 1056473 | AI87: =Table3[[#This Row],[Net Present Value of Establishment Cost]]*Table3[[#This Row],[Terminal Value Adjustment (%)]] -> 1056473
B88: APT250 | C88: SIP-SP-001 | D88: Cycle Route (Secondary) | E88: Citywide | F88: Jindalee Creek Bikeway (Oldfield Road to Centenary Motorway) | H88: 526 | I88: Cycle Route (Secondary) | K88: 3724 | L88: =IF(Table3[[#This Row],[Size of Land (m2)]]=0,0,Table3[[#This Row],[Land Value]]/Table3[[#This Row],[Size of Land (m2)]]) -> 108.2212675 | M88: 403016 | N88: =Table3[[#This Row],[Direct Construction Cost]]/Table3[[#This Row],[Length (m)]] -> 736.0437262 | O88: 387159 | P88: 2021 | Q88: 0.01 | S88: 89047 | T88: 0.075 | U88: 35715 | V88: 0 | W88: 2024 | X88: 1.055614607 | Y88: 511921 | Z88: =IFERROR(IF(Table3[[#This Row],[Year of Provision]]>2024,VLOOKUP(Table3[[#This Row],[Service Catchment]],'Catchment Demand - Pathway'!C$8:M$8,11,FALSE),""),"") ->  | AA88: =_xlfn.IFS(Table3[[#This Row],[Year of Provision]]=2024,0,Table3[[#This Row],[Year of Provision]]=2029,Table3[[#This Row],[Net Present Value of Establishment Cost]]/SUMIFS($AF$17:$AF$102,$W$17:$W$102,"2029",$E$17:$E$102,Table3[[#This Row],[Service Catchment]]),Table3[[#This Row],[Year of Provision]]=2034,Table3[[#This Row],[Net Present Value of Establishment Cost]]/SUMIFS($AF$17:$AF$102,$W$17:$W$102,"2034",$E$17:$E$102,Table3[[#This Row],[Service Catchment]])) -> 0 | AB88: =IF(AND(Table3[[#This Row],[Spare Capacity (%)]]>30%,Table3[[#This Row],[Share of the total Cost with the same year of provision %]]>20%),(1-Table3[[#This Row],[Spare Capacity (%)]]),1) -> 1 | AC88: =IF(Table3[[#This Row],[Terminal Value Analysis]]<0,0,Table3[[#This Row],[Terminal Value Analysis]]) -> 1 | AD88: =ROUND(Y88+M88-Table3[[#This Row],[Grants and Subsidies ($)]],0) -> 914937 | AE88: 968216 | AF88: 815007 | AG88: =Table3[[#This Row],[Net Present Value of Establishment Cost]]*Table3[[#This Row],[Terminal Value Adjustment (%)]] -> 815007 | AH88: 815007 | AI88: =Table3[[#This Row],[Net Present Value of Establishment Cost]]*Table3[[#This Row],[Terminal Value Adjustment (%)]] -> 815007
B89: APT250 | C89: SIP-SP-002 | D89: Cycle Route (Secondary) | E89: Citywide | F89: Jindalee Creek Bikeway (Oldfield Road (west) to Jindalee Creek) | H89: 207 | I89: Cycle Route (Secondary) | K89: 1360 | L89: =IF(Table3[[#This Row],[Size of Land (m2)]]=0,0,Table3[[#This Row],[Land Value]]/Table3[[#This Row],[Size of Land (m2)]]) -> 1403.808088 | M89: 1909179 | N89: =Table3[[#This Row],[Direct Construction Cost]]/Table3[[#This Row],[Length (m)]] -> 815.6183575 | O89: 168833 | P89: 2021 | Q89: 0.01 | S89: 38832 | T89: 0.075 | U89: 15575 | V89: 0 | W89: 2024 | X89: 1.055614607 | Y89: 223240 | Z89: =IFERROR(IF(Table3[[#This Row],[Year of Provision]]>2024,VLOOKUP(Table3[[#This Row],[Service Catchment]],'Catchment Demand - Pathway'!C$8:M$8,11,FALSE),""),"") ->  | AA89: =_xlfn.IFS(Table3[[#This Row],[Year of Provision]]=2024,0,Table3[[#This Row],[Year of Provision]]=2029,Table3[[#This Row],[Net Present Value of Establishment Cost]]/SUMIFS($AF$17:$AF$102,$W$17:$W$102,"2029",$E$17:$E$102,Table3[[#This Row],[Service Catchment]]),Table3[[#This Row],[Year of Provision]]=2034,Table3[[#This Row],[Net Present Value of Establishment Cost]]/SUMIFS($AF$17:$AF$102,$W$17:$W$102,"2034",$E$17:$E$102,Table3[[#This Row],[Service Catchment]])) -> 0 | AB89: =IF(AND(Table3[[#This Row],[Spare Capacity (%)]]>30%,Table3[[#This Row],[Share of the total Cost with the same year of provision %]]>20%),(1-Table3[[#This Row],[Spare Capacity (%)]]),1) -> 1 | AC89: =IF(Table3[[#This Row],[Terminal Value Analysis]]<0,0,Table3[[#This Row],[Terminal Value Analysis]]) -> 1 | AD89: =ROUND(Y89+M89-Table3[[#This Row],[Grants and Subsidies ($)]],0) -> 2132419 | AE89: 2262358 | AF89: 1904366 | AG89: =Table3[[#This Row],[Net Present Value of Establishment Cost]]*Table3[[#This Row],[Terminal Value Adjustment (%)]] -> 1904366 | AH89: 1904366 | AI89: =Table3[[#This Row],[Net Present Value of Establishment Cost]]*Table3[[#This Row],[Terminal Value Adjustment (%)]] -> 1904366
B90: APT250 | C90: SIP-SP-003 | D90: Cycle Route (Secondary) | E90: Citywide | F90: Jindalee Creek Bikeway (Jindalee Creek to Seventeen Mile Rocks Road) | H90: 172 | I90: Cycle Route (Secondary) | K90: 1202 | L90: =IF(Table3[[#This Row],[Size of Land (m2)]]=0,0,Table3[[#This Row],[Land Value]]/Table3[[#This Row],[Size of Land (m2)]]) -> 1954.321131 | M90: 2349094 | N90: =Table3[[#This Row],[Direct Construction Cost]]/Table3[[#This Row],[Length (m)]] -> 815.6162791 | O90: 140286 | P90: 2021 | Q90: 0.01 | S90: 32266 | T90: 0.075 | U90: 12941 | V90: 0 | W90: 2024 | X90: 1.055614607 | Y90: 185493 | Z90: =IFERROR(IF(Table3[[#This Row],[Year of Provision]]>2024,VLOOKUP(Table3[[#This Row],[Service Catchment]],'Catchment Demand - Pathway'!C$8:M$8,11,FALSE),""),"") ->  | AA90: =_xlfn.IFS(Table3[[#This Row],[Year of Provision]]=2024,0,Table3[[#This Row],[Year of Provision]]=2029,Table3[[#This Row],[Net Present Value of Establishment Cost]]/SUMIFS($AF$17:$AF$102,$W$17:$W$102,"2029",$E$17:$E$102,Table3[[#This Row],[Service Catchment]]),Table3[[#This Row],[Year of Provision]]=2034,Table3[[#This Row],[Net Present Value of Establishment Cost]]/SUMIFS($AF$17:$AF$102,$W$17:$W$102,"2034",$E$17:$E$102,Table3[[#This Row],[Service Catchment]])) -> 0 | AB90: =IF(AND(Table3[[#This Row],[Spare Capacity (%)]]>30%,Table3[[#This Row],[Share of the total Cost with the same year of provision %]]>20%),(1-Table3[[#This Row],[Spare Capacity (%)]]),1) -> 1 | AC90: =IF(Table3[[#This Row],[Terminal Value Analysis]]<0,0,Table3[[#This Row],[Terminal Value Analysis]]) -> 1 | AD90: =ROUND(Y90+M90-Table3[[#This Row],[Grants and Subsidies ($)]],0) -> 2534587 | AE90: 2689507 | AF90: 2263924 | AG90: =Table3[[#This Row],[Net Present Value of Establishment Cost]]*Table3[[#This Row],[Terminal Value Adjustment (%)]] -> 2263924 | AH90: 2263924 | AI90: =Table3[[#This Row],[Net Present Value of Establishment Cost]]*Table3[[#This Row],[Terminal Value Adjustment (%)]] -> 2263924
B91: APT212 | C91: SLU-GB-001 | D91: Green Bridge | E91: Citywide | F91: St Lucia to West End Green Bridge | H91: 379 | I91: Green Bridge | K91: 0 | L91: =IF(Table3[[#This Row],[Size of Land (m2)]]=0,0,Table3[[#This Row],[Land Value]]/Table3[[#This Row],[Size of Land (m2)]]) -> 0 | M91: 0 | N91: =Table3[[#This Row],[Direct Construction Cost]]/Table3[[#This Row],[Length (m)]] -> 428229.8443 | O91: 162299111 | P91: 2021 | Q91: 0.01 | S91: 37328796 | T91: 0.075 | U91: 14972093 | V91: 0 | W91: 2024 | X91: 1.055614607 | Y91: 214600000 | Z91: =IFERROR(IF(Table3[[#This Row],[Year of Provision]]>2024,VLOOKUP(Table3[[#This Row],[Service Catchment]],'Catchment Demand - Pathway'!C$8:M$8,11,FALSE),""),"") ->  | AA91: =_xlfn.IFS(Table3[[#This Row],[Year of Provision]]=2024,0,Table3[[#This Row],[Year of Provision]]=2029,Table3[[#This Row],[Net Present Value of Establishment Cost]]/SUMIFS($AF$17:$AF$102,$W$17:$W$102,"2029",$E$17:$E$102,Table3[[#This Row],[Service Catchment]]),Table3[[#This Row],[Year of Provision]]=2034,Table3[[#This Row],[Net Present Value of Establishment Cost]]/SUMIFS($AF$17:$AF$102,$W$17:$W$102,"2034",$E$17:$E$102,Table3[[#This Row],[Service Catchment]])) -> 0 | AB91: =IF(AND(Table3[[#This Row],[Spare Capacity (%)]]>30%,Table3[[#This Row],[Share of the total Cost with the same year of provision %]]>20%),(1-Table3[[#This Row],[Spare Capacity (%)]]),1) -> 1 | AC91: =IF(Table3[[#This Row],[Terminal Value Analysis]]<0,0,Table3[[#This Row],[Terminal Value Analysis]]) -> 1 | AD91: =ROUND(Y91+M91-Table3[[#This Row],[Grants and Subsidies ($)]],0) -> 214600000 | AE91: 226534895 | AF91: 190688369 | AG91: =Table3[[#This Row],[Net Present Value of Establishment Cost]]*Table3[[#This Row],[Terminal Value Adjustment (%)]] -> 190688369 | AH91: 190688369 | AI91: =Table3[[#This Row],[Net Present Value of Establishment Cost]]*Table3[[#This Row],[Terminal Value Adjustment (%)]] -> 190688369
B92: APT211 | C92: SLU-SP-001 | D92: Cycle Route (Primary) | E92: Citywide | F92: Gailey Road Bikeway (Sandford Street to Gailey Road) | H92: 41 | I92: Cycle Route (Primary) | K92: 75 | L92: =IF(Table3[[#This Row],[Size of Land (m2)]]=0,0,Table3[[#This Row],[Land Value]]/Table3[[#This Row],[Size of Land (m2)]]) -> 940.9733333 | M92: 70573 | N92: =Table3[[#This Row],[Direct Construction Cost]]/Table3[[#This Row],[Length (m)]] -> 1143.853659 | O92: 46898 | P92: 2021 | Q92: 0.01 | S92: 10787 | T92: 0.075 | U92: 4326 | V92: 0 | W92: 2024 | X92: 1.055614607 | Y92: 62011 | Z92: =IFERROR(IF(Table3[[#This Row],[Year of Provision]]>2024,VLOOKUP(Table3[[#This Row],[Service Catchment]],'Catchment Demand - Pathway'!C$8:M$8,11,FALSE),""),"") ->  | AA92: =_xlfn.IFS(Table3[[#This Row],[Year of Provision]]=2024,0,Table3[[#This Row],[Year of Provision]]=2029,Table3[[#This Row],[Net Present Value of Establishment Cost]]/SUMIFS($AF$17:$AF$102,$W$17:$W$102,"2029",$E$17:$E$102,Table3[[#This Row],[Service Catchment]]),Table3[[#This Row],[Year of Provision]]=2034,Table3[[#This Row],[Net Present Value of Establishment Cost]]/SUMIFS($AF$17:$AF$102,$W$17:$W$102,"2034",$E$17:$E$102,Table3[[#This Row],[Service Catchment]])) -> 0 | AB92: =IF(AND(Table3[[#This Row],[Spare Capacity (%)]]>30%,Table3[[#This Row],[Share of the total Cost with the same year of provision %]]>20%),(1-Table3[[#This Row],[Spare Capacity (%)]]),1) -> 1 | AC92: =IF(Table3[[#This Row],[Terminal Value Analysis]]<0,0,Table3[[#This Row],[Terminal Value Analysis]]) -> 1 | AD92: =ROUND(Y92+M92-Table3[[#This Row],[Grants and Subsidies ($)]],0) -> 132584 | AE92: 140377 | AF92: 118164 | AG92: =Table3[[#This Row],[Net Present Value of Establishment Cost]]*Table3[[#This Row],[Terminal Value Adjustment (%)]] -> 118164 | AH92: 118164 | AI92: =Table3[[#This Row],[Net Present Value of Establishment Cost]]*Table3[[#This Row],[Terminal Value Adjustment (%)]] -> 118164
B93: APT132 | C93: STF-SP-002 | D93: Cycle Route (Secondary) | E93: Citywide | F93: Kedron Brook Bikeway (Stafford Shopping Centre to Bilston Street Park) | H93: 824 | I93: Cycle Route (Secondary) | K93: 5023 | L93: =IF(Table3[[#This Row],[Size of Land (m2)]]=0,0,Table3[[#This Row],[Land Value]]/Table3[[#This Row],[Size of Land (m2)]]) -> 2.630101533 | M93: 13211 | N93: =Table3[[#This Row],[Direct Construction Cost]]/Table3[[#This Row],[Length (m)]] -> 736.0436893 | O93: 606500 | P93: 2021 | Q93: 0.01 | S93: 139495 | T93: 0.075 | U93: 55950 | V93: 0 | W93: 2024 | X93: 1.055614607 | Y93: 801945 | Z93: =IFERROR(IF(Table3[[#This Row],[Year of Provision]]>2024,VLOOKUP(Table3[[#This Row],[Service Catchment]],'Catchment Demand - Pathway'!C$8:M$8,11,FALSE),""),"") ->  | AA93: =_xlfn.IFS(Table3[[#This Row],[Year of Provision]]=2024,0,Table3[[#This Row],[Year of Provision]]=2029,Table3[[#This Row],[Net Present Value of Establishment Cost]]/SUMIFS($AF$17:$AF$102,$W$17:$W$102,"2029",$E$17:$E$102,Table3[[#This Row],[Service Catchment]]),Table3[[#This Row],[Year of Provision]]=2034,Table3[[#This Row],[Net Present Value of Establishment Cost]]/SUMIFS($AF$17:$AF$102,$W$17:$W$102,"2034",$E$17:$E$102,Table3[[#This Row],[Service Catchment]])) -> 0 | AB93: =IF(AND(Table3[[#This Row],[Spare Capacity (%)]]>30%,Table3[[#This Row],[Share of the total Cost with the same year of provision %]]>20%),(1-Table3[[#This Row],[Spare Capacity (%)]]),1) -> 1 | AC93: =IF(Table3[[#This Row],[Terminal Value Analysis]]<0,0,Table3[[#This Row],[Terminal Value Analysis]]) -> 1 | AD93: =ROUND(Y93+M93-Table3[[#This Row],[Grants and Subsidies ($)]],0) -> 815156 | AE93: 860569 | AF93: 724394 | AG93: =Table3[[#This Row],[Net Present Value of Establishment Cost]]*Table3[[#This Row],[Terminal Value Adjustment (%)]] -> 724394 | AH93: 724394 | AI93: =Table3[[#This Row],[Net Present Value of Establishment Cost]]*Table3[[#This Row],[Terminal Value Adjustment (%)]] -> 724394
B94: APT251 | C94: SWD-SP-002 | D94: Cycle Route (Secondary) | E94: Citywide | F94: Oxley Greenway (Sherwood Road – Oxley Common) | H94: 108 | I94: Cycle Route (Secondary) | K94: 302 | L94: =IF(Table3[[#This Row],[Size of Land (m2)]]=0,0,Table3[[#This Row],[Land Value]]/Table3[[#This Row],[Size of Land (m2)]]) -> 108.5 | M94: 32767 | N94: =Table3[[#This Row],[Direct Construction Cost]]/Table3[[#This Row],[Length (m)]] -> 815.6203704 | O94: 88087 | P94: 2021 | Q94: 0.01 | S94: 20260 | T94: 0.15 | U94: 16252 | V94: 0 | W94: 2029 | X94: 1.155263475 | Y94: 124599 | Z94: =IFERROR(IF(Table3[[#This Row],[Year of Provision]]>2024,VLOOKUP(Table3[[#This Row],[Service Catchment]],'Catchment Demand - Pathway'!C$8:M$8,11,FALSE),""),"") -> 0.3396007115 | AA94: =_xlfn.IFS(Table3[[#This Row],[Year of Provision]]=2024,0,Table3[[#This Row],[Year of Provision]]=2029,Table3[[#This Row],[Net Present Value of Establishment Cost]]/SUMIFS($AF$17:$AF$102,$W$17:$W$102,"2029",$E$17:$E$102,Table3[[#This Row],[Service Catchment]]),Table3[[#This Row],[Year of Provision]]=2034,Table3[[#This Row],[Net Present Value of Establishment Cost]]/SUMIFS($AF$17:$AF$102,$W$17:$W$102,"2034",$E$17:$E$102,Table3[[#This Row],[Service Catchment]])) -> 0.0004999056306 | AB94: =IF(AND(Table3[[#This Row],[Spare Capacity (%)]]>30%,Table3[[#This Row],[Share of the total Cost with the same year of provision %]]>20%),(1-Table3[[#This Row],[Spare Capacity (%)]]),1) -> 1 | AC94: =IF(Table3[[#This Row],[Terminal Value Analysis]]<0,0,Table3[[#This Row],[Terminal Value Analysis]]) -> 1 | AD94: =ROUND(Y94+M94-Table3[[#This Row],[Grants and Subsidies ($)]],0) -> 157366 | AE94: 182370 | AF94: 115201 | AG94: =Table3[[#This Row],[Net Present Value of Establishment Cost]]*Table3[[#This Row],[Terminal Value Adjustment (%)]] -> 115201 | AH94: 115201 | AI94: =Table3[[#This Row],[Net Present Value of Establishment Cost]]*Table3[[#This Row],[Terminal Value Adjustment (%)]] -> 115201
B95: APT196 | C95: TIN-SP-006 | D95: Cycle Route (Secondary) | E95: Citywide | F95: Greenslade Street Bikeway (Greenslade Street to Wynnum Road) | H95: 221 | I95: Cycle Route (Secondary) | K95: 1388 | L95: =IF(Table3[[#This Row],[Size of Land (m2)]]=0,0,Table3[[#This Row],[Land Value]]/Table3[[#This Row],[Size of Land (m2)]]) -> 147.20317 | M95: 204318 | N95: =Table3[[#This Row],[Direct Construction Cost]]/Table3[[#This Row],[Length (m)]] -> 815.6153846 | O95: 180251 | P95: 2021 | Q95: 0.01 | S95: 41458 | T95: 0.15 | U95: 33256 | V95: 0 | W95: 2029 | X95: 1.155263475 | Y95: 254965 | Z95: =IFERROR(IF(Table3[[#This Row],[Year of Provision]]>2024,VLOOKUP(Table3[[#This Row],[Service Catchment]],'Catchment Demand - Pathway'!C$8:M$8,11,FALSE),""),"") -> 0.3396007115 | AA95: =_xlfn.IFS(Table3[[#This Row],[Year of Provision]]=2024,0,Table3[[#This Row],[Year of Provision]]=2029,Table3[[#This Row],[Net Present Value of Establishment Cost]]/SUMIFS($AF$17:$AF$102,$W$17:$W$102,"2029",$E$17:$E$102,Table3[[#This Row],[Service Catchment]]),Table3[[#This Row],[Year of Provision]]=2034,Table3[[#This Row],[Net Present Value of Establishment Cost]]/SUMIFS($AF$17:$AF$102,$W$17:$W$102,"2034",$E$17:$E$102,Table3[[#This Row],[Service Catchment]])) -> 0.001464203071 | AB95: =IF(AND(Table3[[#This Row],[Spare Capacity (%)]]>30%,Table3[[#This Row],[Share of the total Cost with the same year of provision %]]>20%),(1-Table3[[#This Row],[Spare Capacity (%)]]),1) -> 1 | AC95: =IF(Table3[[#This Row],[Terminal Value Analysis]]<0,0,Table3[[#This Row],[Terminal Value Analysis]]) -> 1 | AD95: =ROUND(Y95+M95-Table3[[#This Row],[Grants and Subsidies ($)]],0) -> 459283 | AE95: 534153 | AF95: 337419 | AG95: =Table3[[#This Row],[Net Present Value of Establishment Cost]]*Table3[[#This Row],[Terminal Value Adjustment (%)]] -> 337419 | AH95: 337419 | AI95: =Table3[[#This Row],[Net Present Value of Establishment Cost]]*Table3[[#This Row],[Terminal Value Adjustment (%)]] -> 337419
B96: APT191 | C96: TOO-GB-001 | D96: Green Bridge | E96: Citywide | F96: Toowong to West End Green Bridge | H96: 282 | I96: Green Bridge | K96: 0 | L96: =IF(Table3[[#This Row],[Size of Land (m2)]]=0,0,Table3[[#This Row],[Land Value]]/Table3[[#This Row],[Size of Land (m2)]]) -> 0 | M96: 14197440 | N96: =Table3[[#This Row],[Direct Construction Cost]]/Table3[[#This Row],[Length (m)]] -> 425909.5709 | O96: 120106499 | P96: 2021 | Q96: 0.01 | S96: 27624495 | T96: 0.15 | U96: 22159649 | V96: 0 | W96: 2029 | X96: 1.155263475 | Y96: 169890643 | Z96: =IFERROR(IF(Table3[[#This Row],[Year of Provision]]>2024,VLOOKUP(Table3[[#This Row],[Service Catchment]],'Catchment Demand - Pathway'!C$8:M$8,11,FALSE),""),"") -> 0.3396007115 | AA96: =_xlfn.IFS(Table3[[#This Row],[Year of Provision]]=2024,0,Table3[[#This Row],[Year of Provision]]=2029,Table3[[#This Row],[Net Present Value of Establishment Cost]]/SUMIFS($AF$17:$AF$102,$W$17:$W$102,"2029",$E$17:$E$102,Table3[[#This Row],[Service Catchment]]),Table3[[#This Row],[Year of Provision]]=2034,Table3[[#This Row],[Net Present Value of Establishment Cost]]/SUMIFS($AF$17:$AF$102,$W$17:$W$102,"2034",$E$17:$E$102,Table3[[#This Row],[Service Catchment]])) -> 0.583643471 | AB96: =IF(AND(Table3[[#This Row],[Spare Capacity (%)]]>30%,Table3[[#This Row],[Share of the total Cost with the same year of provision %]]>20%),(1-Table3[[#This Row],[Spare Capacity (%)]]),1) -> 0.6603992885 | AC96: =IF(Table3[[#This Row],[Terminal Value Analysis]]<0,0,Table3[[#This Row],[Terminal Value Analysis]]) -> 0.6603992885 | AD96: =ROUND(Y96+M96-Table3[[#This Row],[Grants and Subsidies ($)]],0) -> 184088083 | AE96: 212917617 | AF96: 134498008 | AG96: =Table3[[#This Row],[Net Present Value of Establishment Cost]]*Table3[[#This Row],[Terminal Value Adjustment (%)]] -> 88822388.78 | AH96: 134498008 | AI96: =Table3[[#This Row],[Net Present Value of Establishment Cost]]*Table3[[#This Row],[Terminal Value Adjustment (%)]] -> 88822388.78
B97: APT191 | C97: TOO-SP-002 | D97: Cycle Route (Primary) | E97: Citywide | F97: Bicentennial Bikeway - Stage 5 (Regatta Park to Glen Road) | H97: 457 | I97: Cycle Route (Primary) | K97: 1267 | L97: =IF(Table3[[#This Row],[Size of Land (m2)]]=0,0,Table3[[#This Row],[Land Value]]/Table3[[#This Row],[Size of Land (m2)]]) -> 1478.338595 | M97: 1873055 | N97: =Table3[[#This Row],[Direct Construction Cost]]/Table3[[#This Row],[Length (m)]] -> 736.0437637 | O97: 336372 | P97: 2021 | Q97: 0.01 | S97: 77366 | T97: 0.075 | U97: 31030 | V97: 0 | W97: 2024 | X97: 1.055614607 | Y97: 444768 | Z97: =IFERROR(IF(Table3[[#This Row],[Year of Provision]]>2024,VLOOKUP(Table3[[#This Row],[Service Catchment]],'Catchment Demand - Pathway'!C$8:M$8,11,FALSE),""),"") ->  | AA97: =_xlfn.IFS(Table3[[#This Row],[Year of Provision]]=2024,0,Table3[[#This Row],[Year of Provision]]=2029,Table3[[#This Row],[Net Present Value of Establishment Cost]]/SUMIFS($AF$17:$AF$102,$W$17:$W$102,"2029",$E$17:$E$102,Table3[[#This Row],[Service Catchment]]),Table3[[#This Row],[Year of Provision]]=2034,Table3[[#This Row],[Net Present Value of Establishment Cost]]/SUMIFS($AF$17:$AF$102,$W$17:$W$102,"2034",$E$17:$E$102,Table3[[#This Row],[Service Catchment]])) -> 0 | AB97: =IF(AND(Table3[[#This Row],[Spare Capacity (%)]]>30%,Table3[[#This Row],[Share of the total Cost with the same year of provision %]]>20%),(1-Table3[[#This Row],[Spare Capacity (%)]]),1) -> 1 | AC97: =IF(Table3[[#This Row],[Terminal Value Analysis]]<0,0,Table3[[#This Row],[Terminal Value Analysis]]) -> 1 | AD97: =ROUND(Y97+M97-Table3[[#This Row],[Grants and Subsidies ($)]],0) -> 2317823 | AE97: 2457859 | AF97: 2068931 | AG97: =Table3[[#This Row],[Net Present Value of Establishment Cost]]*Table3[[#This Row],[Terminal Value Adjustment (%)]] -> 2068931 | AH97: 2068931 | AI97: =Table3[[#This Row],[Net Present Value of Establishment Cost]]*Table3[[#This Row],[Terminal Value Adjustment (%)]] -> 2068931
B98: APT173 | C98: TRF-RW-001 | D98: RiverWalk | E98: Citywide | F98: Teneriffe (Riverside of 17-37 Skyring Terrace, Teneriffe) | H98: 220 | I98: RiverWalk | K98: 0 | L98: =IF(Table3[[#This Row],[Size of Land (m2)]]=0,0,Table3[[#This Row],[Land Value]]/Table3[[#This Row],[Size of Land (m2)]]) -> 0 | M98: 0 | N98: =Table3[[#This Row],[Direct Construction Cost]]/Table3[[#This Row],[Length (m)]] -> 3148 | O98: 692560 | P98: 2021 | Q98: 0.01 | S98: 159289 | T98: 0.075 | U98: 63889 | V98: 0 | W98: 2024 | X98: 1.055614607 | Y98: 915738 | Z98: =IFERROR(IF(Table3[[#This Row],[Year of Provision]]>2024,VLOOKUP(Table3[[#This Row],[Service Catchment]],'Catchment Demand - Pathway'!C$8:M$8,11,FALSE),""),"") ->  | AA98: =_xlfn.IFS(Table3[[#This Row],[Year of Provision]]=2024,0,Table3[[#This Row],[Year of Provision]]=2029,Table3[[#This Row],[Net Present Value of Establishment Cost]]/SUMIFS($AF$17:$AF$102,$W$17:$W$102,"2029",$E$17:$E$102,Table3[[#This Row],[Service Catchment]]),Table3[[#This Row],[Year of Provision]]=2034,Table3[[#This Row],[Net Present Value of Establishment Cost]]/SUMIFS($AF$17:$AF$102,$W$17:$W$102,"2034",$E$17:$E$102,Table3[[#This Row],[Service Catchment]])) -> 0 | AB98: =IF(AND(Table3[[#This Row],[Spare Capacity (%)]]>30%,Table3[[#This Row],[Share of the total Cost with the same year of provision %]]>20%),(1-Table3[[#This Row],[Spare Capacity (%)]]),1) -> 1 | AC98: =IF(Table3[[#This Row],[Terminal Value Analysis]]<0,0,Table3[[#This Row],[Terminal Value Analysis]]) -> 1 | AD98: =ROUND(Y98+M98-Table3[[#This Row],[Grants and Subsidies ($)]],0) -> 915738 | AE98: 966666 | AF98: 813702 | AG98: =Table3[[#This Row],[Net Present Value of Establishment Cost]]*Table3[[#This Row],[Terminal Value Adjustment (%)]] -> 813702 | AH98: 813702 | AI98: =Table3[[#This Row],[Net Present Value of Establishment Cost]]*Table3[[#This Row],[Terminal Value Adjustment (%)]] -> 813702
B99: APT129 | C99: UKE-SP-007 | D99: Cycle Route (Secondary) | E99: Citywide | F99: Cedar Creek Bikeway (Levitt Road to Canvey Road) | H99: 527 | I99: Cycle Route (Secondary) | K99: 3304 | L99: =IF(Table3[[#This Row],[Size of Land (m2)]]=0,0,Table3[[#This Row],[Land Value]]/Table3[[#This Row],[Size of Land (m2)]]) -> 10.00453995 | M99: 33055 | N99: =Table3[[#This Row],[Direct Construction Cost]]/Table3[[#This Row],[Length (m)]] -> 736.0436433 | O99: 387895 | P99: 2021 | Q99: 0.01 | S99: 89216 | T99: 0.2 | U99: 95422 | V99: 0 | W99: 2034 | X99: 1.264319088 | Y99: 572533 | Z99: =IFERROR(IF(Table3[[#This Row],[Year of Provision]]>2024,VLOOKUP(Table3[[#This Row],[Service Catchment]],'Catchment Demand - Pathway'!C$8:M$8,11,FALSE),""),"") -> 0.3396007115 | AA99: =_xlfn.IFS(Table3[[#This Row],[Year of Provision]]=2024,0,Table3[[#This Row],[Year of Provision]]=2029,Table3[[#This Row],[Net Present Value of Establishment Cost]]/SUMIFS($AF$17:$AF$102,$W$17:$W$102,"2029",$E$17:$E$102,Table3[[#This Row],[Service Catchment]]),Table3[[#This Row],[Year of Provision]]=2034,Table3[[#This Row],[Net Present Value of Establishment Cost]]/SUMIFS($AF$17:$AF$102,$W$17:$W$102,"2034",$E$17:$E$102,Table3[[#This Row],[Service Catchment]])) -> 0.1300806839 | AB99: =IF(AND(Table3[[#This Row],[Spare Capacity (%)]]>30%,Table3[[#This Row],[Share of the total Cost with the same year of provision %]]>20%),(1-Table3[[#This Row],[Spare Capacity (%)]]),1) -> 1 | AC99: =IF(Table3[[#This Row],[Terminal Value Analysis]]<0,0,Table3[[#This Row],[Terminal Value Analysis]]) -> 1 | AD99: =ROUND(Y99+M99-Table3[[#This Row],[Grants and Subsidies ($)]],0) -> 605588 | AE99: 766686 | AF99: 363444 | AG99: =Table3[[#This Row],[Net Present Value of Establishment Cost]]*Table3[[#This Row],[Terminal Value Adjustment (%)]] -> 363444 | AH99: 363444 | AI99: =Table3[[#This Row],[Net Present Value of Establishment Cost]]*Table3[[#This Row],[Terminal Value Adjustment (%)]] -> 363444
B100: APT129 | C100: UKE-SP-008 | D100: Cycle Route (Secondary) | E100: Citywide | F100: Cedar Creek Bikeway (Levitt Road to Kirralee Crescent) | H100: 129 | I100: Cycle Route (Secondary) | K100: 806 | L100: =IF(Table3[[#This Row],[Size of Land (m2)]]=0,0,Table3[[#This Row],[Land Value]]/Table3[[#This Row],[Size of Land (m2)]]) -> 0 | M100: 0 | N100: =Table3[[#This Row],[Direct Construction Cost]]/Table3[[#This Row],[Length (m)]] -> 815.620155 | O100: 105215 | P100: 2021 | Q100: 0.01 | S100: 24199 | T100: 0.2 | U100: 25883 | V100: 0 | W100: 2034 | X100: 1.264319088 | Y100: 155297 | Z100: =IFERROR(IF(Table3[[#This Row],[Year of Provision]]>2024,VLOOKUP(Table3[[#This Row],[Service Catchment]],'Catchment Demand - Pathway'!C$8:M$8,11,FALSE),""),"") -> 0.3396007115 | AA100: =_xlfn.IFS(Table3[[#This Row],[Year of Provision]]=2024,0,Table3[[#This Row],[Year of Provision]]=2029,Table3[[#This Row],[Net Present Value of Establishment Cost]]/SUMIFS($AF$17:$AF$102,$W$17:$W$102,"2029",$E$17:$E$102,Table3[[#This Row],[Service Catchment]]),Table3[[#This Row],[Year of Provision]]=2034,Table3[[#This Row],[Net Present Value of Establishment Cost]]/SUMIFS($AF$17:$AF$102,$W$17:$W$102,"2034",$E$17:$E$102,Table3[[#This Row],[Service Catchment]])) -> 0.03331294432 | AB100: =IF(AND(Table3[[#This Row],[Spare Capacity (%)]]>30%,Table3[[#This Row],[Share of the total Cost with the same year of provision %]]>20%),(1-Table3[[#This Row],[Spare Capacity (%)]]),1) -> 1 | AC100: =IF(Table3[[#This Row],[Terminal Value Analysis]]<0,0,Table3[[#This Row],[Terminal Value Analysis]]) -> 1 | AD100: =ROUND(Y100+M100-Table3[[#This Row],[Grants and Subsidies ($)]],0) -> 155297 | AE100: 196345 | AF100: 93076 | AG100: =Table3[[#This Row],[Net Present Value of Establishment Cost]]*Table3[[#This Row],[Terminal Value Adjustment (%)]] -> 93076 | AH100: 93076 | AI100: =Table3[[#This Row],[Net Present Value of Establishment Cost]]*Table3[[#This Row],[Terminal Value Adjustment (%)]] -> 93076
B101: APT275 | C101: WIS-SP-004 | D101: Cycle Route (Secondary) | E101: Citywide | F101: Bulimba Creek Bikeway (Delavan Street Park to Wishart community Park) | H101: 213 | I101: Cycle Route (Secondary) | K101: 1097 | L101: =IF(Table3[[#This Row],[Size of Land (m2)]]=0,0,Table3[[#This Row],[Land Value]]/Table3[[#This Row],[Size of Land (m2)]]) -> 9.95715588 | M101: 10923 | N101: =Table3[[#This Row],[Direct Construction Cost]]/Table3[[#This Row],[Length (m)]] -> 815.6150235 | O101: 173726 | P101: 2021 | Q101: 0.01 | S101: 39957 | T101: 0.15 | U101: 32052 | V101: 0 | W101: 2029 | X101: 1.155263475 | Y101: 245735 | Z101: =IFERROR(IF(Table3[[#This Row],[Year of Provision]]>2024,VLOOKUP(Table3[[#This Row],[Service Catchment]],'Catchment Demand - Pathway'!C$8:M$8,11,FALSE),""),"") -> 0.3396007115 | AA101: =_xlfn.IFS(Table3[[#This Row],[Year of Provision]]=2024,0,Table3[[#This Row],[Year of Provision]]=2029,Table3[[#This Row],[Net Present Value of Establishment Cost]]/SUMIFS($AF$17:$AF$102,$W$17:$W$102,"2029",$E$17:$E$102,Table3[[#This Row],[Service Catchment]]),Table3[[#This Row],[Year of Provision]]=2034,Table3[[#This Row],[Net Present Value of Establishment Cost]]/SUMIFS($AF$17:$AF$102,$W$17:$W$102,"2034",$E$17:$E$102,Table3[[#This Row],[Service Catchment]])) -> 0.0008132986102 | AB101: =IF(AND(Table3[[#This Row],[Spare Capacity (%)]]>30%,Table3[[#This Row],[Share of the total Cost with the same year of provision %]]>20%),(1-Table3[[#This Row],[Spare Capacity (%)]]),1) -> 1 | AC101: =IF(Table3[[#This Row],[Terminal Value Analysis]]<0,0,Table3[[#This Row],[Terminal Value Analysis]]) -> 1 | AD101: =ROUND(Y101+M101-Table3[[#This Row],[Grants and Subsidies ($)]],0) -> 256658 | AE101: 296698 | AF101: 187421 | AG101: =Table3[[#This Row],[Net Present Value of Establishment Cost]]*Table3[[#This Row],[Terminal Value Adjustment (%)]] -> 187421 | AH101: 187421 | AI101: =Table3[[#This Row],[Net Present Value of Establishment Cost]]*Table3[[#This Row],[Terminal Value Adjustment (%)]] -> 187421
B102: APT173 | C102: WSR-SP-001 | D102: Cycle Route (Primary) | E102: Citywide | F102: Enoggera Creek Bikeway (Under ICB Bridge to Lutwyche Road) | H102: 183 | I102: Cycle Route (Primary) | K102: 58 | L102: =IF(Table3[[#This Row],[Size of Land (m2)]]=0,0,Table3[[#This Row],[Land Value]]/Table3[[#This Row],[Size of Land (m2)]]) -> 428.1034483 | M102: 24830 | N102: =Table3[[#This Row],[Direct Construction Cost]]/Table3[[#This Row],[Length (m)]] -> 815.6174863 | O102: 149258 | P102: 2021 | Q102: 0.01 | S102: 34329 | T102: 0.15 | U102: 27538 | V102: 0 | W102: 2029 | X102: 1.155263475 | Y102: 211125 | Z102: =IFERROR(IF(Table3[[#This Row],[Year of Provision]]>2024,VLOOKUP(Table3[[#This Row],[Service Catchment]],'Catchment Demand - Pathway'!C$8:M$8,11,FALSE),""),"") -> 0.3396007115 | AA102: =_xlfn.IFS(Table3[[#This Row],[Year of Provision]]=2024,0,Table3[[#This Row],[Year of Provision]]=2029,Table3[[#This Row],[Net Present Value of Establishment Cost]]/SUMIFS($AF$17:$AF$102,$W$17:$W$102,"2029",$E$17:$E$102,Table3[[#This Row],[Service Catchment]]),Table3[[#This Row],[Year of Provision]]=2034,Table3[[#This Row],[Net Present Value of Establishment Cost]]/SUMIFS($AF$17:$AF$102,$W$17:$W$102,"2034",$E$17:$E$102,Table3[[#This Row],[Service Catchment]])) -> 0.0007484025702 | AB102: =IF(AND(Table3[[#This Row],[Spare Capacity (%)]]>30%,Table3[[#This Row],[Share of the total Cost with the same year of provision %]]>20%),(1-Table3[[#This Row],[Spare Capacity (%)]]),1) -> 1 | AC102: =IF(Table3[[#This Row],[Terminal Value Analysis]]<0,0,Table3[[#This Row],[Terminal Value Analysis]]) -> 1 | AD102: =ROUND(Y102+M102-Table3[[#This Row],[Grants and Subsidies ($)]],0) -> 235955 | AE102: 273023 | AF102: 172466 | AG102: =Table3[[#This Row],[Net Present Value of Establishment Cost]]*Table3[[#This Row],[Terminal Value Adjustment (%)]] -> 172466 | AH102: 172466 | AI102: =Table3[[#This Row],[Net Present Value of Establishment Cost]]*Table3[[#This Row],[Terminal Value Adjustment (%)]] -> 172466
AD103: =SUBTOTAL(109,AD16:AD102) -> 700928324 | AE103: =SUBTOTAL(109,AE16:AE102) -> 794019187 | AF103: =SUBTOTAL(109,AF16:AF102) -> 589571952 | AG103: =SUBTOTAL(109,AG16:AG102) -> 543406884.6 | AH103: =SUBTOTAL(109,AH16:AH102) -> 589571952 | AI103: =SUM(AI17:AI102) -> 543406884.6

Sheet Future Trunk Assets - Ferry
B2: ='Navigation Pane'!B2 -> Brisbane City Council
B4: Transport
A5: Return to "Future Trunk Assets"
B6: Future Trunk Assets - Ferry
B9: Data Refernces | E9: 1. Project costs are on costs to undertake detailed design, survey, geotechnical investigations, project management, and supervision of construction works and obtain certification from a Registered Professional Engineer of Queensland. Project costs equate to 23% of the direct and indirect embellishment costs. 2. Contingency costs are based on the project delivery date, and applied to the direct construction cost, indirect construction cost and project cost. Contingencies equate to 7.5% for projects with a delivery date up to 2024, 15% for projects with a delivery date up to 2029 and 20% for projects with a delivery date up to 2034. 3. Total embellishment cost is the sum of direct embellishment cost, indirect embellishment cost, project cost and construction contingency cost. 4. Terminal Value Adjustment is only applicable to items that have an estimated completion date between 2026 and 2036, items value exceeds 20% of the total network value in the same catchment and same year of provision, and items catchment has spare capacity greater than 30%. 5. Total embellishment cost is the sum of direct embellishment cost, indirect embellishment cost, project cost and construction contingency cost.
B12: Land Valuation Type | D12: Location
H14: Asset Data | AK14: Catchment Asset Allocation | AM14: Asset Usage | AP14: Cost Allocation | AR14: Cost Allocation for Service Cost Schedule
B15: Basic Asset Data | G15: Asset Attributes | J15: Land Attributes | N15: Basic Asset Valuation | Z15: Refined Asset Value | AK15: Citywide | AM15: =AK15 -> Citywide | AN15: TOTALS | AP15: =AK15 -> Citywide | AR15: Citywide
B16: Asset ID | C16: LGIP ID | D16: Project Type | E16: Service Catchment | F16: Description | G16: Unit Rate Type (*) | H16: Length (m) | I16: Hierarchy/Name | J16: Land Location/Type | K16: Size of Land (m2) | L16: Land Unit Rate ($/m2) | M16: Land Value | N16: Construction Unit Rate ($/m) | O16: Direct Construction Cost | P16: Valuation Year | Q16: Base Est Escalation | R16: Site/Condition | S16: Utility Rate | T16: Utility Cost | U16: Construction Contingency Rate % | V16: Construction Contingency Cost ($) | W16: Project Owners Cost (23% Direct Construction Cost)($) | X16: Grants and Subsidies ($) | Y16: Establishment Cost | Z16: Year of Provision | AA16: Escalation | AB16: Discounting | AC16: Renewal (%) | AD16: Spare Capacity (%) | AE16: Share of the total Cost with the same year of provision % | AF16: Terminal Value Analysis | AG16: Terminal Value Adjustment (%) | AH16: Establishment Cost (Escalated) | AI16: Net Present Value of Establishment Cost | AJ16: NPV Establishment Cost after Terminal Value Adjustment
B17: Councils ID (from GIS, FAR, AMA etc.) | C17: ID from the LGIP drawings | O17: May be calculated from unit rates OR unique values can be direct entered | AC17: % of cost which is renewal related | AD17: Applicable to project year of provision at 2029 or 2034 | AG17: % of cost which is relevant for Summary Cost Calculation | AH17: Gross cost (used for CF forecasts) | AI17: Adjusted Current Day Value | AJ17: For Summary Cost Calculation
B18: APT193 | C18: BNE-FT-005 | D18: New Ferry Terminal | E18: Citywide | F18: Eagle Street Ferry Terminal | G18: Ferry terminal - new | N18: =IFERROR(O18/H18,"") ->  | O18: 14067925 | P18: 2021 | Q18: 1 | R18: New | S18: 0 | T18: =O18*S18 -> 0 | U18: =IF(Z18="","",IF(Z18<=YEAR+5,0.075,IF(AND(Z18>YEAR+5,Z18<=YEAR+10),0.15,IF(AND(Z18>YEAR+10,Z18<=YEAR+20),0.2,IF(Z18>YEAR+20,0.25,""))))) -> 0.075 | V18: =ROUND((O18+W18)*U18,0) -> 1297766 | W18: =ROUND((O18)*23%,0) -> 3235623 | Y18: =ROUND((M18+O18+T18+V18+W18-X18),0) -> 18601314 | Z18: 2024 | AA18: =(1+PPI)^(Z18-YEAR) -> 1.055614607 | AB18: =IF(Z18<YEAR,1,IF('General Input Sheet'!$E$32="WACC1",1/(1+WACC1)^(Z18-YEAR), IF('General Input Sheet'!$E$32="WACC2",1/(1+WACC2)^(Z18-YEAR),"Check WACC Option in General Input Sheet"))) -> 0.8417615727 | AC18: 0 | AD18: =IFERROR(IF(Z18>2024,VLOOKUP(E18,'Catchment Demand - Ferry'!C$9:M$9,11,FALSE),""),"") ->  | AE18: =_xlfn.IFS(Z18=2024,0,Z18=2029,Y18/SUMIFS($Y$18:$Y$24,$Z$18:$Z$24,"2029",$E$18:$E$24,E18),Z18=2034,Y18/SUMIFS($Y$18:$Y$24,$Z$18:$Z$24,"2034",$E$18:$E$24,E18)) -> 0 | AF18: =IF(AND(AD18>30%,AE18>20%),(1-AD18),1) -> 1 | AG18: =IF(AF18<0,0,AF18) -> 1 | AH18: =IFERROR(ROUND((Y18*AA18*(1-AC18))+((1+Landind)^(Z18-YEAR)*M18),0),0) -> 19635819 | AI18: =IFERROR(ROUND((AH18*AB18),0),0) -> 16528678 | AJ18: =AI18*AG18 -> 16528678 | AK18: Y | AM18: 1 | AN18: =SUM(AM18) -> 1 | AP18: =IF(AM18="","",(AM18/AN18)*$AI18) -> 16528678 | AR18: =IF(AM18="","",(AM18/AN18)*$AI18)*AG18 -> 16528678
B19: APT174 | C19: BUL-FT-003 | D19: Ferry Terminal Upgrade | E19: Citywide | F19: Apollo Road Ferry Terminal | G19: Ferry terminal - upgrade | N19: =IFERROR(O19/H19,"") ->  | O19: 11268210 | P19: 2021 | Q19: 1 | R19: Upgrade | S19: 0 | T19: =O19*S19 -> 0 | U19: 0.2 | V19: =ROUND((O19+W19)*U19,0) -> 2771980 | W19: =ROUND((O19)*23%,0) -> 2591688 | Y19: =ROUND((M19+O19+T19+V19+W19-X19),0) -> 16631878 | Z19: 2034 | AA19: 1.264319088 | AB19: =IF(Z19<YEAR,1,IF('General Input Sheet'!$E$32="WACC1",1/(1+WACC1)^(Z19-YEAR), IF('General Input Sheet'!$E$32="WACC2",1/(1+WACC2)^(Z19-YEAR),"Check WACC Option in General Input Sheet"))) -> 0.4740448311 | AC19: 0 | AD19: =IFERROR(IF(Z19>2024,VLOOKUP(E19,'Catchment Demand - Ferry'!C$9:M$9,11,FALSE),""),"") -> 0.364061116 | AE19: =_xlfn.IFS(Z19=2024,0,Z19=2029,Y19/SUMIFS($Y$18:$Y$24,$Z$18:$Z$24,"2029",$E$18:$E$24,E19),Z19=2034,Y19/SUMIFS($Y$18:$Y$24,$Z$18:$Z$24,"2034",$E$18:$E$24,E19)) -> 1 | AF19: =IF(AND(AD19>30%,AE19>20%),(1-AD19),1) -> 0.635938884 | AG19: =IF(AF19<0,0,AF19) -> 0.635938884 | AH19: 21028001 | AI19: 9968215 | AJ19: =AI19*AG19 -> 6339175.523 | AK19: Y | AM19: 1 | AN19: =SUM(AM19) -> 1 | AP19: =IF(AM19="","",(AM19/AN19)*$AI19) -> 9968215 | AR19: =IF(AM19="","",(AM19/AN19)*$AI19)*AG19 -> 6339175.523
B20: APT193 | C20: EAB-FT-001 | D20: DDA compliance, flood resilience | E20: Citywide | F20: Mowbray Park Ferry Terminal | G20: Ferry terminal - upgrade | O20: 12598996 | P20: 2021 | Q20: 1 | R20: Upgrade | S20: 0 | T20: 0 | U20: 0.075 | V20: 1162257 | W20: 2897769 | Y20: =ROUND((M20+O20+T20+V20+W20-X20),0) -> 16659022 | Z20: 2024 | AA20: 1.055614607 | AB20: =IF(Z20<YEAR,1,IF('General Input Sheet'!$E$32="WACC1",1/(1+WACC1)^(Z20-YEAR), IF('General Input Sheet'!$E$32="WACC2",1/(1+WACC2)^(Z20-YEAR),"Check WACC Option in General Input Sheet"))) -> 0.8417615727 | AC20: 0 | AD20: =IFERROR(IF(Z20>2024,VLOOKUP(E20,'Catchment Demand - Ferry'!C$9:M$9,11,FALSE),""),"") ->  | AE20: =_xlfn.IFS(Z20=2024,0,Z20=2029,Y20/SUMIFS($Y$18:$Y$24,$Z$18:$Z$24,"2029",$E$18:$E$24,E20),Z20=2034,Y20/SUMIFS($Y$18:$Y$24,$Z$18:$Z$24,"2034",$E$18:$E$24,E20)) -> 0 | AF20: 1 | AG20: 1 | AH20: 17585507 | AI20: 14802804 | AJ20: 14802804 | AK20: Y | AM20: 1 | AN20: 1 | AP20: 14802804 | AR20: 14802804
B21: APT173 | C21: FVA-FT-001 | D21: New Ferry Terminal | E21: Citywide | F21: Howard Smith Wharves Ferry Terminal | G21: Ferry terminal - new | O21: 15069746 | P21: 2021 | Q21: 1 | R21: New | S21: 0 | T21: 0 | U21: 0.075 | V21: 1390184 | W21: 3466042 | Y21: 19925972 | Z21: 2024 | AA21: 1.055614607 | AB21: =IF(Z21<YEAR,1,IF('General Input Sheet'!$E$32="WACC1",1/(1+WACC1)^(Z21-YEAR), IF('General Input Sheet'!$E$32="WACC2",1/(1+WACC2)^(Z21-YEAR),"Check WACC Option in General Input Sheet"))) -> 0.8417615727 | AC21: 0 | AD21: =IFERROR(IF(Z21>2024,VLOOKUP(E21,'Catchment Demand - Ferry'!C$9:M$9,11,FALSE),""),"") ->  | AE21: =_xlfn.IFS(Z21=2024,0,Z21=2029,Y21/SUMIFS($Y$18:$Y$24,$Z$18:$Z$24,"2029",$E$18:$E$24,E21),Z21=2034,Y21/SUMIFS($Y$18:$Y$24,$Z$18:$Z$24,"2034",$E$18:$E$24,E21)) -> 0 | AF21: 1 | AG21: 1 | AH21: 21034147 | AI21: 17705737 | AJ21: 17705737 | AK21: Y | AM21: 1 | AN21: 1 | AP21: 17705737 | AR21: 17705737
B22: APT193 | C22: KAN-FT-003 | D22: DDA compliance, flood resilience | E22: Citywide | F22: Dockside Ferry Terminal | G22: Ferry terminal - upgrade | O22: 14267192 | P22: 2021 | Q22: 1 | R22: Upgrade | S22: 0 | T22: 0 | U22: 0.075 | V22: 1316148 | W22: 3281454 | Y22: 18864794 | Z22: 2024 | AA22: 1.055614607 | AB22: =IF(Z22<YEAR,1,IF('General Input Sheet'!$E$32="WACC1",1/(1+WACC1)^(Z22-YEAR), IF('General Input Sheet'!$E$32="WACC2",1/(1+WACC2)^(Z22-YEAR),"Check WACC Option in General Input Sheet"))) -> 0.8417615727 | AC22: 0 | AD22: =IFERROR(IF(Z22>2024,VLOOKUP(E22,'Catchment Demand - Ferry'!C$9:M$9,11,FALSE),""),"") ->  | AE22: =_xlfn.IFS(Z22=2024,0,Z22=2029,Y22/SUMIFS($Y$18:$Y$24,$Z$18:$Z$24,"2029",$E$18:$E$24,E22),Z22=2034,Y22/SUMIFS($Y$18:$Y$24,$Z$18:$Z$24,"2034",$E$18:$E$24,E22)) -> 0 | AF22: 1 | AG22: 1 | AH22: 19913952 | AI22: 16762800 | AJ22: 16762800 | AK22: Y | AM22: 1 | AN22: 1 | AP22: 16762800 | AR22: 16762800
B23: APT192 | C23: SBR-FT-002 | D23: DDA compliance, flood resilience | E23: Citywide | F23: South Bank 1 and 2 Ferry Terminal | G23: Ferry terminal - upgrade | O23: 11961644 | P23: 2021 | Q23: 1 | R23: Upgrade | S23: 0 | T23: 0 | U23: 0.075 | V23: 1103462 | W23: 2751178 | Y23: 15816284 | Z23: 2024 | AA23: 1.055614607 | AB23: =IF(Z23<YEAR,1,IF('General Input Sheet'!$E$32="WACC1",1/(1+WACC1)^(Z23-YEAR), IF('General Input Sheet'!$E$32="WACC2",1/(1+WACC2)^(Z23-YEAR),"Check WACC Option in General Input Sheet"))) -> 0.8417615727 | AC23: 0 | AD23: =IFERROR(IF(Z23>2024,VLOOKUP(E23,'Catchment Demand - Ferry'!C$9:M$9,11,FALSE),""),"") ->  | AE23: =_xlfn.IFS(Z23=2024,0,Z23=2029,Y23/SUMIFS($Y$18:$Y$24,$Z$18:$Z$24,"2029",$E$18:$E$24,E23),Z23=2034,Y23/SUMIFS($Y$18:$Y$24,$Z$18:$Z$24,"2034",$E$18:$E$24,E23)) -> 0 | AF23: 1 | AG23: 1 | AH23: 16695900 | AI23: 14053967 | AJ23: 14053967 | AK23: Y | AM23: 1 | AN23: 1 | AP23: 14053967 | AR23: 14053967
B24: APT192 | C24: WES-FT-002 | D24: New Ferry Terminal | E24: Citywide | F24: Victoria Street Ferry Terminal | G24: Ferry terminal - new | O24: 12602339 | P24: 2021 | Q24: 1 | R24: New | S24: 0 | T24: 0 | U24: 0.15 | V24: 2325132 | W24: 2898538 | Y24: 17826009 | Z24: 2029 | AA24: 1.155263475 | AB24: =IF(Z24<YEAR,1,IF('General Input Sheet'!$E$32="WACC1",1/(1+WACC1)^(Z24-YEAR), IF('General Input Sheet'!$E$32="WACC2",1/(1+WACC2)^(Z24-YEAR),"Check WACC Option in General Input Sheet"))) -> 0.6316903693 | AC24: 0 | AD24: =IFERROR(IF(Z24>2024,VLOOKUP(E24,'Catchment Demand - Ferry'!C$9:M$9,11,FALSE),""),"") -> 0.364061116 | AE24: =_xlfn.IFS(Z24=2024,0,Z24=2029,Y24/SUMIFS($Y$18:$Y$24,$Z$18:$Z$24,"2029",$E$18:$E$24,E24),Z24=2034,Y24/SUMIFS($Y$18:$Y$24,$Z$18:$Z$24,"2034",$E$18:$E$24,E24)) -> 1 | AF24: 0.635938884 | AG24: 0.635938884 | AH24: 20593737 | AI24: 13008865 | AJ24: 8272843.09 | AK24: Y | AM24: 1 | AN24: 1 | AP24: 13008865 | AR24: 8272843.09
V25: =SUM(V18:V24) -> 11366929 | W25: =SUM(W18:W24) -> 21122292 | Y25: =SUM(Y18:Y24) -> 124325273 | AB25: 1 | AH25: =SUM(AH18:AH24) -> 136487063 | AI25: =SUM(AI18:AI24) -> 102831066 | AJ25: =SUM(AJ18:AJ24) -> 94466004.61

Sheet Catchment Demand - Pathway
B2: ='Navigation Pane'!B2 -> Brisbane City Council
B3: Pathway network
B5: Catchment Demand (Person trips per day)
B7: Catchment No | C7: Catchment Name (*) | D7: 2021 | E7: =D7+5 -> 2026 | F7: 2031 | G7: 2036 | H7: 2041 | J7: Demand (2022-2036) | L7: ="Ultimate Demand" -> Ultimate Demand | M7: Spare Capacity
B8: 1 | C8: Citywide | D8: 3124508.6 | E8: 3309936.9 | F8: 3479193.9 | G8: 3637134.9 | H8: 3811231.1 | J8: =NPV(5.91%,E43:S43) -> 338990.565 | L8: 4872308.5 | M8: =(L8-G8)/G8 -> 0.3396007115
C38: Totals | D38: =SUM(D8:D37) -> 3124508.6 | E38: =SUM(E8:E37) -> 3309936.9 | F38: =SUM(F8:F37) -> 3479193.9 | G38: =SUM(G8:G37) -> 3637134.9 | H38: 3811231.1 | J38: =SUM(J8:J37) -> 338990.565 | L38: =SUM(L8:L37) -> 4872308.5
B41: DETAILED Forecast Demand Growth Profile (OPTIONAL)
B42: Catchment No | C42: Catchment Name | D42: 2021 | E42: 2022 | F42: 2023 | G42: 2024 | H42: 2025 | I42: 2026 | J42: =I42 +1 -> 2027 | K42: 2028 | L42: 2029 | M42: 2030 | N42: 2031 | O42: 2032 | P42: 2033 | Q42: 2034 | R42: 2035 | S42: 2036
B43: =B8 -> 1 | C43: =C8 -> Citywide | E43: =($E$8-$D$8)/5 -> 37085.66 | F43: =($E$8-$D$8)/5 -> 37085.66 | G43: =($E$8-$D$8)/5 -> 37085.66 | H43: =($E$8-$D$8)/5 -> 37085.66 | I43: =($E$8-$D$8)/5 -> 37085.66 | J43: =($F$8-$E$8)/5 -> 33851.4 | K43: =($F$8-$E$8)/5 -> 33851.4 | L43: =($F$8-$E$8)/5 -> 33851.4 | M43: =($F$8-$E$8)/5 -> 33851.4 | N43: =($F$8-$E$8)/5 -> 33851.4 | O43: =($G$8-$F$8)/5 -> 31588.2 | P43: =($G$8-$F$8)/5 -> 31588.2 | Q43: =($G$8-$F$8)/5 -> 31588.2 | R43: =($G$8-$F$8)/5 -> 31588.2 | S43: =($G$8-$F$8)/5 -> 31588.2
B48: =B13 -> 0 | C48: 0

Sheet Catchment Demand - Ferry
B2: ='Navigation Pane'!B2 -> Brisbane City Council
B4: Ferry network
B6: Catchment Demand (Person trips per day)
B8: Catchment No | C8: Catchment Name (*) | D8: 2021 | E8: =D8+5 -> 2026 | F8: 2031 | G8: 2036 | H8: 2041 | J8: Demand (2022-2036) | L8: ="Ultimate Demand" -> Ultimate Demand | M8: Spare Capacity
B9: 1 | C9: Citywide | D9: 88559.83746 | E9: 94191.2145 | F9: 99354.3516 | G9: 104137.7982 | H9: 109415.1904 | J9: =NPV(5.91%,$E18:$S18) -> 10303.23859 | L9: 142050.3213 | M9: =(L9-G9)/G9 -> 0.364061116
C13: Totals | D13: =SUM(D9:D12) -> 88559.83746 | E13: =SUM(E9:E12) -> 94191.2145 | F13: =SUM(F9:F12) -> 99354.3516 | G13: =SUM(G9:G12) -> 104137.7982 | H13: 109415.1904 | J13: =SUM(J9:J12) -> 10303.23859 | L13: =SUM(L9:L12) -> 142050.3213
B16: DETAILED Forecast Demand Growth Profile (OPTIONAL)
B17: Catchment No | C17: Catchment Name | D17: 2021 | E17: 2022 | F17: 2023 | G17: 2024 | H17: 2025 | I17: 2026 | J17: =I17 +1 -> 2027 | K17: =J17 +1 -> 2028 | L17: =K17 +1 -> 2029 | M17: =L17 +1 -> 2030 | N17: =M17 +1 -> 2031 | O17: =N17 +1 -> 2032 | P17: =O17 +1 -> 2033 | Q17: =P17 +1 -> 2034 | R17: =Q17 +1 -> 2035 | S17: =R17 +1 -> 2036
B18: =B9 -> 1 | C18: =C9 -> Citywide | E18: =($E9-$D9)/5 -> 1126.275408 | F18: =($E9-$D9)/5 -> 1126.275408 | G18: =($E9-$D9)/5 -> 1126.275408 | H18: =($E9-$D9)/5 -> 1126.275408 | I18: =($E9-$D9)/5 -> 1126.275408 | J18: =($F$9-$E$9)/5 -> 1032.62742 | K18: =($F$9-$E$9)/5 -> 1032.62742 | L18: =($F$9-$E$9)/5 -> 1032.62742 | M18: =($F$9-$E$9)/5 -> 1032.62742 | N18: =($F$9-$E$9)/5 -> 1032.62742 | O18: =($G$9-$F$9)/5 -> 956.689326 | P18: =($G$9-$F$9)/5 -> 956.689326 | Q18: =($G$9-$F$9)/5 -> 956.689326 | R18: =($G$9-$F$9)/5 -> 956.689326 | S18: =($G$9-$F$9)/5 -> 956.689326

Sheet Summary Cost Schedule
B2: ='Navigation Pane'!B2 -> Brisbane City Council
A4: Return to Navigation Pane
B5: Summary Cost Schedule
B7: Catchment | D7: Demand (trips) | G7: Cost of Trunk Infrastrcutrue | J7: Cost per Unit Demand (Average) | K7: Cost per Unit Demand (Marginal)
B8: No | C8: Name | D8: Existing (A) | E8: NPV Future (B) | F8: TOTAL (A)+ (B) | G8: Existing (C) | H8: NPV Future (D) | I8: TOTAL (C)+ (D)
B9: Ferry
B10: 1 | C10: Citywide | D10: ='Catchment Demand - Ferry'!D13 -> 88559.83746 | E10: ='Catchment Demand - Ferry'!J13 -> 10303.23859 | F10: =IFERROR(D10+E10,"") -> 98863.07605 | G10: ='Exist Trunk Assets - Ferry'!T43 -> 183919018 | H10: ='Future Trunk Assets - Ferry'!AJ25 -> 94466004.61 | I10: =G10+H10 -> 278385022.6 | J10: =IFERROR(I10/F10,0) -> 2815.864464 | K10: =H10/E10 -> 9168.573919
B13: Pathway
B14: 1 | C14: Citywide | D14: ='Catchment Demand - Pathway'!D38 -> 3124508.6 | E14: ='Catchment Demand - Pathway'!J38 -> 338990.565 | F14: =IFERROR(D14+E14,"") -> 3463499.165 | G14: ='Existing Trunk Assets - Pathway'!T1481 -> 291813148 | H14: ='Future Trunk Assets - Pathway'!AG103 -> 543406884.6 | I14: =G14+H14 -> 835220032.6 | J14: =IFERROR(I14/F14,0) -> 241.1491942 | K14: =H14/E14 -> 1603.014776
